Workbook

Sheet Cover
B2: Excel Basics 15: Excel Table Feature to Create Dynamic Ranges for VLOOKUP, PivotTables, & more!
P4: Office 2016 Video #27
M5: Examples:
L6: 1 | M6: ='VLOOKUP DVL'!A13 -> Example 1: Excel Table feature for VLOOKUP & Data Validation List
L7: 2 | M7: ='Chart (an)'!A1 -> Example 2: Excel Table feature for Chart
L8: 3 | M8: ='PivotTable (an)'!A1 -> Example 3: Excel Table feature for PivotTable
L9: 4 | M9: ='SUM (an)'!A1 -> Example 4: Excel Table feature for Other Formulas
L10: 5 | M10: Example 5: Add New Column to an Excel Table AND
M11: Create Approximate Match Lookup Table from a written statement.

Sheet VLOOKUP DVL
A1: Excel Table Feature
A2: Requirements:
A3: 1) You must have a Proper Data Set (Field Names in 1st Row, 2) Records in Row, 3) Empty Cells All the way around)
A4: 2) Click in one cell in Proper Data Set
A5: 3) Click on Table button in Table group in Interst Ribbon Tab (or just use keyboard: Ctrl + T)
A6: 4) Name Table in Table Tools Design Ribbon Tab, Properties group
A7: Advantages:
A8: 1) When you add new records or columns, Formulas, Data Validation, Charts, PivotTables and other features that are pointing to table will update automatically
A9: This means that our Formulas, Data Validation and PivotTables will see any new data we add to our Excel Table.
A10: 2) In Formulas we can use Table Formula Nomenclature: Table Names and then Field Names in Square Brackets
A13: Example 1: Excel Table feature for VLOOKUP & Data Validation List
A15: Product | B15: Supplier | C15: Cost | D15: Retail Price | F15: Product | G15: Retail Price
A16: Flying Eagle | B16: Channel Craft | C16: 12.37 | D16: 19.95 | F16: Bellen | G16: =VLOOKUP(F16,A16:D20,4,0) -> 26.95 | I16: **[range_lookup] ==>> Exact Match = FALSE or 0
A17: V Rang | B17: Colorado | C17: 12.89 | D17: 18.95
A18: Quad | B18: Gel Boom | C18: 21.54 | D18: 43.95
A19: Bellen | B19: Gel Boom | C19: 11.59 | D19: 26.95
A20: Carlota | B20: Gel Boom | C20: 17.33 | D20: 27.95
A23: Product | B23: Supplier | C23: Cost | D23: Retail Price | F23: Product | G23: Retail Price
A24: Flying Eagle | B24: Channel Craft | C24: 12.37 | D24: 19.95 | I24: **[range_lookup] ==>> Exact Match = FALSE or 0
A25: V Rang | B25: Colorado | C25: 12.89 | D25: 18.95
A26: Quad | B26: Gel Boom | C26: 21.54 | D26: 43.95
A27: Bellen | B27: Gel Boom | C27: 11.59 | D27: 26.95
A28: Carlota | B28: Gel Boom | C28: 17.33 | D28: 27.95

Sheet VLOOKUP DVL (an)
A1: Excel Table Feature
A2: Requirements:
A3: 1) You must have a Proper Data Set (Field Names in 1st Row, 2) Records in Row, 3) Empty Cells All the way around)
A4: 2) Click in one cell in Proper Data Set
A5: 3) Click on Table button in Table group in Interst Ribbon Tab (or just use keyboard: Ctrl + T)
A6: 4) Name Table in Table Tools Design Ribbon Tab, Properties group
A7: Advantages:
A8: 1) When you add new records or columns, Formulas, Data Validation, Charts, PivotTables and other features that are pointing to table will update automatically
A9: This means that our Formulas, Data Validation and PivotTables will see any new data we add to our Excel Table.
A10: 2) In Formulas we can use Table Formula Nomenclature: Table Names and then Field Names in Square Brackets
A13: Example 1: Excel Table feature for VLOOKUP & Data Validation List
A15: Product | B15: Supplier | C15: Cost | D15: Retail Price | F15: Product | G15: Retail Price
A16: Flying Eagle | B16: Channel Craft | C16: 12.37 | D16: 19.95 | F16: Bellen | G16: =VLOOKUP(F16,A16:D20,4,0) -> 26.95 | I16: **[range_lookup] ==>> Exact Match = FALSE or 0
A17: V Rang | B17: Colorado | C17: 12.89 | D17: 18.95
A18: Quad | B18: Gel Boom | C18: 21.54 | D18: 43.95
A19: Bellen | B19: Gel Boom | C19: 11.59 | D19: 26.95
A20: Carlota | B20: Gel Boom | C20: 17.33 | D20: 27.95
A21: Aspen | B21: Colorado | C21: 11 | D21: 22.95
A23: Product | B23: Supplier | C23: Cost | D23: Retail Price | F23: Product | G23: Retail Price
A24: Flying Eagle | B24: Channel Craft | C24: 12.37 | D24: 19.95 | F24: Aspen | G24: =VLOOKUP(F24,PriceLookupAnswer[],4,0) -> 22.95 | I24: **[range_lookup] ==>> Exact Match = FALSE or 0
A25: V Rang | B25: Colorado | C25: 12.89 | D25: 18.95
A26: Quad | B26: Gel Boom | C26: 21.54 | D26: 43.95
A27: Bellen | B27: Gel Boom | C27: 11.59 | D27: 26.95
A28: Carlota | B28: Gel Boom | C28: 17.33 | D28: 27.95
A29: Aspen | B29: Colorado | C29: 11 | D29: 22.95

Sheet Chart
A1: Example 2: Excel Table feature for Chart
A4: Date | B4: Your Name Sales
A5: 2017-11-06 | B5: 5789.24
A6: 2017-11-07 | B6: 6125.75
A7: 2017-11-08 | B7: 4215.14

Sheet Chart (an)
A1: Example 2: Excel Table feature for Chart
A4: Date | B4: Your Name Sales
A5: 2017-11-06 | B5: 5789.24
A6: 2017-11-07 | B6: 6125.75
A7: 2017-11-08 | B7: 4215.14
A8: 2017-11-09 | B8: 9125.65

Sheet PivotTable
A1: Example 3: Excel Table feature for PivotTable | M1: New Records:
A3: Date | B3: Product | C3: Units Sold | M3: 2017-11-08 | N3: V Rang | O3: 88 | AS3: Date | AT3: Product | AU3: Units Sold | AW3: Product
A4: 2017-11-02 | B4: Quad | C4: 181 | M4: 2017-11-03 | N4: Quad | O4: 152 | AS4: =RANDBETWEEN("11/1/2017",TODAY()) -> 2017-11-01 | AT4: =INDEX($AW$4:$AW$7,RANDBETWEEN(1,ROWS($AW$4:$AW$7))) -> Quad | AU4: =RANDBETWEEN(1,191) -> 185 | AW4: Quad
A5: 2017-11-04 | B5: Yanaki | C5: 155 | M5: 2017-11-07 | N5: Quad | O5: 90 | AS5: =RANDBETWEEN("11/1/2017",TODAY()) -> 2017-11-04 | AT5: =INDEX($AW$4:$AW$7,RANDBETWEEN(1,ROWS($AW$4:$AW$7))) -> V Rang | AU5: =RANDBETWEEN(1,191) -> 70 | AW5: Sunset
A6: 2017-11-05 | B6: Yanaki | C6: 56 | M6: 2017-11-03 | N6: Sunset | O6: 112 | AS6: 2017-11-03 | AT6: Yanaki | AU6: 171 | AW6: Yanaki
A7: 2017-11-05 | B7: Yanaki | C7: 127 | M7: 2017-11-06 | N7: Sunset | O7: 24 | AS7: 2017-11-07 | AT7: Sunset | AU7: 40 | AW7: V Rang
A8: 2017-11-07 | B8: V Rang | C8: 159 | M8: 2017-11-06 | N8: Yanaki | O8: 44 | AS8: 2017-11-07 | AT8: Sunset | AU8: 77
A9: 2017-11-07 | B9: Quad | C9: 100 | M9: 2017-11-07 | N9: Yanaki | O9: 154 | AS9: 2017-11-09 | AT9: Yanaki | AU9: 73
A10: 2017-11-03 | B10: Sunset | C10: 151 | M10: 2017-11-05 | N10: V Rang | O10: 96 | AS10: 2017-11-03 | AT10: V Rang | AU10: 48
A11: 2017-11-02 | B11: Yanaki | C11: 163 | AS11: 2017-11-09 | AT11: Sunset | AU11: 5
A12: 2017-11-06 | B12: Yanaki | C12: 84
A13: 2017-11-06 | B13: Yanaki | C13: 191
A14: 2017-11-01 | B14: V Rang | C14: 78
A15: 2017-11-04 | B15: Quad | C15: 8
A16: 2017-11-07 | B16: V Rang | C16: 15
A17: 2017-11-01 | B17: V Rang | C17: 157
A18: 2017-11-02 | B18: Yanaki | C18: 100
A19: 2017-11-01 | B19: Yanaki | C19: 9
A20: 2017-11-04 | B20: Quad | C20: 180
A21: 2017-11-08 | B21: Quad | C21: 30

Sheet PivotTable (an)
A1: Example 3: Excel Table feature for PivotTable | M1: New Records:
A3: Date | B3: Product | C3: Units Sold | E3: Product | F3: Sum of Units Sold | M3: 2017-11-08 | N3: V Rang | O3: 88
A4: 2017-11-02 | B4: Quad | C4: 181 | E4: Quad | F4: 741 | M4: 2017-11-03 | N4: Quad | O4: 152
A5: 2017-11-04 | B5: Yanaki | C5: 155 | E5: Sunset | F5: 287 | M5: 2017-11-07 | N5: Quad | O5: 90
A6: 2017-11-05 | B6: Yanaki | C6: 56 | E6: V Rang | F6: 593 | M6: 2017-11-03 | N6: Sunset | O6: 112
A7: 2017-11-05 | B7: Yanaki | C7: 127 | E7: Yanaki | F7: 1083 | M7: 2017-11-06 | N7: Sunset | O7: 24
A8: 2017-11-07 | B8: V Rang | C8: 159 | E8: Grand Total | F8: 2704 | M8: 2017-11-06 | N8: Yanaki | O8: 44
A9: 2017-11-07 | B9: Quad | C9: 100 | M9: 2017-11-07 | N9: Yanaki | O9: 154
A10: 2017-11-03 | B10: Sunset | C10: 151 | M10: 2017-11-05 | N10: V Rang | O10: 96
A11: 2017-11-02 | B11: Yanaki | C11: 163
A12: 2017-11-06 | B12: Yanaki | C12: 84
A13: 2017-11-06 | B13: Yanaki | C13: 191
A14: 2017-11-01 | B14: V Rang | C14: 78
A15: 2017-11-04 | B15: Quad | C15: 8
A16: 2017-11-07 | B16: V Rang | C16: 15
A17: 2017-11-01 | B17: V Rang | C17: 157
A18: 2017-11-02 | B18: Yanaki | C18: 100
A19: 2017-11-01 | B19: Yanaki | C19: 9
A20: 2017-11-04 | B20: Quad | C20: 180
A21: 2017-11-08 | B21: Quad | C21: 30
A22: 2017-11-08 | B22: V Rang | C22: 88
A23: 2017-11-03 | B23: Quad | C23: 152
A24: 2017-11-07 | B24: Quad | C24: 90
A25: 2017-11-03 | B25: Sunset | C25: 112
A26: 2017-11-06 | B26: Sunset | C26: 24
A27: 2017-11-06 | B27: Yanaki | C27: 44
A28: 2017-11-07 | B28: Yanaki | C28: 154
A29: 2017-11-05 | B29: V Rang | C29: 96

Sheet SUM
A1: Example 4: Excel Table feature for Other Formulas | L1: New Records:
A3: Date | B3: Product | C3: Units Sold | F3: Total | G3: Max
A4: 2017-11-06 | B4: Sunset | C4: 190 | L4: 2017-11-05 | M4: Sunset | N4: 139
A5: 2017-11-01 | B5: Sunset | C5: 138 | L5: 2017-11-04 | M5: Quad | N5: 167
A6: 2017-11-04 | B6: Quad | C6: 12 | L6: 2017-11-05 | M6: Sunset | N6: 191
A7: 2017-11-02 | B7: V Rang | C7: 45 | L7: 2017-11-01 | M7: V Rang | N7: 84
A8: 2017-11-04 | B8: Sunset | C8: 187 | L8: 2017-11-04 | M8: V Rang | N8: 102
A9: 2017-11-03 | B9: V Rang | C9: 29 | L9: 2017-11-01 | M9: Quad | N9: 100
A10: 2017-11-07 | B10: V Rang | C10: 106 | L10: 2017-11-05 | M10: V Rang | N10: 107
A11: 2017-11-02 | B11: Sunset | C11: 147 | L11: 2017-11-05 | M11: V Rang | N11: 1
A12: 2017-11-04 | B12: Quad | C12: 143 | L12: 2017-11-04 | M12: Sunset | N12: 92
A13: 2017-11-05 | B13: Yanaki | C13: 33 | L13: 2017-11-05 | M13: Sunset | N13: 18
A14: 2017-11-06 | B14: Yanaki | C14: 99 | L14: 2017-11-06 | M14: Sunset | N14: 169
A15: 2017-11-08 | B15: Sunset | C15: 35 | L15: 2017-11-06 | M15: V Rang | N15: 129
A16: 2017-11-06 | B16: Yanaki | C16: 21 | L16: 2017-11-03 | M16: V Rang | N16: 30
A17: 2017-11-08 | B17: Quad | C17: 60 | L17: 2017-11-02 | M17: Sunset | N17: 12
A18: 2017-11-06 | B18: Sunset | C18: 132 | L18: 2017-11-05 | M18: Sunset | N18: 59
A19: 2017-11-08 | B19: V Rang | C19: 156 | L19: 2017-11-08 | M19: Quad | N19: 120
A20: 2017-11-06 | B20: V Rang | C20: 120 | L20: 2017-11-04 | M20: Quad | N20: 72
A21: 2017-11-04 | B21: Yanaki | C21: 55 | L21: 2017-11-06 | M21: V Rang | N21: 111
A22: 2017-11-03 | B22: Yanaki | C22: 165 | L22: 2017-11-01 | M22: V Rang | N22: 182
A23: 2017-11-07 | B23: Yanaki | C23: 124 | L23: 2017-11-02 | M23: Quad | N23: 175
A24: 2017-11-07 | B24: V Rang | C24: 155 | L24: 2017-11-04 | M24: Sunset | N24: 8
A25: 2017-11-06 | B25: Sunset | C25: 33 | L25: 2017-11-02 | M25: V Rang | N25: 69
A26: 2017-11-08 | B26: Yanaki | C26: 76 | L26: 2017-11-05 | M26: Sunset | N26: 60
A27: 2017-11-05 | B27: Yanaki | C27: 49 | L27: 2017-11-07 | M27: Sunset | N27: 25
A28: 2017-11-03 | B28: V Rang | C28: 26 | L28: 2017-11-06 | M28: Yanaki | N28: 118
A29: 2017-11-02 | B29: Yanaki | C29: 30 | L29: 2017-11-06 | M29: Quad | N29: 63
A30: 2017-11-03 | B30: Quad | C30: 116 | L30: 2017-11-08 | M30: Quad | N30: 123
A31: 2017-11-02 | B31: Sunset | C31: 45 | L31: 2017-11-03 | M31: Yanaki | N31: 90
A32: 2017-11-02 | B32: V Rang | C32: 47 | L32: 2017-11-08 | M32: Yanaki | N32: 41
A33: 2017-11-05 | B33: Quad | C33: 113 | L33: 2017-11-08 | M33: Quad | N33: 162
A34: 2017-11-04 | B34: Quad | C34: 70 | L34: 2017-11-07 | M34: Sunset | N34: 9
A35: 2017-11-04 | B35: Quad | C35: 173 | L35: 2017-11-07 | M35: Sunset | N35: 161
A36: 2017-11-05 | B36: Sunset | C36: 54 | L36: 2017-11-07 | M36: V Rang | N36: 30
A37: 2017-11-02 | B37: Sunset | C37: 122 | L37: 2017-11-05 | M37: Sunset | N37: 120
A38: 2017-11-01 | B38: V Rang | C38: 3 | L38: 2017-11-05 | M38: Yanaki | N38: 39
A39: 2017-11-03 | B39: Yanaki | C39: 122 | L39: 2017-11-08 | M39: Sunset | N39: 131
A40: 2017-11-02 | B40: Yanaki | C40: 81 | L40: 2017-11-06 | M40: V Rang | N40: 90
A41: 2017-11-06 | B41: Yanaki | C41: 21 | L41: 2017-11-05 | M41: Quad | N41: 171
A42: 2017-11-03 | B42: Sunset | C42: 144 | L42: 2017-11-06 | M42: Quad | N42: 158
A43: 2017-11-07 | B43: V Rang | C43: 139 | L43: 2017-11-02 | M43: Quad | N43: 130
A44: 2017-11-03 | B44: V Rang | C44: 105 | L44: 2017-11-07 | M44: V Rang | N44: 149
A45: 2017-11-04 | B45: Sunset | C45: 14 | L45: 2017-11-08 | M45: Sunset | N45: 143
A46: 2017-11-04 | B46: Sunset | C46: 95 | L46: 2017-11-01 | M46: V Rang | N46: 48
A47: 2017-11-03 | B47: Quad | C47: 142 | L47: 2017-11-05 | M47: Yanaki | N47: 17
A48: 2017-11-01 | B48: V Rang | C48: 150 | L48: 2017-11-03 | M48: Quad | N48: 35
A49: 2017-11-06 | B49: Yanaki | C49: 79 | L49: 2017-11-05 | M49: Sunset | N49: 168
A50: 2017-11-01 | B50: V Rang | C50: 57 | L50: 2017-11-02 | M50: Sunset | N50: 106
A51: 2017-11-04 | B51: V Rang | C51: 62 | L51: 2017-11-05 | M51: Yanaki | N51: 36
A52: 2017-11-02 | B52: V Rang | C52: 177 | L52: 2017-11-02 | M52: Yanaki | N52: 19
A53: 2017-11-05 | B53: Sunset | C53: 165 | L53: 2017-11-05 | M53: Yanaki | N53: 173
A54: 2017-11-02 | B54: Yanaki | C54: 37 | L54: 2017-11-03 | M54: Quad | N54: 66
A55: 2017-11-05 | B55: Yanaki | C55: 181 | L55: 2017-11-06 | M55: Yanaki | N55: 25
A56: 2017-11-04 | B56: Yanaki | C56: 148 | L56: 2017-11-04 | M56: Sunset | N56: 47
A57: 2017-11-08 | B57: Sunset | C57: 132 | L57: 2017-11-08 | M57: Sunset | N57: 49
A58: 2017-11-06 | B58: V Rang | C58: 3 | L58: 2017-11-08 | M58: Quad | N58: 1
A59: 2017-11-01 | B59: V Rang | C59: 121 | L59: 2017-11-03 | M59: V Rang | N59: 75
A60: 2017-11-08 | B60: Yanaki | C60: 104 | L60: 2017-11-06 | M60: Sunset | N60: 137
A61: 2017-11-08 | B61: Yanaki | C61: 155 | L61: 2017-11-01 | M61: V Rang | N61: 101
A62: 2017-11-06 | B62: V Rang | C62: 129 | L62: 2017-11-07 | M62: Quad | N62: 11
A63: 2017-11-01 | B63: V Rang | C63: 72 | L63: 2017-11-03 | M63: Yanaki | N63: 42
A64: 2017-11-05 | B64: Quad | C64: 164 | L64: 2017-11-01 | M64: Sunset | N64: 185
A65: 2017-11-03 | B65: V Rang | C65: 6 | L65: 2017-11-04 | M65: Sunset | N65: 160
A66: 2017-11-01 | B66: Yanaki | C66: 46 | L66: 2017-11-04 | M66: Sunset | N66: 7
A67: 2017-11-08 | B67: V Rang | C67: 182 | L67: 2017-11-05 | M67: V Rang | N67: 1
A68: 2017-11-02 | B68: V Rang | C68: 11 | L68: 2017-11-06 | M68: Sunset | N68: 80
A69: 2017-11-08 | B69: Quad | C69: 18 | L69: 2017-11-08 | M69: Quad | N69: 117
A70: 2017-11-06 | B70: V Rang | C70: 152 | L70: 2017-11-02 | M70: Yanaki | N70: 37
A71: 2017-11-01 | B71: Yanaki | C71: 41 | L71: 2017-11-01 | M71: Sunset | N71: 179
A72: 2017-11-06 | B72: V Rang | C72: 11 | L72: 2017-11-07 | M72: Quad | N72: 60
A73: 2017-11-08 | B73: V Rang | C73: 148 | L73: 2017-11-04 | M73: Yanaki | N73: 60
A74: 2017-11-05 | B74: V Rang | C74: 154 | L74: 2017-11-05 | M74: Quad | N74: 79
A75: 2017-11-02 | B75: Yanaki | C75: 115 | L75: 2017-11-08 | M75: Quad | N75: 63
A76: 2017-11-07 | B76: Quad | C76: 122 | L76: 2017-11-01 | M76: Sunset | N76: 145
A77: 2017-11-08 | B77: V Rang | C77: 3 | L77: 2017-11-06 | M77: V Rang | N77: 39
A78: 2017-11-07 | B78: Quad | C78: 26 | L78: 2017-11-04 | M78: Quad | N78: 117
A79: 2017-11-04 | B79: Sunset | C79: 162 | L79: 2017-11-05 | M79: Yanaki | N79: 127
A80: 2017-11-07 | B80: Quad | C80: 21 | L80: 2017-11-08 | M80: Quad | N80: 13
A81: 2017-11-03 | B81: Quad | C81: 42 | L81: 2017-11-05 | M81: Quad | N81: 92
A82: 2017-11-05 | B82: Sunset | C82: 82 | L82: 2017-11-08 | M82: Quad | N82: 147
A83: 2017-11-07 | B83: V Rang | C83: 78 | L83: 2017-11-02 | M83: Sunset | N83: 175
A84: 2017-11-08 | B84: Yanaki | C84: 127 | L84: 2017-11-02 | M84: Quad | N84: 165
A85: 2017-11-01 | B85: Quad | C85: 64 | L85: 2017-11-02 | M85: Sunset | N85: 10
A86: 2017-11-05 | B86: Quad | C86: 152 | L86: 2017-11-03 | M86: Yanaki | N86: 110
A87: 2017-11-03 | B87: V Rang | C87: 53 | L87: 2017-11-01 | M87: Quad | N87: 133
A88: 2017-11-05 | B88: Quad | C88: 11 | L88: 2017-11-02 | M88: Sunset | N88: 191
A89: 2017-11-04 | B89: Sunset | C89: 170 | L89: 2017-11-04 | M89: Quad | N89: 123
A90: 2017-11-02 | B90: V Rang | C90: 170 | L90: 2017-11-07 | M90: Yanaki | N90: 26
A91: 2017-11-08 | B91: Yanaki | C91: 31 | L91: 2017-11-08 | M91: Quad | N91: 88
A92: 2017-11-02 | B92: Quad | C92: 7 | L92: 2017-11-07 | M92: Yanaki | N92: 119
A93: 2017-11-07 | B93: Quad | C93: 175 | L93: 2017-11-04 | M93: Quad | N93: 78
A94: 2017-11-08 | B94: Yanaki | C94: 107 | L94: 2017-11-01 | M94: V Rang | N94: 141
A95: 2017-11-07 | B95: V Rang | C95: 123 | L95: 2017-11-01 | M95: Sunset | N95: 187
A96: 2017-11-06 | B96: V Rang | C96: 21 | L96: 2017-11-04 | M96: Quad | N96: 2
A97: 2017-11-01 | B97: Yanaki | C97: 8 | L97: 2017-11-05 | M97: Sunset | N97: 163
A98: 2017-11-03 | B98: Sunset | C98: 115 | L98: 2017-11-06 | M98: Quad | N98: 106
A99: 2017-11-04 | B99: V Rang | C99: 50 | L99: 2017-11-05 | M99: V Rang | N99: 9
A100: 2017-11-08 | B100: V Rang | C100: 121 | L100: 2017-11-01 | M100: Quad | N100: 70
A101: 2017-11-02 | B101: V Rang | C101: 35 | L101: 2017-11-05 | M101: Sunset | N101: 88
A102: 2017-11-05 | B102: Sunset | C102: 106 | L102: 2017-11-01 | M102: Quad | N102: 129
A103: 2017-11-02 | B103: V Rang | C103: 125 | L103: 2017-11-01 | M103: Quad | N103: 50
A104: 2017-11-01 | B104: V Rang | C104: 182 | L104: 2017-11-02 | M104: Quad | N104: 158
A105: 2017-11-07 | B105: Quad | C105: 98 | L105: 2017-11-07 | M105: Sunset | N105: 166
A106: 2017-11-03 | B106: V Rang | C106: 80 | L106: 2017-11-08 | M106: V Rang | N106: 151
A107: 2017-11-05 | B107: Yanaki | C107: 18 | L107: 2017-11-03 | M107: V Rang | N107: 110
A108: 2017-11-04 | B108: V Rang | C108: 80 | L108: 2017-11-01 | M108: Sunset | N108: 13
A109: 2017-11-02 | B109: Sunset | C109: 52 | L109: 2017-11-01 | M109: Quad | N109: 85
A110: 2017-11-03 | B110: Quad | C110: 52 | L110: 2017-11-07 | M110: V Rang | N110: 74
A111: 2017-11-06 | B111: Sunset | C111: 119 | L111: 2017-11-05 | M111: Quad | N111: 169
A112: 2017-11-08 | B112: V Rang | C112: 129 | L112: 2017-11-05 | M112: V Rang | N112: 89
A113: 2017-11-08 | B113: V Rang | C113: 141 | L113: 2017-11-03 | M113: Sunset | N113: 189
A114: 2017-11-08 | B114: Quad | C114: 95 | L114: 2017-11-03 | M114: V Rang | N114: 138
A115: 2017-11-02 | B115: Sunset | C115: 112 | L115: 2017-11-08 | M115: Yanaki | N115: 6
A116: 2017-11-04 | B116: Quad | C116: 40 | L116: 2017-11-03 | M116: V Rang | N116: 133
A117: 2017-11-05 | B117: Quad | C117: 160 | L117: 2017-11-07 | M117: V Rang | N117: 95
A118: 2017-11-04 | B118: V Rang | C118: 81 | L118: 2017-11-06 | M118: Yanaki | N118: 133
A119: 2017-11-05 | B119: Quad | C119: 157 | L119: 2017-11-08 | M119: Quad | N119: 164
A120: 2017-11-07 | B120: Sunset | C120: 12 | L120: 2017-11-07 | M120: Sunset | N120: 30
A121: 2017-11-01 | B121: V Rang | C121: 117 | L121: 2017-11-07 | M121: Yanaki | N121: 113
A122: 2017-11-04 | B122: Quad | C122: 118 | L122: 2017-11-04 | M122: Quad | N122: 3
A123: 2017-11-03 | B123: Sunset | C123: 6 | L123: 2017-11-07 | M123: V Rang | N123: 167
A124: 2017-11-04 | B124: V Rang | C124: 107 | L124: 2017-11-07 | M124: Quad | N124: 148
A125: 2017-11-02 | B125: Yanaki | C125: 15 | L125: 2017-11-03 | M125: V Rang | N125: 167
A126: 2017-11-02 | B126: Yanaki | C126: 7 | L126: 2017-11-08 | M126: Yanaki | N126: 25
A127: 2017-11-07 | B127: Sunset | C127: 178 | L127: 2017-11-04 | M127: Sunset | N127: 130
A128: 2017-11-03 | B128: V Rang | C128: 159 | L128: 2017-11-04 | M128: V Rang | N128: 19
A129: 2017-11-03 | B129: Yanaki | C129: 48 | L129: 2017-11-01 | M129: Sunset | N129: 33
A130: 2017-11-04 | B130: Quad | C130: 12 | L130: 2017-11-07 | M130: Quad | N130: 86
A131: 2017-11-02 | B131: Quad | C131: 163 | L131: 2017-11-08 | M131: V Rang | N131: 50
A132: 2017-11-02 | B132: Yanaki | C132: 133 | L132: 2017-11-05 | M132: Sunset | N132: 68
A133: 2017-11-03 | B133: V Rang | C133: 63 | L133: 2017-11-02 | M133: V Rang | N133: 77
A134: 2017-11-01 | B134: Quad | C134: 95 | L134: 2017-11-03 | M134: Quad | N134: 20
A135: 2017-11-03 | B135: V Rang | C135: 51 | L135: 2017-11-01 | M135: V Rang | N135: 132
A136: 2017-11-06 | B136: Quad | C136: 75 | L136: 2017-11-08 | M136: Sunset | N136: 4
A137: 2017-11-04 | B137: V Rang | C137: 174 | L137: 2017-11-06 | M137: Sunset | N137: 153
A138: 2017-11-01 | B138: V Rang | C138: 150 | L138: 2017-11-08 | M138: Quad | N138: 29
A139: 2017-11-04 | B139: V Rang | C139: 4 | L139: 2017-11-03 | M139: V Rang | N139: 98
A140: 2017-11-01 | B140: Quad | C140: 87 | L140: 2017-11-07 | M140: Yanaki | N140: 89
A141: 2017-11-01 | B141: V Rang | C141: 105 | L141: 2017-11-03 | M141: Yanaki | N141: 129
A142: 2017-11-06 | B142: V Rang | C142: 129 | L142: 2017-11-07 | M142: Yanaki | N142: 165
A143: 2017-11-08 | B143: V Rang | C143: 9 | L143: 2017-11-04 | M143: V Rang | N143: 169
A144: 2017-11-05 | B144: V Rang | C144: 90 | L144: 2017-11-01 | M144: Sunset | N144: 191
A145: 2017-11-02 | B145: Yanaki | C145: 14 | L145: 2017-11-08 | M145: Yanaki | N145: 120
A146: 2017-11-02 | B146: Yanaki | C146: 134 | L146: 2017-11-07 | M146: V Rang | N146: 188
A147: 2017-11-08 | B147: Sunset | C147: 102 | L147: 2017-11-06 | M147: Sunset | N147: 101
A148: 2017-11-03 | B148: Quad | C148: 46 | L148: 2017-11-05 | M148: Quad | N148: 73
A149: 2017-11-07 | B149: Quad | C149: 182 | L149: 2017-11-07 | M149: Sunset | N149: 139
A150: 2017-11-02 | B150: Quad | C150: 190 | L150: 2017-11-03 | M150: Sunset | N150: 168
A151: 2017-11-06 | B151: Sunset | C151: 13 | L151: 2017-11-07 | M151: V Rang | N151: 150
A152: 2017-11-06 | B152: Yanaki | C152: 132 | L152: 2017-11-07 | M152: Quad | N152: 24
A153: 2017-11-08 | B153: Yanaki | C153: 52 | L153: 2017-11-06 | M153: Sunset | N153: 94
A154: 2017-11-01 | B154: V Rang | C154: 105 | L154: 2017-11-01 | M154: Yanaki | N154: 171
A155: 2017-11-02 | B155: Sunset | C155: 142 | L155: 2017-11-05 | M155: V Rang | N155: 119
A156: 2017-11-08 | B156: Sunset | C156: 132 | L156: 2017-11-08 | M156: Sunset | N156: 157
A157: 2017-11-04 | B157: V Rang | C157: 116 | L157: 2017-11-06 | M157: V Rang | N157: 46
A158: 2017-11-08 | B158: V Rang | C158: 89 | L158: 2017-11-08 | M158: V Rang | N158: 191
A159: 2017-11-03 | B159: Quad | C159: 156 | L159: 2017-11-01 | M159: Sunset | N159: 83
A160: 2017-11-06 | B160: Quad | C160: 136 | L160: 2017-11-03 | M160: V Rang | N160: 106
A161: 2017-11-04 | B161: Yanaki | C161: 77 | L161: 2017-11-07 | M161: Sunset | N161: 53
A162: 2017-11-05 | B162: Sunset | C162: 97 | L162: 2017-11-07 | M162: Yanaki | N162: 178
A163: 2017-11-08 | B163: Yanaki | C163: 121 | L163: 2017-11-05 | M163: V Rang | N163: 134
A164: 2017-11-02 | B164: Quad | C164: 3 | L164: 2017-11-06 | M164: Yanaki | N164: 74
A165: 2017-11-04 | B165: Sunset | C165: 56 | L165: 2017-11-01 | M165: Yanaki | N165: 38
A166: 2017-11-04 | B166: Quad | C166: 177 | L166: 2017-11-04 | M166: Sunset | N166: 185
A167: 2017-11-04 | B167: Quad | C167: 140 | L167: 2017-11-03 | M167: V Rang | N167: 145
A168: 2017-11-08 | B168: Yanaki | C168: 173 | L168: 2017-11-07 | M168: Yanaki | N168: 119
A169: 2017-11-06 | B169: Yanaki | C169: 27 | L169: 2017-11-06 | M169: Yanaki | N169: 178
A170: 2017-11-04 | B170: Quad | C170: 87 | L170: 2017-11-02 | M170: V Rang | N170: 171
A171: 2017-11-04 | B171: Yanaki | C171: 20 | L171: 2017-11-01 | M171: V Rang | N171: 33
A172: 2017-11-04 | B172: Quad | C172: 191 | L172: 2017-11-05 | M172: Quad | N172: 32
A173: 2017-11-01 | B173: Quad | C173: 70 | L173: 2017-11-06 | M173: Sunset | N173: 24
A174: 2017-11-04 | B174: V Rang | C174: 186 | L174: 2017-11-04 | M174: Sunset | N174: 166
A175: 2017-11-04 | B175: Yanaki | C175: 126 | L175: 2017-11-04 | M175: Quad | N175: 107
A176: 2017-11-01 | B176: V Rang | C176: 3 | L176: 2017-11-01 | M176: Quad | N176: 179
A177: 2017-11-04 | B177: Yanaki | C177: 92 | L177: 2017-11-04 | M177: Quad | N177: 164
A178: 2017-11-04 | B178: Sunset | C178: 3 | L178: 2017-11-06 | M178: Yanaki | N178: 175
A179: 2017-11-05 | B179: Quad | C179: 82 | L179: 2017-11-04 | M179: Sunset | N179: 55
A180: 2017-11-01 | B180: Quad | C180: 99 | L180: 2017-11-07 | M180: Yanaki | N180: 165
A181: 2017-11-06 | B181: Yanaki | C181: 131 | L181: 2017-11-08 | M181: Sunset | N181: 142
A182: 2017-11-01 | B182: Sunset | C182: 175 | L182: 2017-11-02 | M182: Yanaki | N182: 67
A183: 2017-11-04 | B183: Quad | C183: 41 | L183: 2017-11-07 | M183: Yanaki | N183: 73
A184: 2017-11-04 | B184: V Rang | C184: 14 | L184: 2017-11-05 | M184: V Rang | N184: 21
A185: 2017-11-06 | B185: Sunset | C185: 122 | L185: 2017-11-08 | M185: Yanaki | N185: 40
A186: 2017-11-02 | B186: Sunset | C186: 48 | L186: 2017-11-03 | M186: V Rang | N186: 175
A187: 2017-11-03 | B187: Yanaki | C187: 57 | L187: 2017-11-01 | M187: Sunset | N187: 187
A188: 2017-11-08 | B188: Quad | C188: 113 | L188: 2017-11-06 | M188: V Rang | N188: 167
A189: 2017-11-08 | B189: Yanaki | C189: 186 | L189: 2017-11-07 | M189: Sunset | N189: 70
A190: 2017-11-04 | B190: Yanaki | C190: 102 | L190: 2017-11-04 | M190: Sunset | N190: 72
A191: 2017-11-01 | B191: Sunset | C191: 77 | L191: 2017-11-08 | M191: Yanaki | N191: 103
A192: 2017-11-04 | B192: Sunset | C192: 4 | L192: 2017-11-05 | M192: Sunset | N192: 88
A193: 2017-11-06 | B193: V Rang | C193: 127 | L193: 2017-11-04 | M193: Sunset | N193: 134
A194: 2017-11-08 | B194: Sunset | C194: 172 | L194: 2017-11-06 | M194: Yanaki | N194: 40
A195: 2017-11-01 | B195: Yanaki | C195: 86 | L195: 2017-11-02 | M195: V Rang | N195: 19
A196: 2017-11-05 | B196: V Rang | C196: 177 | L196: 2017-11-04 | M196: Yanaki | N196: 6
A197: 2017-11-02 | B197: Yanaki | C197: 103 | L197: 2017-11-05 | M197: Yanaki | N197: 93
A198: 2017-11-04 | B198: V Rang | C198: 84 | L198: 2017-11-06 | M198: Yanaki | N198: 147
A199: 2017-11-05 | B199: Yanaki | C199: 118 | L199: 2017-11-07 | M199: V Rang | N199: 37
A200: 2017-11-07 | B200: Sunset | C200: 66 | L200: 2017-11-06 | M200: V Rang | N200: 8
A201: 2017-11-03 | B201: Yanaki | C201: 168 | L201: 2017-11-05 | M201: Quad | N201: 137
... 435 more rows

Sheet SUM (an)
A1: Example 4: Excel Table feature for Other Formulas | P1: New Records:
A3: Date | B3: Product | C3: Units Sold | F3: Total | G3: Max
A4: 2017-11-06 | B4: Sunset | C4: 190 | F4: =SUM(ProductUnitsTableAnswer[Units Sold]) -> 93046 | G4: =MAX(ProductUnitsTableAnswer[Units Sold]) -> 191 | P4: 2017-11-05 | Q4: Sunset | R4: 139
A5: 2017-11-01 | B5: Sunset | C5: 138 | P5: 2017-11-04 | Q5: Quad | R5: 167
A6: 2017-11-04 | B6: Quad | C6: 12 | P6: 2017-11-05 | Q6: Sunset | R6: 191
A7: 2017-11-02 | B7: V Rang | C7: 45 | P7: 2017-11-01 | Q7: V Rang | R7: 84
A8: 2017-11-04 | B8: Sunset | C8: 187 | P8: 2017-11-04 | Q8: V Rang | R8: 102
A9: 2017-11-03 | B9: V Rang | C9: 29 | P9: 2017-11-01 | Q9: Quad | R9: 100
A10: 2017-11-07 | B10: V Rang | C10: 106 | P10: 2017-11-05 | Q10: V Rang | R10: 107
A11: 2017-11-02 | B11: Sunset | C11: 147 | P11: 2017-11-05 | Q11: V Rang | R11: 1
A12: 2017-11-04 | B12: Quad | C12: 143 | P12: 2017-11-04 | Q12: Sunset | R12: 92
A13: 2017-11-05 | B13: Yanaki | C13: 33 | P13: 2017-11-05 | Q13: Sunset | R13: 18
A14: 2017-11-06 | B14: Yanaki | C14: 99 | P14: 2017-11-06 | Q14: Sunset | R14: 169
A15: 2017-11-08 | B15: Sunset | C15: 35 | P15: 2017-11-06 | Q15: V Rang | R15: 129
A16: 2017-11-06 | B16: Yanaki | C16: 21 | P16: 2017-11-03 | Q16: V Rang | R16: 30
A17: 2017-11-08 | B17: Quad | C17: 60 | P17: 2017-11-02 | Q17: Sunset | R17: 12
A18: 2017-11-06 | B18: Sunset | C18: 132 | P18: 2017-11-05 | Q18: Sunset | R18: 59
A19: 2017-11-08 | B19: V Rang | C19: 156 | P19: 2017-11-08 | Q19: Quad | R19: 120
A20: 2017-11-06 | B20: V Rang | C20: 120 | P20: 2017-11-04 | Q20: Quad | R20: 72
A21: 2017-11-04 | B21: Yanaki | C21: 55 | P21: 2017-11-06 | Q21: V Rang | R21: 111
A22: 2017-11-03 | B22: Yanaki | C22: 165 | P22: 2017-11-01 | Q22: V Rang | R22: 182
A23: 2017-11-07 | B23: Yanaki | C23: 124 | P23: 2017-11-02 | Q23: Quad | R23: 175
A24: 2017-11-07 | B24: V Rang | C24: 155 | P24: 2017-11-04 | Q24: Sunset | R24: 8
A25: 2017-11-06 | B25: Sunset | C25: 33 | P25: 2017-11-02 | Q25: V Rang | R25: 69
A26: 2017-11-08 | B26: Yanaki | C26: 76 | P26: 2017-11-05 | Q26: Sunset | R26: 60
A27: 2017-11-05 | B27: Yanaki | C27: 49 | P27: 2017-11-07 | Q27: Sunset | R27: 25
A28: 2017-11-03 | B28: V Rang | C28: 26 | P28: 2017-11-06 | Q28: Yanaki | R28: 118
A29: 2017-11-02 | B29: Yanaki | C29: 30 | P29: 2017-11-06 | Q29: Quad | R29: 63
A30: 2017-11-03 | B30: Quad | C30: 116 | P30: 2017-11-08 | Q30: Quad | R30: 123
A31: 2017-11-02 | B31: Sunset | C31: 45 | P31: 2017-11-03 | Q31: Yanaki | R31: 90
A32: 2017-11-02 | B32: V Rang | C32: 47 | P32: 2017-11-08 | Q32: Yanaki | R32: 41
A33: 2017-11-05 | B33: Quad | C33: 113 | P33: 2017-11-08 | Q33: Quad | R33: 162
A34: 2017-11-04 | B34: Quad | C34: 70 | P34: 2017-11-07 | Q34: Sunset | R34: 9
A35: 2017-11-04 | B35: Quad | C35: 173 | P35: 2017-11-07 | Q35: Sunset | R35: 161
A36: 2017-11-05 | B36: Sunset | C36: 54 | P36: 2017-11-07 | Q36: V Rang | R36: 30
A37: 2017-11-02 | B37: Sunset | C37: 122 | P37: 2017-11-05 | Q37: Sunset | R37: 120
A38: 2017-11-01 | B38: V Rang | C38: 3 | P38: 2017-11-05 | Q38: Yanaki | R38: 39
A39: 2017-11-03 | B39: Yanaki | C39: 122 | P39: 2017-11-08 | Q39: Sunset | R39: 131
A40: 2017-11-02 | B40: Yanaki | C40: 81 | P40: 2017-11-06 | Q40: V Rang | R40: 90
A41: 2017-11-06 | B41: Yanaki | C41: 21 | P41: 2017-11-05 | Q41: Quad | R41: 171
A42: 2017-11-03 | B42: Sunset | C42: 144 | P42: 2017-11-06 | Q42: Quad | R42: 158
A43: 2017-11-07 | B43: V Rang | C43: 139 | P43: 2017-11-02 | Q43: Quad | R43: 130
A44: 2017-11-03 | B44: V Rang | C44: 105 | P44: 2017-11-07 | Q44: V Rang | R44: 149
A45: 2017-11-04 | B45: Sunset | C45: 14 | P45: 2017-11-08 | Q45: Sunset | R45: 143
A46: 2017-11-04 | B46: Sunset | C46: 95 | P46: 2017-11-01 | Q46: V Rang | R46: 48
A47: 2017-11-03 | B47: Quad | C47: 142 | P47: 2017-11-05 | Q47: Yanaki | R47: 17
A48: 2017-11-01 | B48: V Rang | C48: 150 | P48: 2017-11-03 | Q48: Quad | R48: 35
A49: 2017-11-06 | B49: Yanaki | C49: 79 | P49: 2017-11-05 | Q49: Sunset | R49: 168
A50: 2017-11-01 | B50: V Rang | C50: 57 | P50: 2017-11-02 | Q50: Sunset | R50: 106
A51: 2017-11-04 | B51: V Rang | C51: 62 | P51: 2017-11-05 | Q51: Yanaki | R51: 36
A52: 2017-11-02 | B52: V Rang | C52: 177 | P52: 2017-11-02 | Q52: Yanaki | R52: 19
A53: 2017-11-05 | B53: Sunset | C53: 165 | P53: 2017-11-05 | Q53: Yanaki | R53: 173
A54: 2017-11-02 | B54: Yanaki | C54: 37 | P54: 2017-11-03 | Q54: Quad | R54: 66
A55: 2017-11-05 | B55: Yanaki | C55: 181 | P55: 2017-11-06 | Q55: Yanaki | R55: 25
A56: 2017-11-04 | B56: Yanaki | C56: 148 | P56: 2017-11-04 | Q56: Sunset | R56: 47
A57: 2017-11-08 | B57: Sunset | C57: 132 | P57: 2017-11-08 | Q57: Sunset | R57: 49
A58: 2017-11-06 | B58: V Rang | C58: 3 | P58: 2017-11-08 | Q58: Quad | R58: 1
A59: 2017-11-01 | B59: V Rang | C59: 121 | P59: 2017-11-03 | Q59: V Rang | R59: 75
A60: 2017-11-08 | B60: Yanaki | C60: 104 | P60: 2017-11-06 | Q60: Sunset | R60: 137
A61: 2017-11-08 | B61: Yanaki | C61: 155 | P61: 2017-11-01 | Q61: V Rang | R61: 101
A62: 2017-11-06 | B62: V Rang | C62: 129 | P62: 2017-11-07 | Q62: Quad | R62: 11
A63: 2017-11-01 | B63: V Rang | C63: 72 | P63: 2017-11-03 | Q63: Yanaki | R63: 42
A64: 2017-11-05 | B64: Quad | C64: 164 | P64: 2017-11-01 | Q64: Sunset | R64: 185
A65: 2017-11-03 | B65: V Rang | C65: 6 | P65: 2017-11-04 | Q65: Sunset | R65: 160
A66: 2017-11-01 | B66: Yanaki | C66: 46 | P66: 2017-11-04 | Q66: Sunset | R66: 7
A67: 2017-11-08 | B67: V Rang | C67: 182 | P67: 2017-11-05 | Q67: V Rang | R67: 1
A68: 2017-11-02 | B68: V Rang | C68: 11 | P68: 2017-11-06 | Q68: Sunset | R68: 80
A69: 2017-11-08 | B69: Quad | C69: 18 | P69: 2017-11-08 | Q69: Quad | R69: 117
A70: 2017-11-06 | B70: V Rang | C70: 152 | P70: 2017-11-02 | Q70: Yanaki | R70: 37
A71: 2017-11-01 | B71: Yanaki | C71: 41 | P71: 2017-11-01 | Q71: Sunset | R71: 179
A72: 2017-11-06 | B72: V Rang | C72: 11 | P72: 2017-11-07 | Q72: Quad | R72: 60
A73: 2017-11-08 | B73: V Rang | C73: 148 | P73: 2017-11-04 | Q73: Yanaki | R73: 60
A74: 2017-11-05 | B74: V Rang | C74: 154 | P74: 2017-11-05 | Q74: Quad | R74: 79
A75: 2017-11-02 | B75: Yanaki | C75: 115 | P75: 2017-11-08 | Q75: Quad | R75: 63
A76: 2017-11-07 | B76: Quad | C76: 122 | P76: 2017-11-01 | Q76: Sunset | R76: 145
A77: 2017-11-08 | B77: V Rang | C77: 3 | P77: 2017-11-06 | Q77: V Rang | R77: 39
A78: 2017-11-07 | B78: Quad | C78: 26 | P78: 2017-11-04 | Q78: Quad | R78: 117
A79: 2017-11-04 | B79: Sunset | C79: 162 | P79: 2017-11-05 | Q79: Yanaki | R79: 127
A80: 2017-11-07 | B80: Quad | C80: 21 | P80: 2017-11-08 | Q80: Quad | R80: 13
A81: 2017-11-03 | B81: Quad | C81: 42 | P81: 2017-11-05 | Q81: Quad | R81: 92
A82: 2017-11-05 | B82: Sunset | C82: 82 | P82: 2017-11-08 | Q82: Quad | R82: 147
A83: 2017-11-07 | B83: V Rang | C83: 78 | P83: 2017-11-02 | Q83: Sunset | R83: 175
A84: 2017-11-08 | B84: Yanaki | C84: 127 | P84: 2017-11-02 | Q84: Quad | R84: 165
A85: 2017-11-01 | B85: Quad | C85: 64 | P85: 2017-11-02 | Q85: Sunset | R85: 10
A86: 2017-11-05 | B86: Quad | C86: 152 | P86: 2017-11-03 | Q86: Yanaki | R86: 110
A87: 2017-11-03 | B87: V Rang | C87: 53 | P87: 2017-11-01 | Q87: Quad | R87: 133
A88: 2017-11-05 | B88: Quad | C88: 11 | P88: 2017-11-02 | Q88: Sunset | R88: 191
A89: 2017-11-04 | B89: Sunset | C89: 170 | P89: 2017-11-04 | Q89: Quad | R89: 123
A90: 2017-11-02 | B90: V Rang | C90: 170 | P90: 2017-11-07 | Q90: Yanaki | R90: 26
A91: 2017-11-08 | B91: Yanaki | C91: 31 | P91: 2017-11-08 | Q91: Quad | R91: 88
A92: 2017-11-02 | B92: Quad | C92: 7 | P92: 2017-11-07 | Q92: Yanaki | R92: 119
A93: 2017-11-07 | B93: Quad | C93: 175 | P93: 2017-11-04 | Q93: Quad | R93: 78
A94: 2017-11-08 | B94: Yanaki | C94: 107 | P94: 2017-11-01 | Q94: V Rang | R94: 141
A95: 2017-11-07 | B95: V Rang | C95: 123 | P95: 2017-11-01 | Q95: Sunset | R95: 187
A96: 2017-11-06 | B96: V Rang | C96: 21 | P96: 2017-11-04 | Q96: Quad | R96: 2
A97: 2017-11-01 | B97: Yanaki | C97: 8 | P97: 2017-11-05 | Q97: Sunset | R97: 163
A98: 2017-11-03 | B98: Sunset | C98: 115 | P98: 2017-11-06 | Q98: Quad | R98: 106
A99: 2017-11-04 | B99: V Rang | C99: 50 | P99: 2017-11-05 | Q99: V Rang | R99: 9
A100: 2017-11-08 | B100: V Rang | C100: 121 | P100: 2017-11-01 | Q100: Quad | R100: 70
A101: 2017-11-02 | B101: V Rang | C101: 35 | P101: 2017-11-05 | Q101: Sunset | R101: 88
A102: 2017-11-05 | B102: Sunset | C102: 106 | P102: 2017-11-01 | Q102: Quad | R102: 129
A103: 2017-11-02 | B103: V Rang | C103: 125 | P103: 2017-11-01 | Q103: Quad | R103: 50
A104: 2017-11-01 | B104: V Rang | C104: 182 | P104: 2017-11-02 | Q104: Quad | R104: 158
A105: 2017-11-07 | B105: Quad | C105: 98 | P105: 2017-11-07 | Q105: Sunset | R105: 166
A106: 2017-11-03 | B106: V Rang | C106: 80 | P106: 2017-11-08 | Q106: V Rang | R106: 151
A107: 2017-11-05 | B107: Yanaki | C107: 18 | P107: 2017-11-03 | Q107: V Rang | R107: 110
A108: 2017-11-04 | B108: V Rang | C108: 80 | P108: 2017-11-01 | Q108: Sunset | R108: 13
A109: 2017-11-02 | B109: Sunset | C109: 52 | P109: 2017-11-01 | Q109: Quad | R109: 85
A110: 2017-11-03 | B110: Quad | C110: 52 | P110: 2017-11-07 | Q110: V Rang | R110: 74
A111: 2017-11-06 | B111: Sunset | C111: 119 | P111: 2017-11-05 | Q111: Quad | R111: 169
A112: 2017-11-08 | B112: V Rang | C112: 129 | P112: 2017-11-05 | Q112: V Rang | R112: 89
A113: 2017-11-08 | B113: V Rang | C113: 141 | P113: 2017-11-03 | Q113: Sunset | R113: 189
A114: 2017-11-08 | B114: Quad | C114: 95 | P114: 2017-11-03 | Q114: V Rang | R114: 138
A115: 2017-11-02 | B115: Sunset | C115: 112 | P115: 2017-11-08 | Q115: Yanaki | R115: 6
A116: 2017-11-04 | B116: Quad | C116: 40 | P116: 2017-11-03 | Q116: V Rang | R116: 133
A117: 2017-11-05 | B117: Quad | C117: 160 | P117: 2017-11-07 | Q117: V Rang | R117: 95
A118: 2017-11-04 | B118: V Rang | C118: 81 | P118: 2017-11-06 | Q118: Yanaki | R118: 133
A119: 2017-11-05 | B119: Quad | C119: 157 | P119: 2017-11-08 | Q119: Quad | R119: 164
A120: 2017-11-07 | B120: Sunset | C120: 12 | P120: 2017-11-07 | Q120: Sunset | R120: 30
A121: 2017-11-01 | B121: V Rang | C121: 117 | P121: 2017-11-07 | Q121: Yanaki | R121: 113
A122: 2017-11-04 | B122: Quad | C122: 118 | P122: 2017-11-04 | Q122: Quad | R122: 3
A123: 2017-11-03 | B123: Sunset | C123: 6 | P123: 2017-11-07 | Q123: V Rang | R123: 167
A124: 2017-11-04 | B124: V Rang | C124: 107 | P124: 2017-11-07 | Q124: Quad | R124: 148
A125: 2017-11-02 | B125: Yanaki | C125: 15 | P125: 2017-11-03 | Q125: V Rang | R125: 167
A126: 2017-11-02 | B126: Yanaki | C126: 7 | P126: 2017-11-08 | Q126: Yanaki | R126: 25
A127: 2017-11-07 | B127: Sunset | C127: 178 | P127: 2017-11-04 | Q127: Sunset | R127: 130
A128: 2017-11-03 | B128: V Rang | C128: 159 | P128: 2017-11-04 | Q128: V Rang | R128: 19
A129: 2017-11-03 | B129: Yanaki | C129: 48 | P129: 2017-11-01 | Q129: Sunset | R129: 33
A130: 2017-11-04 | B130: Quad | C130: 12 | P130: 2017-11-07 | Q130: Quad | R130: 86
A131: 2017-11-02 | B131: Quad | C131: 163 | P131: 2017-11-08 | Q131: V Rang | R131: 50
A132: 2017-11-02 | B132: Yanaki | C132: 133 | P132: 2017-11-05 | Q132: Sunset | R132: 68
A133: 2017-11-03 | B133: V Rang | C133: 63 | P133: 2017-11-02 | Q133: V Rang | R133: 77
A134: 2017-11-01 | B134: Quad | C134: 95 | P134: 2017-11-03 | Q134: Quad | R134: 20
A135: 2017-11-03 | B135: V Rang | C135: 51 | P135: 2017-11-01 | Q135: V Rang | R135: 132
A136: 2017-11-06 | B136: Quad | C136: 75 | P136: 2017-11-08 | Q136: Sunset | R136: 4
A137: 2017-11-04 | B137: V Rang | C137: 174 | P137: 2017-11-06 | Q137: Sunset | R137: 153
A138: 2017-11-01 | B138: V Rang | C138: 150 | P138: 2017-11-08 | Q138: Quad | R138: 29
A139: 2017-11-04 | B139: V Rang | C139: 4 | P139: 2017-11-03 | Q139: V Rang | R139: 98
A140: 2017-11-01 | B140: Quad | C140: 87 | P140: 2017-11-07 | Q140: Yanaki | R140: 89
A141: 2017-11-01 | B141: V Rang | C141: 105 | P141: 2017-11-03 | Q141: Yanaki | R141: 129
A142: 2017-11-06 | B142: V Rang | C142: 129 | P142: 2017-11-07 | Q142: Yanaki | R142: 165
A143: 2017-11-08 | B143: V Rang | C143: 9 | P143: 2017-11-04 | Q143: V Rang | R143: 169
A144: 2017-11-05 | B144: V Rang | C144: 90 | P144: 2017-11-01 | Q144: Sunset | R144: 191
A145: 2017-11-02 | B145: Yanaki | C145: 14 | P145: 2017-11-08 | Q145: Yanaki | R145: 120
A146: 2017-11-02 | B146: Yanaki | C146: 134 | P146: 2017-11-07 | Q146: V Rang | R146: 188
A147: 2017-11-08 | B147: Sunset | C147: 102 | P147: 2017-11-06 | Q147: Sunset | R147: 101
A148: 2017-11-03 | B148: Quad | C148: 46 | P148: 2017-11-05 | Q148: Quad | R148: 73
A149: 2017-11-07 | B149: Quad | C149: 182 | P149: 2017-11-07 | Q149: Sunset | R149: 139
A150: 2017-11-02 | B150: Quad | C150: 190 | P150: 2017-11-03 | Q150: Sunset | R150: 168
A151: 2017-11-06 | B151: Sunset | C151: 13 | P151: 2017-11-07 | Q151: V Rang | R151: 150
A152: 2017-11-06 | B152: Yanaki | C152: 132 | P152: 2017-11-07 | Q152: Quad | R152: 24
A153: 2017-11-08 | B153: Yanaki | C153: 52 | P153: 2017-11-06 | Q153: Sunset | R153: 94
A154: 2017-11-01 | B154: V Rang | C154: 105 | P154: 2017-11-01 | Q154: Yanaki | R154: 171
A155: 2017-11-02 | B155: Sunset | C155: 142 | P155: 2017-11-05 | Q155: V Rang | R155: 119
A156: 2017-11-08 | B156: Sunset | C156: 132 | P156: 2017-11-08 | Q156: Sunset | R156: 157
A157: 2017-11-04 | B157: V Rang | C157: 116 | P157: 2017-11-06 | Q157: V Rang | R157: 46
A158: 2017-11-08 | B158: V Rang | C158: 89 | P158: 2017-11-08 | Q158: V Rang | R158: 191
A159: 2017-11-03 | B159: Quad | C159: 156 | P159: 2017-11-01 | Q159: Sunset | R159: 83
A160: 2017-11-06 | B160: Quad | C160: 136 | P160: 2017-11-03 | Q160: V Rang | R160: 106
A161: 2017-11-04 | B161: Yanaki | C161: 77 | P161: 2017-11-07 | Q161: Sunset | R161: 53
A162: 2017-11-05 | B162: Sunset | C162: 97 | P162: 2017-11-07 | Q162: Yanaki | R162: 178
A163: 2017-11-08 | B163: Yanaki | C163: 121 | P163: 2017-11-05 | Q163: V Rang | R163: 134
A164: 2017-11-02 | B164: Quad | C164: 3 | P164: 2017-11-06 | Q164: Yanaki | R164: 74
A165: 2017-11-04 | B165: Sunset | C165: 56 | P165: 2017-11-01 | Q165: Yanaki | R165: 38
A166: 2017-11-04 | B166: Quad | C166: 177 | P166: 2017-11-04 | Q166: Sunset | R166: 185
A167: 2017-11-04 | B167: Quad | C167: 140 | P167: 2017-11-03 | Q167: V Rang | R167: 145
A168: 2017-11-08 | B168: Yanaki | C168: 173 | P168: 2017-11-07 | Q168: Yanaki | R168: 119
A169: 2017-11-06 | B169: Yanaki | C169: 27 | P169: 2017-11-06 | Q169: Yanaki | R169: 178
A170: 2017-11-04 | B170: Quad | C170: 87 | P170: 2017-11-02 | Q170: V Rang | R170: 171
A171: 2017-11-04 | B171: Yanaki | C171: 20 | P171: 2017-11-01 | Q171: V Rang | R171: 33
A172: 2017-11-04 | B172: Quad | C172: 191 | P172: 2017-11-05 | Q172: Quad | R172: 32
A173: 2017-11-01 | B173: Quad | C173: 70 | P173: 2017-11-06 | Q173: Sunset | R173: 24
A174: 2017-11-04 | B174: V Rang | C174: 186 | P174: 2017-11-04 | Q174: Sunset | R174: 166
A175: 2017-11-04 | B175: Yanaki | C175: 126 | P175: 2017-11-04 | Q175: Quad | R175: 107
A176: 2017-11-01 | B176: V Rang | C176: 3 | P176: 2017-11-01 | Q176: Quad | R176: 179
A177: 2017-11-04 | B177: Yanaki | C177: 92 | P177: 2017-11-04 | Q177: Quad | R177: 164
A178: 2017-11-04 | B178: Sunset | C178: 3 | P178: 2017-11-06 | Q178: Yanaki | R178: 175
A179: 2017-11-05 | B179: Quad | C179: 82 | P179: 2017-11-04 | Q179: Sunset | R179: 55
A180: 2017-11-01 | B180: Quad | C180: 99 | P180: 2017-11-07 | Q180: Yanaki | R180: 165
A181: 2017-11-06 | B181: Yanaki | C181: 131 | P181: 2017-11-08 | Q181: Sunset | R181: 142
A182: 2017-11-01 | B182: Sunset | C182: 175 | P182: 2017-11-02 | Q182: Yanaki | R182: 67
A183: 2017-11-04 | B183: Quad | C183: 41 | P183: 2017-11-07 | Q183: Yanaki | R183: 73
A184: 2017-11-04 | B184: V Rang | C184: 14 | P184: 2017-11-05 | Q184: V Rang | R184: 21
A185: 2017-11-06 | B185: Sunset | C185: 122 | P185: 2017-11-08 | Q185: Yanaki | R185: 40
A186: 2017-11-02 | B186: Sunset | C186: 48 | P186: 2017-11-03 | Q186: V Rang | R186: 175
A187: 2017-11-03 | B187: Yanaki | C187: 57 | P187: 2017-11-01 | Q187: Sunset | R187: 187
A188: 2017-11-08 | B188: Quad | C188: 113 | P188: 2017-11-06 | Q188: V Rang | R188: 167
A189: 2017-11-08 | B189: Yanaki | C189: 186 | P189: 2017-11-07 | Q189: Sunset | R189: 70
A190: 2017-11-04 | B190: Yanaki | C190: 102 | P190: 2017-11-04 | Q190: Sunset | R190: 72
A191: 2017-11-01 | B191: Sunset | C191: 77 | P191: 2017-11-08 | Q191: Yanaki | R191: 103
A192: 2017-11-04 | B192: Sunset | C192: 4 | P192: 2017-11-05 | Q192: Sunset | R192: 88
A193: 2017-11-06 | B193: V Rang | C193: 127 | P193: 2017-11-04 | Q193: Sunset | R193: 134
A194: 2017-11-08 | B194: Sunset | C194: 172 | P194: 2017-11-06 | Q194: Yanaki | R194: 40
A195: 2017-11-01 | B195: Yanaki | C195: 86 | P195: 2017-11-02 | Q195: V Rang | R195: 19
A196: 2017-11-05 | B196: V Rang | C196: 177 | P196: 2017-11-04 | Q196: Yanaki | R196: 6
A197: 2017-11-02 | B197: Yanaki | C197: 103 | P197: 2017-11-05 | Q197: Yanaki | R197: 93
A198: 2017-11-04 | B198: V Rang | C198: 84 | P198: 2017-11-06 | Q198: Yanaki | R198: 147
A199: 2017-11-05 | B199: Yanaki | C199: 118 | P199: 2017-11-07 | Q199: V Rang | R199: 37
A200: 2017-11-07 | B200: Sunset | C200: 66 | P200: 2017-11-06 | Q200: V Rang | R200: 8
A201: 2017-11-03 | B201: Yanaki | C201: 168 | P201: 2017-11-05 | Q201: Quad | R201: 137
... 757 more rows

Sheet New Column & VLOOKUP
A1: The below Sales Table has already been converted to an Excel Table. | AM1: Units | AN1: Discount
A2: Add a New Column to the Table to show the Quantity Discount. The steps for adding this column are as follows: | AM2: 0 | AN2: 0
A3: 1) The Quantity Discount is given based on the Number of Units Purchased. | AM3: 12 | AN3: 0.25
A4: ="If the customer purchased between "&AM3&" and "&AM4-1&" units, then they get a "&TEXT(AN3,"0.00%")&" discount." -> If the customer purchased between 12 and 47 units, then they get a 25.00% discount. | AM4: 48 | AN4: 0.375
A5: ="If the customer purchased between "&AM4&" and "&AM5-1&" units, then they get a "&TEXT(AN4,"0.00%")&" discount." -> If the customer purchased between 48 and 95 units, then they get a 37.50% discount. | AM5: 96 | AN5: 0.4375
A6: ="If the customer purchased between "&AM5&" and "&AM6-1&" units, then they get a "&TEXT(AN5,"0.00%")&" discount." -> If the customer purchased between 96 and 143 units, then they get a 43.75% discount. | AM6: 144 | AN6: 0.5
A7: ="If the customer purchased "&AM6&" or more units, then they get a "&TEXT(AN6,"0.00%")&" discount." -> If the customer purchased 144 or more units, then they get a 50.00% discount.
A8: 2) Set the Discount Table up so that you can use the VLOOKUP Function to do an Approximate Match Lookup.
A9: Remember: that in order to do Approximate Match Lookup, the 1st Column of the Lookup Table must be sorted Small to Large (A to Z)
A10: 3) Convert the Discount Table to an Excel Table | M10: New Records:
A11: =""&ROWS(A$11:A11)+3&") In Cell "&ADDRESS(ROW(RevenueTable[[#Headers],[Total Revenue]]),COLUMN(RevenueTable[[#Headers],[Total Revenue]]),4)&" type the Column Name 'Discount on Total Revenue'" -> 4) In Cell E19 type the Column Name 'Discount on Total Revenue'
A12: =""&ROWS(A$11:A12)+3&") In Cell "&ADDRESS(ROW(E20),COLUMN(E20),4)&" create Approximate Match VLOOKUP Formula to show discount" -> 5) In Cell E20 create Approximate Match VLOOKUP Formula to show discount
A13: Add a second Column to the Excel Table that calculates Net Revenue: Total Revenue * (1-Discount). Hint" Do we need to round? | M13: 2017-11-03 | N13: Sunset | O13: 15 | P13: 22.95 | Q13: 344.25
M14: 2017-11-01 | N14: Quad | O14: 46 | P14: 22.95 | Q14: 1055.7
M15: 2017-11-07 | N15: Sunset | O15: 17 | P15: 43.95 | Q15: 747.15
A17: Example 5: Add New Column to an Excel Table AND Create Approximate Match Lookup Table from a written statement.
A19: Date | B19: Product | C19: Units Sold | D19: Price Each | E19: Total Revenue
A20: 2017-11-06 | B20: Sunset | C20: 190 | D20: 22.95 | E20: 4360.5
A21: 2017-11-01 | B21: Sunset | C21: 138 | D21: 22.95 | E21: 3167.1
A22: 2017-11-04 | B22: Quad | C22: 12 | D22: 43.95 | E22: 527.4
A23: 2017-11-02 | B23: V Rang | C23: 45 | D23: 14.95 | E23: 672.75
A24: 2017-11-04 | B24: Sunset | C24: 187 | D24: 22.95 | E24: 4291.65
A25: 2017-11-03 | B25: V Rang | C25: 29 | D25: 14.95 | E25: 433.55
A26: 2017-11-07 | B26: V Rang | C26: 106 | D26: 14.95 | E26: 1584.7
A27: 2017-11-02 | B27: Sunset | C27: 147 | D27: 22.95 | E27: 3373.65
A28: 2017-11-04 | B28: Quad | C28: 143 | D28: 43.95 | E28: 6284.85
A29: 2017-11-05 | B29: Yanaki | C29: 33 | D29: 21.95 | E29: 724.35
A30: 2017-11-06 | B30: Yanaki | C30: 99 | D30: 21.95 | E30: 2173.05
A31: 2017-11-08 | B31: Sunset | C31: 35 | D31: 22.95 | E31: 803.25
A32: 2017-11-06 | B32: Yanaki | C32: 21 | D32: 21.95 | E32: 460.95
A33: 2017-11-08 | B33: Quad | C33: 60 | D33: 43.95 | E33: 2637
A34: 2017-11-06 | B34: Sunset | C34: 132 | D34: 22.95 | E34: 3029.4
A35: 2017-11-08 | B35: V Rang | C35: 156 | D35: 14.95 | E35: 2332.2
A36: 2017-11-06 | B36: V Rang | C36: 120 | D36: 14.95 | E36: 1794
A37: 2017-11-04 | B37: Yanaki | C37: 55 | D37: 21.95 | E37: 1207.25
A38: 2017-11-03 | B38: Yanaki | C38: 165 | D38: 21.95 | E38: 3621.75
A39: 2017-11-07 | B39: Yanaki | C39: 124 | D39: 21.95 | E39: 2721.8
A40: 2017-11-07 | B40: V Rang | C40: 155 | D40: 14.95 | E40: 2317.25
A41: 2017-11-06 | B41: Sunset | C41: 33 | D41: 22.95 | E41: 757.35
A42: 2017-11-08 | B42: Yanaki | C42: 76 | D42: 21.95 | E42: 1668.2
A43: 2017-11-05 | B43: Yanaki | C43: 49 | D43: 21.95 | E43: 1075.55
A44: 2017-11-03 | B44: V Rang | C44: 26 | D44: 14.95 | E44: 388.7
A45: 2017-11-02 | B45: Yanaki | C45: 30 | D45: 21.95 | E45: 658.5
A46: 2017-11-03 | B46: Quad | C46: 116 | D46: 43.95 | E46: 5098.2
A47: 2017-11-02 | B47: Sunset | C47: 45 | D47: 22.95 | E47: 1032.75
A48: 2017-11-02 | B48: V Rang | C48: 47 | D48: 14.95 | E48: 702.65
A49: 2017-11-05 | B49: Quad | C49: 113 | D49: 43.95 | E49: 4966.35
A50: 2017-11-04 | B50: Quad | C50: 70 | D50: 43.95 | E50: 3076.5
A51: 2017-11-04 | B51: Quad | C51: 173 | D51: 43.95 | E51: 7603.35
A52: 2017-11-05 | B52: Sunset | C52: 54 | D52: 22.95 | E52: 1239.3
A53: 2017-11-02 | B53: Sunset | C53: 122 | D53: 22.95 | E53: 2799.9
A54: 2017-11-01 | B54: V Rang | C54: 3 | D54: 14.95 | E54: 44.85
A55: 2017-11-03 | B55: Yanaki | C55: 122 | D55: 21.95 | E55: 2677.9
A56: 2017-11-02 | B56: Yanaki | C56: 81 | D56: 21.95 | E56: 1777.95
A57: 2017-11-06 | B57: Yanaki | C57: 21 | D57: 21.95 | E57: 460.95
A58: 2017-11-03 | B58: Sunset | C58: 144 | D58: 22.95 | E58: 3304.8
A59: 2017-11-07 | B59: V Rang | C59: 139 | D59: 14.95 | E59: 2078.05
A60: 2017-11-03 | B60: V Rang | C60: 105 | D60: 14.95 | E60: 1569.75
A61: 2017-11-04 | B61: Sunset | C61: 14 | D61: 22.95 | E61: 321.3
A62: 2017-11-04 | B62: Sunset | C62: 95 | D62: 22.95 | E62: 2180.25
A63: 2017-11-03 | B63: Quad | C63: 142 | D63: 43.95 | E63: 6240.9
A64: 2017-11-01 | B64: V Rang | C64: 150 | D64: 14.95 | E64: 2242.5
A65: 2017-11-06 | B65: Yanaki | C65: 79 | D65: 21.95 | E65: 1734.05
A66: 2017-11-01 | B66: V Rang | C66: 57 | D66: 14.95 | E66: 852.15
A67: 2017-11-04 | B67: V Rang | C67: 62 | D67: 14.95 | E67: 926.9
A68: 2017-11-02 | B68: V Rang | C68: 177 | D68: 14.95 | E68: 2646.15
A69: 2017-11-05 | B69: Sunset | C69: 165 | D69: 22.95 | E69: 3786.75
A70: 2017-11-02 | B70: Yanaki | C70: 37 | D70: 21.95 | E70: 812.15
A71: 2017-11-05 | B71: Yanaki | C71: 181 | D71: 21.95 | E71: 3972.95
A72: 2017-11-04 | B72: Yanaki | C72: 148 | D72: 21.95 | E72: 3248.6
A73: 2017-11-08 | B73: Sunset | C73: 132 | D73: 22.95 | E73: 3029.4
A74: 2017-11-06 | B74: V Rang | C74: 3 | D74: 14.95 | E74: 44.85
A75: 2017-11-01 | B75: V Rang | C75: 121 | D75: 14.95 | E75: 1808.95
A76: 2017-11-08 | B76: Yanaki | C76: 104 | D76: 21.95 | E76: 2282.8
A77: 2017-11-08 | B77: Yanaki | C77: 155 | D77: 21.95 | E77: 3402.25
A78: 2017-11-06 | B78: V Rang | C78: 129 | D78: 14.95 | E78: 1928.55
A79: 2017-11-01 | B79: V Rang | C79: 72 | D79: 14.95 | E79: 1076.4
A80: 2017-11-05 | B80: Quad | C80: 164 | D80: 43.95 | E80: 7207.8
A81: 2017-11-03 | B81: V Rang | C81: 6 | D81: 14.95 | E81: 89.7
A82: 2017-11-01 | B82: Yanaki | C82: 46 | D82: 21.95 | E82: 1009.7
A83: 2017-11-08 | B83: V Rang | C83: 182 | D83: 14.95 | E83: 2720.9
A84: 2017-11-02 | B84: V Rang | C84: 11 | D84: 14.95 | E84: 164.45
A85: 2017-11-08 | B85: Quad | C85: 18 | D85: 43.95 | E85: 791.1
A86: 2017-11-06 | B86: V Rang | C86: 152 | D86: 14.95 | E86: 2272.4
A87: 2017-11-01 | B87: Yanaki | C87: 41 | D87: 21.95 | E87: 899.95
A88: 2017-11-06 | B88: V Rang | C88: 11 | D88: 14.95 | E88: 164.45
A89: 2017-11-08 | B89: V Rang | C89: 148 | D89: 14.95 | E89: 2212.6
A90: 2017-11-05 | B90: V Rang | C90: 154 | D90: 14.95 | E90: 2302.3
A91: 2017-11-02 | B91: Yanaki | C91: 115 | D91: 21.95 | E91: 2524.25
A92: 2017-11-07 | B92: Quad | C92: 122 | D92: 43.95 | E92: 5361.9
A93: 2017-11-08 | B93: V Rang | C93: 3 | D93: 14.95 | E93: 44.85
A94: 2017-11-07 | B94: Quad | C94: 26 | D94: 43.95 | E94: 1142.7
A95: 2017-11-04 | B95: Sunset | C95: 162 | D95: 22.95 | E95: 3717.9
A96: 2017-11-07 | B96: Quad | C96: 21 | D96: 43.95 | E96: 922.95
A97: 2017-11-03 | B97: Quad | C97: 42 | D97: 43.95 | E97: 1845.9
A98: 2017-11-05 | B98: Sunset | C98: 82 | D98: 22.95 | E98: 1881.9
A99: 2017-11-07 | B99: V Rang | C99: 78 | D99: 14.95 | E99: 1166.1
A100: 2017-11-08 | B100: Yanaki | C100: 127 | D100: 21.95 | E100: 2787.65
A101: 2017-11-01 | B101: Quad | C101: 64 | D101: 43.95 | E101: 2812.8
A102: 2017-11-05 | B102: Quad | C102: 152 | D102: 43.95 | E102: 6680.4
A103: 2017-11-03 | B103: V Rang | C103: 53 | D103: 14.95 | E103: 792.35
A104: 2017-11-05 | B104: Quad | C104: 11 | D104: 43.95 | E104: 483.45
A105: 2017-11-04 | B105: Sunset | C105: 170 | D105: 22.95 | E105: 3901.5
A106: 2017-11-02 | B106: V Rang | C106: 170 | D106: 14.95 | E106: 2541.5
A107: 2017-11-08 | B107: Yanaki | C107: 31 | D107: 21.95 | E107: 680.45
A108: 2017-11-02 | B108: Quad | C108: 7 | D108: 43.95 | E108: 307.65
A109: 2017-11-07 | B109: Quad | C109: 175 | D109: 43.95 | E109: 7691.25
A110: 2017-11-08 | B110: Yanaki | C110: 107 | D110: 21.95 | E110: 2348.65
A111: 2017-11-07 | B111: V Rang | C111: 123 | D111: 14.95 | E111: 1838.85
A112: 2017-11-06 | B112: V Rang | C112: 21 | D112: 14.95 | E112: 313.95
A113: 2017-11-01 | B113: Yanaki | C113: 8 | D113: 21.95 | E113: 175.6
A114: 2017-11-03 | B114: Sunset | C114: 115 | D114: 22.95 | E114: 2639.25
A115: 2017-11-04 | B115: V Rang | C115: 50 | D115: 14.95 | E115: 747.5
A116: 2017-11-08 | B116: V Rang | C116: 121 | D116: 14.95 | E116: 1808.95
A117: 2017-11-02 | B117: V Rang | C117: 35 | D117: 14.95 | E117: 523.25
A118: 2017-11-05 | B118: Sunset | C118: 106 | D118: 22.95 | E118: 2432.7
A119: 2017-11-02 | B119: V Rang | C119: 125 | D119: 14.95 | E119: 1868.75
A120: 2017-11-01 | B120: V Rang | C120: 182 | D120: 14.95 | E120: 2720.9
A121: 2017-11-07 | B121: Quad | C121: 98 | D121: 43.95 | E121: 4307.1
A122: 2017-11-03 | B122: V Rang | C122: 80 | D122: 14.95 | E122: 1196
A123: 2017-11-05 | B123: Yanaki | C123: 18 | D123: 21.95 | E123: 395.1
A124: 2017-11-04 | B124: V Rang | C124: 80 | D124: 14.95 | E124: 1196
A125: 2017-11-02 | B125: Sunset | C125: 52 | D125: 22.95 | E125: 1193.4
A126: 2017-11-03 | B126: Quad | C126: 52 | D126: 43.95 | E126: 2285.4
A127: 2017-11-06 | B127: Sunset | C127: 119 | D127: 22.95 | E127: 2731.05
A128: 2017-11-08 | B128: V Rang | C128: 129 | D128: 14.95 | E128: 1928.55
A129: 2017-11-08 | B129: V Rang | C129: 141 | D129: 14.95 | E129: 2107.95
A130: 2017-11-08 | B130: Quad | C130: 95 | D130: 43.95 | E130: 4175.25
A131: 2017-11-02 | B131: Sunset | C131: 112 | D131: 22.95 | E131: 2570.4
A132: 2017-11-04 | B132: Quad | C132: 40 | D132: 43.95 | E132: 1758
A133: 2017-11-05 | B133: Quad | C133: 160 | D133: 43.95 | E133: 7032
A134: 2017-11-04 | B134: V Rang | C134: 81 | D134: 14.95 | E134: 1210.95
A135: 2017-11-05 | B135: Quad | C135: 157 | D135: 43.95 | E135: 6900.15
A136: 2017-11-07 | B136: Sunset | C136: 12 | D136: 22.95 | E136: 275.4
A137: 2017-11-01 | B137: V Rang | C137: 117 | D137: 14.95 | E137: 1749.15
A138: 2017-11-04 | B138: Quad | C138: 118 | D138: 43.95 | E138: 5186.1
A139: 2017-11-03 | B139: Sunset | C139: 6 | D139: 22.95 | E139: 137.7
A140: 2017-11-04 | B140: V Rang | C140: 107 | D140: 14.95 | E140: 1599.65
A141: 2017-11-02 | B141: Yanaki | C141: 15 | D141: 21.95 | E141: 329.25
A142: 2017-11-02 | B142: Yanaki | C142: 7 | D142: 21.95 | E142: 153.65
A143: 2017-11-07 | B143: Sunset | C143: 178 | D143: 22.95 | E143: 4085.1
A144: 2017-11-03 | B144: V Rang | C144: 159 | D144: 14.95 | E144: 2377.05
A145: 2017-11-03 | B145: Yanaki | C145: 48 | D145: 21.95 | E145: 1053.6
A146: 2017-11-04 | B146: Quad | C146: 12 | D146: 43.95 | E146: 527.4
A147: 2017-11-02 | B147: Quad | C147: 163 | D147: 43.95 | E147: 7163.85
A148: 2017-11-02 | B148: Yanaki | C148: 133 | D148: 21.95 | E148: 2919.35
A149: 2017-11-03 | B149: V Rang | C149: 63 | D149: 14.95 | E149: 941.85
A150: 2017-11-01 | B150: Quad | C150: 95 | D150: 43.95 | E150: 4175.25
A151: 2017-11-03 | B151: V Rang | C151: 51 | D151: 14.95 | E151: 762.45
A152: 2017-11-06 | B152: Quad | C152: 75 | D152: 43.95 | E152: 3296.25
A153: 2017-11-04 | B153: V Rang | C153: 174 | D153: 14.95 | E153: 2601.3
A154: 2017-11-01 | B154: V Rang | C154: 150 | D154: 14.95 | E154: 2242.5
A155: 2017-11-04 | B155: V Rang | C155: 4 | D155: 14.95 | E155: 59.8
A156: 2017-11-01 | B156: Quad | C156: 87 | D156: 43.95 | E156: 3823.65
A157: 2017-11-01 | B157: V Rang | C157: 105 | D157: 14.95 | E157: 1569.75
A158: 2017-11-06 | B158: V Rang | C158: 129 | D158: 14.95 | E158: 1928.55
A159: 2017-11-08 | B159: V Rang | C159: 9 | D159: 14.95 | E159: 134.55
A160: 2017-11-05 | B160: V Rang | C160: 90 | D160: 14.95 | E160: 1345.5
A161: 2017-11-02 | B161: Yanaki | C161: 14 | D161: 21.95 | E161: 307.3
A162: 2017-11-02 | B162: Yanaki | C162: 134 | D162: 21.95 | E162: 2941.3
A163: 2017-11-08 | B163: Sunset | C163: 102 | D163: 22.95 | E163: 2340.9
A164: 2017-11-03 | B164: Quad | C164: 46 | D164: 43.95 | E164: 2021.7
A165: 2017-11-07 | B165: Quad | C165: 182 | D165: 43.95 | E165: 7998.9
A166: 2017-11-02 | B166: Quad | C166: 190 | D166: 43.95 | E166: 8350.5
A167: 2017-11-06 | B167: Sunset | C167: 13 | D167: 22.95 | E167: 298.35
A168: 2017-11-06 | B168: Yanaki | C168: 132 | D168: 21.95 | E168: 2897.4
A169: 2017-11-08 | B169: Yanaki | C169: 52 | D169: 21.95 | E169: 1141.4
A170: 2017-11-01 | B170: V Rang | C170: 105 | D170: 14.95 | E170: 1569.75
A171: 2017-11-02 | B171: Sunset | C171: 142 | D171: 22.95 | E171: 3258.9
A172: 2017-11-08 | B172: Sunset | C172: 132 | D172: 22.95 | E172: 3029.4
A173: 2017-11-04 | B173: V Rang | C173: 116 | D173: 14.95 | E173: 1734.2
A174: 2017-11-08 | B174: V Rang | C174: 89 | D174: 14.95 | E174: 1330.55
A175: 2017-11-03 | B175: Quad | C175: 156 | D175: 43.95 | E175: 6856.2
A176: 2017-11-06 | B176: Quad | C176: 136 | D176: 43.95 | E176: 5977.2
A177: 2017-11-04 | B177: Yanaki | C177: 77 | D177: 21.95 | E177: 1690.15
A178: 2017-11-05 | B178: Sunset | C178: 97 | D178: 22.95 | E178: 2226.15
A179: 2017-11-08 | B179: Yanaki | C179: 121 | D179: 21.95 | E179: 2655.95
A180: 2017-11-02 | B180: Quad | C180: 3 | D180: 43.95 | E180: 131.85
A181: 2017-11-04 | B181: Sunset | C181: 56 | D181: 22.95 | E181: 1285.2
A182: 2017-11-04 | B182: Quad | C182: 177 | D182: 43.95 | E182: 7779.15
A183: 2017-11-04 | B183: Quad | C183: 140 | D183: 43.95 | E183: 6153
A184: 2017-11-08 | B184: Yanaki | C184: 173 | D184: 21.95 | E184: 3797.35
A185: 2017-11-06 | B185: Yanaki | C185: 27 | D185: 21.95 | E185: 592.65
A186: 2017-11-04 | B186: Quad | C186: 87 | D186: 43.95 | E186: 3823.65
A187: 2017-11-04 | B187: Yanaki | C187: 20 | D187: 21.95 | E187: 439
A188: 2017-11-04 | B188: Quad | C188: 191 | D188: 43.95 | E188: 8394.45
A189: 2017-11-01 | B189: Quad | C189: 70 | D189: 43.95 | E189: 3076.5
A190: 2017-11-04 | B190: V Rang | C190: 186 | D190: 14.95 | E190: 2780.7
A191: 2017-11-04 | B191: Yanaki | C191: 126 | D191: 21.95 | E191: 2765.7
A192: 2017-11-01 | B192: V Rang | C192: 3 | D192: 14.95 | E192: 44.85
A193: 2017-11-04 | B193: Yanaki | C193: 92 | D193: 21.95 | E193: 2019.4
A194: 2017-11-04 | B194: Sunset | C194: 3 | D194: 22.95 | E194: 68.85
A195: 2017-11-05 | B195: Quad | C195: 82 | D195: 43.95 | E195: 3603.9
A196: 2017-11-01 | B196: Quad | C196: 99 | D196: 43.95 | E196: 4351.05
A197: 2017-11-06 | B197: Yanaki | C197: 131 | D197: 21.95 | E197: 2875.45
A198: 2017-11-01 | B198: Sunset | C198: 175 | D198: 22.95 | E198: 4016.25
A199: 2017-11-04 | B199: Quad | C199: 41 | D199: 43.95 | E199: 1801.95
A200: 2017-11-04 | B200: V Rang | C200: 14 | D200: 14.95 | E200: 209.3
A201: 2017-11-06 | B201: Sunset | C201: 122 | D201: 22.95 | E201: 2799.9
A202: 2017-11-02 | B202: Sunset | C202: 48 | D202: 22.95 | E202: 1101.6
... 450 more rows

Sheet New Column & VLOOKUP (an)
A1: The below Sales Table has already been converted to an Excel Table. | AO1: Units | AP1: Discount
A2: Add a New Column to the Table to show the Quantity Discount. The steps for adding this column are as follows: | AG2: Variables: | AO2: 0 | AP2: 0
A3: 1) The Quantity Discount is given based on the Number of Units Purchased. | AG3: ="Discount Decimal or Percentage = "&F22&" or "&TEXT(F22,"0.00%") -> Discount Decimal or Percentage = 0.25 or 25.00% | AO3: 12 | AP3: 0.25
A4: ="If the customer purchased between "&AO3&" and "&AO4-1&" units, then they get a "&TEXT(AP3,"0.00%")&" discount." -> If the customer purchased between 12 and 47 units, then they get a 25.00% discount. | AG4: =RevenueTableAnswer[[#Headers],[Total Revenue]]&" = "&DOLLAR(E22,0) -> Total Revenue = $527 | AO4: 48 | AP4: 0.375
A5: ="If the customer purchased between "&AO4&" and "&AO5-1&" units, then they get a "&TEXT(AP4,"0.00%")&" discount." -> If the customer purchased between 48 and 95 units, then they get a 37.50% discount. | AG5: Formulas: | AO5: 96 | AP5: 0.4375
A6: ="If the customer purchased between "&AO5&" and "&AO6-1&" units, then they get a "&TEXT(AP5,"0.00%")&" discount." -> If the customer purchased between 96 and 143 units, then they get a 43.75% discount. | AG6: Amount of Discount = Total Revenue * Discount Decimal | AO6: 144 | AP6: 0.5
A7: ="If the customer purchased "&AO6&" or more units, then they get a "&TEXT(AP6,"0.00%")&" discount." -> If the customer purchased 144 or more units, then they get a 50.00% discount. | AG7: =DOLLAR($E$22)&" * "&$F$22&" = "&DOLLAR($E$22*$F$22,2)&" = Amount of Discount" -> $527.40 * 0.25 = $131.85 = Amount of Discount
A8: 2) Set the Discount Table up so that you can use the VLOOKUP Function to do an Approximate Match Lookup. | AG8: Net Revenue = Total Revenue - Amount of Discount
A9: Remember: that in order to do Approximate Match Lookup, the 1st Column of the Lookup Table must be sorted Small to Large (A to Z) | AG9: =DOLLAR($E$22)&" - "&DOLLAR($E$22*$F$22,2)&" = Net Revenue = "&DOLLAR($E$22-$E$22*$F$22,2) -> $527.40 - $131.85 = Net Revenue = $395.55
A10: 3) Convert the Discount Table to an Excel Table | O10: New Records: | AG10: Net Revenue = (1-Decimal Discount) * Total Revenue
A11: =""&ROWS(A$11:A11)+3&") In Cell "&ADDRESS(ROW(RevenueTableAnswer[[#Headers],[Total Revenue]]),COLUMN(RevenueTableAnswer[[#Headers],[Total Revenue]]),4)&" type the Column Name 'Discount on Total Revenue'" -> 4) In Cell E19 type the Column Name 'Discount on Total Revenue' | AG11: =DOLLAR($E$22)&" * (1 - "&$F$22&") = "&" = Net Revenue = "&DOLLAR($E$22-$E$22*$F$22,2) -> $527.40 * (1 - 0.25) = = Net Revenue = $395.55
A12: =""&ROWS(A$11:A12)+3&") In Cell "&ADDRESS(ROW(E20),COLUMN(E20),4)&" create Approximate Match VLOOKUP Formula to show discount" -> 5) In Cell E20 create Approximate Match VLOOKUP Formula to show discount
A13: Add a second Column to the Excel Table that calculates Net Revenue: Total Revenue * (1-Discount). Hint" Do we need to round? | O13: 2017-11-03 | P13: Sunset | Q13: 15 | R13: 22.95 | S13: 344.25
O14: 2017-11-01 | P14: Quad | Q14: 46 | R14: 22.95 | S14: 1055.7
O15: 2017-11-07 | P15: Sunset | Q15: 17 | R15: 43.95 | S15: 747.15
A17: Example 5: Add New Column to an Excel Table AND Create Approximate Match Lookup Table from a written statement.
A19: Date | B19: Product | C19: Units Sold | D19: Price Each | E19: Total Revenue | F19: Discount on Total Revenue | G19: Net Revenue | J19: Units | K19: Discount
A20: 2017-11-06 | B20: Sunset | C20: 190 | D20: 22.95 | E20: 4360.5 | F20: =VLOOKUP(RevenueTableAnswer[[#This Row],[Units Sold]],DiscountTableAnswer[],2) -> 0.55 | G20: =ROUND((1-RevenueTableAnswer[[#This Row],[Discount on Total Revenue]])*RevenueTableAnswer[[#This Row],[Total Revenue]],2) -> 1962.23 | J20: 0 | K20: 0
A21: 2017-11-01 | B21: Sunset | C21: 138 | D21: 22.95 | E21: 3167.1 | F21: =VLOOKUP(RevenueTableAnswer[[#This Row],[Units Sold]],DiscountTableAnswer[],2) -> 0.4375 | G21: =ROUND((1-RevenueTableAnswer[[#This Row],[Discount on Total Revenue]])*RevenueTableAnswer[[#This Row],[Total Revenue]],2) -> 1781.49 | J21: 12 | K21: 0.25
A22: 2017-11-04 | B22: Quad | C22: 12 | D22: 43.95 | E22: 527.4 | F22: =VLOOKUP(RevenueTableAnswer[[#This Row],[Units Sold]],DiscountTableAnswer[],2) -> 0.25 | G22: =ROUND((1-RevenueTableAnswer[[#This Row],[Discount on Total Revenue]])*RevenueTableAnswer[[#This Row],[Total Revenue]],2) -> 395.55 | J22: 48 | K22: 0.375
A23: 2017-11-02 | B23: V Rang | C23: 45 | D23: 14.95 | E23: 672.75 | F23: =VLOOKUP(RevenueTableAnswer[[#This Row],[Units Sold]],DiscountTableAnswer[],2) -> 0.25 | G23: =ROUND((1-RevenueTableAnswer[[#This Row],[Discount on Total Revenue]])*RevenueTableAnswer[[#This Row],[Total Revenue]],2) -> 504.56 | J23: 96 | K23: 0.4375
A24: 2017-11-04 | B24: Sunset | C24: 187 | D24: 22.95 | E24: 4291.65 | F24: =VLOOKUP(RevenueTableAnswer[[#This Row],[Units Sold]],DiscountTableAnswer[],2) -> 0.55 | G24: =ROUND((1-RevenueTableAnswer[[#This Row],[Discount on Total Revenue]])*RevenueTableAnswer[[#This Row],[Total Revenue]],2) -> 1931.24 | J24: 144 | K24: 0.5
A25: 2017-11-03 | B25: V Rang | C25: 29 | D25: 14.95 | E25: 433.55 | F25: =VLOOKUP(RevenueTableAnswer[[#This Row],[Units Sold]],DiscountTableAnswer[],2) -> 0.25 | G25: =ROUND((1-RevenueTableAnswer[[#This Row],[Discount on Total Revenue]])*RevenueTableAnswer[[#This Row],[Total Revenue]],2) -> 325.16 | J25: 168 | K25: 0.55
A26: 2017-11-07 | B26: V Rang | C26: 106 | D26: 14.95 | E26: 1584.7 | F26: =VLOOKUP(RevenueTableAnswer[[#This Row],[Units Sold]],DiscountTableAnswer[],2) -> 0.4375 | G26: =ROUND((1-RevenueTableAnswer[[#This Row],[Discount on Total Revenue]])*RevenueTableAnswer[[#This Row],[Total Revenue]],2) -> 891.39
A27: 2017-11-02 | B27: Sunset | C27: 147 | D27: 22.95 | E27: 3373.65 | F27: =VLOOKUP(RevenueTableAnswer[[#This Row],[Units Sold]],DiscountTableAnswer[],2) -> 0.5 | G27: =ROUND((1-RevenueTableAnswer[[#This Row],[Discount on Total Revenue]])*RevenueTableAnswer[[#This Row],[Total Revenue]],2) -> 1686.83
A28: 2017-11-04 | B28: Quad | C28: 143 | D28: 43.95 | E28: 6284.85 | F28: =VLOOKUP(RevenueTableAnswer[[#This Row],[Units Sold]],DiscountTableAnswer[],2) -> 0.4375 | G28: =ROUND((1-RevenueTableAnswer[[#This Row],[Discount on Total Revenue]])*RevenueTableAnswer[[#This Row],[Total Revenue]],2) -> 3535.23
A29: 2017-11-05 | B29: Yanaki | C29: 33 | D29: 21.95 | E29: 724.35 | F29: =VLOOKUP(RevenueTableAnswer[[#This Row],[Units Sold]],DiscountTableAnswer[],2) -> 0.25 | G29: =ROUND((1-RevenueTableAnswer[[#This Row],[Discount on Total Revenue]])*RevenueTableAnswer[[#This Row],[Total Revenue]],2) -> 543.26
A30: 2017-11-06 | B30: Yanaki | C30: 99 | D30: 21.95 | E30: 2173.05 | F30: =VLOOKUP(RevenueTableAnswer[[#This Row],[Units Sold]],DiscountTableAnswer[],2) -> 0.4375 | G30: =ROUND((1-RevenueTableAnswer[[#This Row],[Discount on Total Revenue]])*RevenueTableAnswer[[#This Row],[Total Revenue]],2) -> 1222.34
A31: 2017-11-08 | B31: Sunset | C31: 35 | D31: 22.95 | E31: 803.25 | F31: =VLOOKUP(RevenueTableAnswer[[#This Row],[Units Sold]],DiscountTableAnswer[],2) -> 0.25 | G31: =ROUND((1-RevenueTableAnswer[[#This Row],[Discount on Total Revenue]])*RevenueTableAnswer[[#This Row],[Total Revenue]],2) -> 602.44
A32: 2017-11-06 | B32: Yanaki | C32: 21 | D32: 21.95 | E32: 460.95 | F32: =VLOOKUP(RevenueTableAnswer[[#This Row],[Units Sold]],DiscountTableAnswer[],2) -> 0.25 | G32: =ROUND((1-RevenueTableAnswer[[#This Row],[Discount on Total Revenue]])*RevenueTableAnswer[[#This Row],[Total Revenue]],2) -> 345.71
A33: 2017-11-08 | B33: Quad | C33: 60 | D33: 43.95 | E33: 2637 | F33: =VLOOKUP(RevenueTableAnswer[[#This Row],[Units Sold]],DiscountTableAnswer[],2) -> 0.375 | G33: =ROUND((1-RevenueTableAnswer[[#This Row],[Discount on Total Revenue]])*RevenueTableAnswer[[#This Row],[Total Revenue]],2) -> 1648.13
A34: 2017-11-06 | B34: Sunset | C34: 132 | D34: 22.95 | E34: 3029.4 | F34: =VLOOKUP(RevenueTableAnswer[[#This Row],[Units Sold]],DiscountTableAnswer[],2) -> 0.4375 | G34: =ROUND((1-RevenueTableAnswer[[#This Row],[Discount on Total Revenue]])*RevenueTableAnswer[[#This Row],[Total Revenue]],2) -> 1704.04
A35: 2017-11-08 | B35: V Rang | C35: 156 | D35: 14.95 | E35: 2332.2 | F35: =VLOOKUP(RevenueTableAnswer[[#This Row],[Units Sold]],DiscountTableAnswer[],2) -> 0.5 | G35: =ROUND((1-RevenueTableAnswer[[#This Row],[Discount on Total Revenue]])*RevenueTableAnswer[[#This Row],[Total Revenue]],2) -> 1166.1
A36: 2017-11-06 | B36: V Rang | C36: 120 | D36: 14.95 | E36: 1794 | F36: =VLOOKUP(RevenueTableAnswer[[#This Row],[Units Sold]],DiscountTableAnswer[],2) -> 0.4375 | G36: =ROUND((1-RevenueTableAnswer[[#This Row],[Discount on Total Revenue]])*RevenueTableAnswer[[#This Row],[Total Revenue]],2) -> 1009.13
A37: 2017-11-04 | B37: Yanaki | C37: 55 | D37: 21.95 | E37: 1207.25 | F37: =VLOOKUP(RevenueTableAnswer[[#This Row],[Units Sold]],DiscountTableAnswer[],2) -> 0.375 | G37: =ROUND((1-RevenueTableAnswer[[#This Row],[Discount on Total Revenue]])*RevenueTableAnswer[[#This Row],[Total Revenue]],2) -> 754.53
A38: 2017-11-03 | B38: Yanaki | C38: 165 | D38: 21.95 | E38: 3621.75 | F38: =VLOOKUP(RevenueTableAnswer[[#This Row],[Units Sold]],DiscountTableAnswer[],2) -> 0.5 | G38: =ROUND((1-RevenueTableAnswer[[#This Row],[Discount on Total Revenue]])*RevenueTableAnswer[[#This Row],[Total Revenue]],2) -> 1810.88
A39: 2017-11-07 | B39: Yanaki | C39: 124 | D39: 21.95 | E39: 2721.8 | F39: =VLOOKUP(RevenueTableAnswer[[#This Row],[Units Sold]],DiscountTableAnswer[],2) -> 0.4375 | G39: =ROUND((1-RevenueTableAnswer[[#This Row],[Discount on Total Revenue]])*RevenueTableAnswer[[#This Row],[Total Revenue]],2) -> 1531.01
A40: 2017-11-07 | B40: V Rang | C40: 155 | D40: 14.95 | E40: 2317.25 | F40: =VLOOKUP(RevenueTableAnswer[[#This Row],[Units Sold]],DiscountTableAnswer[],2) -> 0.5 | G40: =ROUND((1-RevenueTableAnswer[[#This Row],[Discount on Total Revenue]])*RevenueTableAnswer[[#This Row],[Total Revenue]],2) -> 1158.63
A41: 2017-11-06 | B41: Sunset | C41: 33 | D41: 22.95 | E41: 757.35 | F41: =VLOOKUP(RevenueTableAnswer[[#This Row],[Units Sold]],DiscountTableAnswer[],2) -> 0.25 | G41: =ROUND((1-RevenueTableAnswer[[#This Row],[Discount on Total Revenue]])*RevenueTableAnswer[[#This Row],[Total Revenue]],2) -> 568.01
A42: 2017-11-08 | B42: Yanaki | C42: 76 | D42: 21.95 | E42: 1668.2 | F42: =VLOOKUP(RevenueTableAnswer[[#This Row],[Units Sold]],DiscountTableAnswer[],2) -> 0.375 | G42: =ROUND((1-RevenueTableAnswer[[#This Row],[Discount on Total Revenue]])*RevenueTableAnswer[[#This Row],[Total Revenue]],2) -> 1042.63
A43: 2017-11-05 | B43: Yanaki | C43: 49 | D43: 21.95 | E43: 1075.55 | F43: =VLOOKUP(RevenueTableAnswer[[#This Row],[Units Sold]],DiscountTableAnswer[],2) -> 0.375 | G43: =ROUND((1-RevenueTableAnswer[[#This Row],[Discount on Total Revenue]])*RevenueTableAnswer[[#This Row],[Total Revenue]],2) -> 672.22
A44: 2017-11-03 | B44: V Rang | C44: 26 | D44: 14.95 | E44: 388.7 | F44: =VLOOKUP(RevenueTableAnswer[[#This Row],[Units Sold]],DiscountTableAnswer[],2) -> 0.25 | G44: =ROUND((1-RevenueTableAnswer[[#This Row],[Discount on Total Revenue]])*RevenueTableAnswer[[#This Row],[Total Revenue]],2) -> 291.53
A45: 2017-11-02 | B45: Yanaki | C45: 30 | D45: 21.95 | E45: 658.5 | F45: =VLOOKUP(RevenueTableAnswer[[#This Row],[Units Sold]],DiscountTableAnswer[],2) -> 0.25 | G45: =ROUND((1-RevenueTableAnswer[[#This Row],[Discount on Total Revenue]])*RevenueTableAnswer[[#This Row],[Total Revenue]],2) -> 493.88
A46: 2017-11-03 | B46: Quad | C46: 116 | D46: 43.95 | E46: 5098.2 | F46: =VLOOKUP(RevenueTableAnswer[[#This Row],[Units Sold]],DiscountTableAnswer[],2) -> 0.4375 | G46: =ROUND((1-RevenueTableAnswer[[#This Row],[Discount on Total Revenue]])*RevenueTableAnswer[[#This Row],[Total Revenue]],2) -> 2867.74
A47: 2017-11-02 | B47: Sunset | C47: 45 | D47: 22.95 | E47: 1032.75 | F47: =VLOOKUP(RevenueTableAnswer[[#This Row],[Units Sold]],DiscountTableAnswer[],2) -> 0.25 | G47: =ROUND((1-RevenueTableAnswer[[#This Row],[Discount on Total Revenue]])*RevenueTableAnswer[[#This Row],[Total Revenue]],2) -> 774.56
A48: 2017-11-02 | B48: V Rang | C48: 47 | D48: 14.95 | E48: 702.65 | F48: =VLOOKUP(RevenueTableAnswer[[#This Row],[Units Sold]],DiscountTableAnswer[],2) -> 0.25 | G48: =ROUND((1-RevenueTableAnswer[[#This Row],[Discount on Total Revenue]])*RevenueTableAnswer[[#This Row],[Total Revenue]],2) -> 526.99
A49: 2017-11-05 | B49: Quad | C49: 113 | D49: 43.95 | E49: 4966.35 | F49: =VLOOKUP(RevenueTableAnswer[[#This Row],[Units Sold]],DiscountTableAnswer[],2) -> 0.4375 | G49: =ROUND((1-RevenueTableAnswer[[#This Row],[Discount on Total Revenue]])*RevenueTableAnswer[[#This Row],[Total Revenue]],2) -> 2793.57
A50: 2017-11-04 | B50: Quad | C50: 70 | D50: 43.95 | E50: 3076.5 | F50: =VLOOKUP(RevenueTableAnswer[[#This Row],[Units Sold]],DiscountTableAnswer[],2) -> 0.375 | G50: =ROUND((1-RevenueTableAnswer[[#This Row],[Discount on Total Revenue]])*RevenueTableAnswer[[#This Row],[Total Revenue]],2) -> 1922.81
A51: 2017-11-04 | B51: Quad | C51: 173 | D51: 43.95 | E51: 7603.35 | F51: =VLOOKUP(RevenueTableAnswer[[#This Row],[Units Sold]],DiscountTableAnswer[],2) -> 0.55 | G51: =ROUND((1-RevenueTableAnswer[[#This Row],[Discount on Total Revenue]])*RevenueTableAnswer[[#This Row],[Total Revenue]],2) -> 3421.51
A52: 2017-11-05 | B52: Sunset | C52: 54 | D52: 22.95 | E52: 1239.3 | F52: =VLOOKUP(RevenueTableAnswer[[#This Row],[Units Sold]],DiscountTableAnswer[],2) -> 0.375 | G52: =ROUND((1-RevenueTableAnswer[[#This Row],[Discount on Total Revenue]])*RevenueTableAnswer[[#This Row],[Total Revenue]],2) -> 774.56
A53: 2017-11-02 | B53: Sunset | C53: 122 | D53: 22.95 | E53: 2799.9 | F53: =VLOOKUP(RevenueTableAnswer[[#This Row],[Units Sold]],DiscountTableAnswer[],2) -> 0.4375 | G53: =ROUND((1-RevenueTableAnswer[[#This Row],[Discount on Total Revenue]])*RevenueTableAnswer[[#This Row],[Total Revenue]],2) -> 1574.94
A54: 2017-11-01 | B54: V Rang | C54: 3 | D54: 14.95 | E54: 44.85 | F54: =VLOOKUP(RevenueTableAnswer[[#This Row],[Units Sold]],DiscountTableAnswer[],2) -> 0 | G54: =ROUND((1-RevenueTableAnswer[[#This Row],[Discount on Total Revenue]])*RevenueTableAnswer[[#This Row],[Total Revenue]],2) -> 44.85
A55: 2017-11-03 | B55: Yanaki | C55: 122 | D55: 21.95 | E55: 2677.9 | F55: =VLOOKUP(RevenueTableAnswer[[#This Row],[Units Sold]],DiscountTableAnswer[],2) -> 0.4375 | G55: =ROUND((1-RevenueTableAnswer[[#This Row],[Discount on Total Revenue]])*RevenueTableAnswer[[#This Row],[Total Revenue]],2) -> 1506.32
A56: 2017-11-02 | B56: Yanaki | C56: 81 | D56: 21.95 | E56: 1777.95 | F56: =VLOOKUP(RevenueTableAnswer[[#This Row],[Units Sold]],DiscountTableAnswer[],2) -> 0.375 | G56: =ROUND((1-RevenueTableAnswer[[#This Row],[Discount on Total Revenue]])*RevenueTableAnswer[[#This Row],[Total Revenue]],2) -> 1111.22
A57: 2017-11-06 | B57: Yanaki | C57: 21 | D57: 21.95 | E57: 460.95 | F57: =VLOOKUP(RevenueTableAnswer[[#This Row],[Units Sold]],DiscountTableAnswer[],2) -> 0.25 | G57: =ROUND((1-RevenueTableAnswer[[#This Row],[Discount on Total Revenue]])*RevenueTableAnswer[[#This Row],[Total Revenue]],2) -> 345.71
A58: 2017-11-03 | B58: Sunset | C58: 144 | D58: 22.95 | E58: 3304.8 | F58: =VLOOKUP(RevenueTableAnswer[[#This Row],[Units Sold]],DiscountTableAnswer[],2) -> 0.5 | G58: =ROUND((1-RevenueTableAnswer[[#This Row],[Discount on Total Revenue]])*RevenueTableAnswer[[#This Row],[Total Revenue]],2) -> 1652.4
A59: 2017-11-07 | B59: V Rang | C59: 139 | D59: 14.95 | E59: 2078.05 | F59: =VLOOKUP(RevenueTableAnswer[[#This Row],[Units Sold]],DiscountTableAnswer[],2) -> 0.4375 | G59: =ROUND((1-RevenueTableAnswer[[#This Row],[Discount on Total Revenue]])*RevenueTableAnswer[[#This Row],[Total Revenue]],2) -> 1168.9
A60: 2017-11-03 | B60: V Rang | C60: 105 | D60: 14.95 | E60: 1569.75 | F60: =VLOOKUP(RevenueTableAnswer[[#This Row],[Units Sold]],DiscountTableAnswer[],2) -> 0.4375 | G60: =ROUND((1-RevenueTableAnswer[[#This Row],[Discount on Total Revenue]])*RevenueTableAnswer[[#This Row],[Total Revenue]],2) -> 882.98
A61: 2017-11-04 | B61: Sunset | C61: 14 | D61: 22.95 | E61: 321.3 | F61: =VLOOKUP(RevenueTableAnswer[[#This Row],[Units Sold]],DiscountTableAnswer[],2) -> 0.25 | G61: =ROUND((1-RevenueTableAnswer[[#This Row],[Discount on Total Revenue]])*RevenueTableAnswer[[#This Row],[Total Revenue]],2) -> 240.98
A62: 2017-11-04 | B62: Sunset | C62: 95 | D62: 22.95 | E62: 2180.25 | F62: =VLOOKUP(RevenueTableAnswer[[#This Row],[Units Sold]],DiscountTableAnswer[],2) -> 0.375 | G62: =ROUND((1-RevenueTableAnswer[[#This Row],[Discount on Total Revenue]])*RevenueTableAnswer[[#This Row],[Total Revenue]],2) -> 1362.66
A63: 2017-11-03 | B63: Quad | C63: 142 | D63: 43.95 | E63: 6240.9 | F63: =VLOOKUP(RevenueTableAnswer[[#This Row],[Units Sold]],DiscountTableAnswer[],2) -> 0.4375 | G63: =ROUND((1-RevenueTableAnswer[[#This Row],[Discount on Total Revenue]])*RevenueTableAnswer[[#This Row],[Total Revenue]],2) -> 3510.51
A64: 2017-11-01 | B64: V Rang | C64: 150 | D64: 14.95 | E64: 2242.5 | F64: =VLOOKUP(RevenueTableAnswer[[#This Row],[Units Sold]],DiscountTableAnswer[],2) -> 0.5 | G64: =ROUND((1-RevenueTableAnswer[[#This Row],[Discount on Total Revenue]])*RevenueTableAnswer[[#This Row],[Total Revenue]],2) -> 1121.25
A65: 2017-11-06 | B65: Yanaki | C65: 79 | D65: 21.95 | E65: 1734.05 | F65: =VLOOKUP(RevenueTableAnswer[[#This Row],[Units Sold]],DiscountTableAnswer[],2) -> 0.375 | G65: =ROUND((1-RevenueTableAnswer[[#This Row],[Discount on Total Revenue]])*RevenueTableAnswer[[#This Row],[Total Revenue]],2) -> 1083.78
A66: 2017-11-01 | B66: V Rang | C66: 57 | D66: 14.95 | E66: 852.15 | F66: =VLOOKUP(RevenueTableAnswer[[#This Row],[Units Sold]],DiscountTableAnswer[],2) -> 0.375 | G66: =ROUND((1-RevenueTableAnswer[[#This Row],[Discount on Total Revenue]])*RevenueTableAnswer[[#This Row],[Total Revenue]],2) -> 532.59
A67: 2017-11-04 | B67: V Rang | C67: 62 | D67: 14.95 | E67: 926.9 | F67: =VLOOKUP(RevenueTableAnswer[[#This Row],[Units Sold]],DiscountTableAnswer[],2) -> 0.375 | G67: =ROUND((1-RevenueTableAnswer[[#This Row],[Discount on Total Revenue]])*RevenueTableAnswer[[#This Row],[Total Revenue]],2) -> 579.31
A68: 2017-11-02 | B68: V Rang | C68: 177 | D68: 14.95 | E68: 2646.15 | F68: =VLOOKUP(RevenueTableAnswer[[#This Row],[Units Sold]],DiscountTableAnswer[],2) -> 0.55 | G68: =ROUND((1-RevenueTableAnswer[[#This Row],[Discount on Total Revenue]])*RevenueTableAnswer[[#This Row],[Total Revenue]],2) -> 1190.77
A69: 2017-11-05 | B69: Sunset | C69: 165 | D69: 22.95 | E69: 3786.75 | F69: =VLOOKUP(RevenueTableAnswer[[#This Row],[Units Sold]],DiscountTableAnswer[],2) -> 0.5 | G69: =ROUND((1-RevenueTableAnswer[[#This Row],[Discount on Total Revenue]])*RevenueTableAnswer[[#This Row],[Total Revenue]],2) -> 1893.38
A70: 2017-11-02 | B70: Yanaki | C70: 37 | D70: 21.95 | E70: 812.15 | F70: =VLOOKUP(RevenueTableAnswer[[#This Row],[Units Sold]],DiscountTableAnswer[],2) -> 0.25 | G70: =ROUND((1-RevenueTableAnswer[[#This Row],[Discount on Total Revenue]])*RevenueTableAnswer[[#This Row],[Total Revenue]],2) -> 609.11
A71: 2017-11-05 | B71: Yanaki | C71: 181 | D71: 21.95 | E71: 3972.95 | F71: =VLOOKUP(RevenueTableAnswer[[#This Row],[Units Sold]],DiscountTableAnswer[],2) -> 0.55 | G71: =ROUND((1-RevenueTableAnswer[[#This Row],[Discount on Total Revenue]])*RevenueTableAnswer[[#This Row],[Total Revenue]],2) -> 1787.83
A72: 2017-11-04 | B72: Yanaki | C72: 148 | D72: 21.95 | E72: 3248.6 | F72: =VLOOKUP(RevenueTableAnswer[[#This Row],[Units Sold]],DiscountTableAnswer[],2) -> 0.5 | G72: =ROUND((1-RevenueTableAnswer[[#This Row],[Discount on Total Revenue]])*RevenueTableAnswer[[#This Row],[Total Revenue]],2) -> 1624.3
A73: 2017-11-08 | B73: Sunset | C73: 132 | D73: 22.95 | E73: 3029.4 | F73: =VLOOKUP(RevenueTableAnswer[[#This Row],[Units Sold]],DiscountTableAnswer[],2) -> 0.4375 | G73: =ROUND((1-RevenueTableAnswer[[#This Row],[Discount on Total Revenue]])*RevenueTableAnswer[[#This Row],[Total Revenue]],2) -> 1704.04
A74: 2017-11-06 | B74: V Rang | C74: 3 | D74: 14.95 | E74: 44.85 | F74: =VLOOKUP(RevenueTableAnswer[[#This Row],[Units Sold]],DiscountTableAnswer[],2) -> 0 | G74: =ROUND((1-RevenueTableAnswer[[#This Row],[Discount on Total Revenue]])*RevenueTableAnswer[[#This Row],[Total Revenue]],2) -> 44.85
A75: 2017-11-01 | B75: V Rang | C75: 121 | D75: 14.95 | E75: 1808.95 | F75: =VLOOKUP(RevenueTableAnswer[[#This Row],[Units Sold]],DiscountTableAnswer[],2) -> 0.4375 | G75: =ROUND((1-RevenueTableAnswer[[#This Row],[Discount on Total Revenue]])*RevenueTableAnswer[[#This Row],[Total Revenue]],2) -> 1017.53
A76: 2017-11-08 | B76: Yanaki | C76: 104 | D76: 21.95 | E76: 2282.8 | F76: =VLOOKUP(RevenueTableAnswer[[#This Row],[Units Sold]],DiscountTableAnswer[],2) -> 0.4375 | G76: =ROUND((1-RevenueTableAnswer[[#This Row],[Discount on Total Revenue]])*RevenueTableAnswer[[#This Row],[Total Revenue]],2) -> 1284.08
A77: 2017-11-08 | B77: Yanaki | C77: 155 | D77: 21.95 | E77: 3402.25 | F77: =VLOOKUP(RevenueTableAnswer[[#This Row],[Units Sold]],DiscountTableAnswer[],2) -> 0.5 | G77: =ROUND((1-RevenueTableAnswer[[#This Row],[Discount on Total Revenue]])*RevenueTableAnswer[[#This Row],[Total Revenue]],2) -> 1701.13
A78: 2017-11-06 | B78: V Rang | C78: 129 | D78: 14.95 | E78: 1928.55 | F78: =VLOOKUP(RevenueTableAnswer[[#This Row],[Units Sold]],DiscountTableAnswer[],2) -> 0.4375 | G78: =ROUND((1-RevenueTableAnswer[[#This Row],[Discount on Total Revenue]])*RevenueTableAnswer[[#This Row],[Total Revenue]],2) -> 1084.81
A79: 2017-11-01 | B79: V Rang | C79: 72 | D79: 14.95 | E79: 1076.4 | F79: =VLOOKUP(RevenueTableAnswer[[#This Row],[Units Sold]],DiscountTableAnswer[],2) -> 0.375 | G79: =ROUND((1-RevenueTableAnswer[[#This Row],[Discount on Total Revenue]])*RevenueTableAnswer[[#This Row],[Total Revenue]],2) -> 672.75
A80: 2017-11-05 | B80: Quad | C80: 164 | D80: 43.95 | E80: 7207.8 | F80: =VLOOKUP(RevenueTableAnswer[[#This Row],[Units Sold]],DiscountTableAnswer[],2) -> 0.5 | G80: =ROUND((1-RevenueTableAnswer[[#This Row],[Discount on Total Revenue]])*RevenueTableAnswer[[#This Row],[Total Revenue]],2) -> 3603.9
A81: 2017-11-03 | B81: V Rang | C81: 6 | D81: 14.95 | E81: 89.7 | F81: =VLOOKUP(RevenueTableAnswer[[#This Row],[Units Sold]],DiscountTableAnswer[],2) -> 0 | G81: =ROUND((1-RevenueTableAnswer[[#This Row],[Discount on Total Revenue]])*RevenueTableAnswer[[#This Row],[Total Revenue]],2) -> 89.7
A82: 2017-11-01 | B82: Yanaki | C82: 46 | D82: 21.95 | E82: 1009.7 | F82: =VLOOKUP(RevenueTableAnswer[[#This Row],[Units Sold]],DiscountTableAnswer[],2) -> 0.25 | G82: =ROUND((1-RevenueTableAnswer[[#This Row],[Discount on Total Revenue]])*RevenueTableAnswer[[#This Row],[Total Revenue]],2) -> 757.28
A83: 2017-11-08 | B83: V Rang | C83: 182 | D83: 14.95 | E83: 2720.9 | F83: =VLOOKUP(RevenueTableAnswer[[#This Row],[Units Sold]],DiscountTableAnswer[],2) -> 0.55 | G83: =ROUND((1-RevenueTableAnswer[[#This Row],[Discount on Total Revenue]])*RevenueTableAnswer[[#This Row],[Total Revenue]],2) -> 1224.41
A84: 2017-11-02 | B84: V Rang | C84: 11 | D84: 14.95 | E84: 164.45 | F84: =VLOOKUP(RevenueTableAnswer[[#This Row],[Units Sold]],DiscountTableAnswer[],2) -> 0 | G84: =ROUND((1-RevenueTableAnswer[[#This Row],[Discount on Total Revenue]])*RevenueTableAnswer[[#This Row],[Total Revenue]],2) -> 164.45
A85: 2017-11-08 | B85: Quad | C85: 18 | D85: 43.95 | E85: 791.1 | F85: =VLOOKUP(RevenueTableAnswer[[#This Row],[Units Sold]],DiscountTableAnswer[],2) -> 0.25 | G85: =ROUND((1-RevenueTableAnswer[[#This Row],[Discount on Total Revenue]])*RevenueTableAnswer[[#This Row],[Total Revenue]],2) -> 593.33
A86: 2017-11-06 | B86: V Rang | C86: 152 | D86: 14.95 | E86: 2272.4 | F86: =VLOOKUP(RevenueTableAnswer[[#This Row],[Units Sold]],DiscountTableAnswer[],2) -> 0.5 | G86: =ROUND((1-RevenueTableAnswer[[#This Row],[Discount on Total Revenue]])*RevenueTableAnswer[[#This Row],[Total Revenue]],2) -> 1136.2
A87: 2017-11-01 | B87: Yanaki | C87: 41 | D87: 21.95 | E87: 899.95 | F87: =VLOOKUP(RevenueTableAnswer[[#This Row],[Units Sold]],DiscountTableAnswer[],2) -> 0.25 | G87: =ROUND((1-RevenueTableAnswer[[#This Row],[Discount on Total Revenue]])*RevenueTableAnswer[[#This Row],[Total Revenue]],2) -> 674.96
A88: 2017-11-06 | B88: V Rang | C88: 11 | D88: 14.95 | E88: 164.45 | F88: =VLOOKUP(RevenueTableAnswer[[#This Row],[Units Sold]],DiscountTableAnswer[],2) -> 0 | G88: =ROUND((1-RevenueTableAnswer[[#This Row],[Discount on Total Revenue]])*RevenueTableAnswer[[#This Row],[Total Revenue]],2) -> 164.45
A89: 2017-11-08 | B89: V Rang | C89: 148 | D89: 14.95 | E89: 2212.6 | F89: =VLOOKUP(RevenueTableAnswer[[#This Row],[Units Sold]],DiscountTableAnswer[],2) -> 0.5 | G89: =ROUND((1-RevenueTableAnswer[[#This Row],[Discount on Total Revenue]])*RevenueTableAnswer[[#This Row],[Total Revenue]],2) -> 1106.3
A90: 2017-11-05 | B90: V Rang | C90: 154 | D90: 14.95 | E90: 2302.3 | F90: =VLOOKUP(RevenueTableAnswer[[#This Row],[Units Sold]],DiscountTableAnswer[],2) -> 0.5 | G90: =ROUND((1-RevenueTableAnswer[[#This Row],[Discount on Total Revenue]])*RevenueTableAnswer[[#This Row],[Total Revenue]],2) -> 1151.15
A91: 2017-11-02 | B91: Yanaki | C91: 115 | D91: 21.95 | E91: 2524.25 | F91: =VLOOKUP(RevenueTableAnswer[[#This Row],[Units Sold]],DiscountTableAnswer[],2) -> 0.4375 | G91: =ROUND((1-RevenueTableAnswer[[#This Row],[Discount on Total Revenue]])*RevenueTableAnswer[[#This Row],[Total Revenue]],2) -> 1419.89
A92: 2017-11-07 | B92: Quad | C92: 122 | D92: 43.95 | E92: 5361.9 | F92: =VLOOKUP(RevenueTableAnswer[[#This Row],[Units Sold]],DiscountTableAnswer[],2) -> 0.4375 | G92: =ROUND((1-RevenueTableAnswer[[#This Row],[Discount on Total Revenue]])*RevenueTableAnswer[[#This Row],[Total Revenue]],2) -> 3016.07
A93: 2017-11-08 | B93: V Rang | C93: 3 | D93: 14.95 | E93: 44.85 | F93: =VLOOKUP(RevenueTableAnswer[[#This Row],[Units Sold]],DiscountTableAnswer[],2) -> 0 | G93: =ROUND((1-RevenueTableAnswer[[#This Row],[Discount on Total Revenue]])*RevenueTableAnswer[[#This Row],[Total Revenue]],2) -> 44.85
A94: 2017-11-07 | B94: Quad | C94: 26 | D94: 43.95 | E94: 1142.7 | F94: =VLOOKUP(RevenueTableAnswer[[#This Row],[Units Sold]],DiscountTableAnswer[],2) -> 0.25 | G94: =ROUND((1-RevenueTableAnswer[[#This Row],[Discount on Total Revenue]])*RevenueTableAnswer[[#This Row],[Total Revenue]],2) -> 857.03
A95: 2017-11-04 | B95: Sunset | C95: 162 | D95: 22.95 | E95: 3717.9 | F95: =VLOOKUP(RevenueTableAnswer[[#This Row],[Units Sold]],DiscountTableAnswer[],2) -> 0.5 | G95: =ROUND((1-RevenueTableAnswer[[#This Row],[Discount on Total Revenue]])*RevenueTableAnswer[[#This Row],[Total Revenue]],2) -> 1858.95
A96: 2017-11-07 | B96: Quad | C96: 21 | D96: 43.95 | E96: 922.95 | F96: =VLOOKUP(RevenueTableAnswer[[#This Row],[Units Sold]],DiscountTableAnswer[],2) -> 0.25 | G96: =ROUND((1-RevenueTableAnswer[[#This Row],[Discount on Total Revenue]])*RevenueTableAnswer[[#This Row],[Total Revenue]],2) -> 692.21
A97: 2017-11-03 | B97: Quad | C97: 42 | D97: 43.95 | E97: 1845.9 | F97: =VLOOKUP(RevenueTableAnswer[[#This Row],[Units Sold]],DiscountTableAnswer[],2) -> 0.25 | G97: =ROUND((1-RevenueTableAnswer[[#This Row],[Discount on Total Revenue]])*RevenueTableAnswer[[#This Row],[Total Revenue]],2) -> 1384.43
A98: 2017-11-05 | B98: Sunset | C98: 82 | D98: 22.95 | E98: 1881.9 | F98: =VLOOKUP(RevenueTableAnswer[[#This Row],[Units Sold]],DiscountTableAnswer[],2) -> 0.375 | G98: =ROUND((1-RevenueTableAnswer[[#This Row],[Discount on Total Revenue]])*RevenueTableAnswer[[#This Row],[Total Revenue]],2) -> 1176.19
A99: 2017-11-07 | B99: V Rang | C99: 78 | D99: 14.95 | E99: 1166.1 | F99: =VLOOKUP(RevenueTableAnswer[[#This Row],[Units Sold]],DiscountTableAnswer[],2) -> 0.375 | G99: =ROUND((1-RevenueTableAnswer[[#This Row],[Discount on Total Revenue]])*RevenueTableAnswer[[#This Row],[Total Revenue]],2) -> 728.81
A100: 2017-11-08 | B100: Yanaki | C100: 127 | D100: 21.95 | E100: 2787.65 | F100: =VLOOKUP(RevenueTableAnswer[[#This Row],[Units Sold]],DiscountTableAnswer[],2) -> 0.4375 | G100: =ROUND((1-RevenueTableAnswer[[#This Row],[Discount on Total Revenue]])*RevenueTableAnswer[[#This Row],[Total Revenue]],2) -> 1568.05
A101: 2017-11-01 | B101: Quad | C101: 64 | D101: 43.95 | E101: 2812.8 | F101: =VLOOKUP(RevenueTableAnswer[[#This Row],[Units Sold]],DiscountTableAnswer[],2) -> 0.375 | G101: =ROUND((1-RevenueTableAnswer[[#This Row],[Discount on Total Revenue]])*RevenueTableAnswer[[#This Row],[Total Revenue]],2) -> 1758
A102: 2017-11-05 | B102: Quad | C102: 152 | D102: 43.95 | E102: 6680.4 | F102: =VLOOKUP(RevenueTableAnswer[[#This Row],[Units Sold]],DiscountTableAnswer[],2) -> 0.5 | G102: =ROUND((1-RevenueTableAnswer[[#This Row],[Discount on Total Revenue]])*RevenueTableAnswer[[#This Row],[Total Revenue]],2) -> 3340.2
A103: 2017-11-03 | B103: V Rang | C103: 53 | D103: 14.95 | E103: 792.35 | F103: =VLOOKUP(RevenueTableAnswer[[#This Row],[Units Sold]],DiscountTableAnswer[],2) -> 0.375 | G103: =ROUND((1-RevenueTableAnswer[[#This Row],[Discount on Total Revenue]])*RevenueTableAnswer[[#This Row],[Total Revenue]],2) -> 495.22
A104: 2017-11-05 | B104: Quad | C104: 11 | D104: 43.95 | E104: 483.45 | F104: =VLOOKUP(RevenueTableAnswer[[#This Row],[Units Sold]],DiscountTableAnswer[],2) -> 0 | G104: =ROUND((1-RevenueTableAnswer[[#This Row],[Discount on Total Revenue]])*RevenueTableAnswer[[#This Row],[Total Revenue]],2) -> 483.45
A105: 2017-11-04 | B105: Sunset | C105: 170 | D105: 22.95 | E105: 3901.5 | F105: =VLOOKUP(RevenueTableAnswer[[#This Row],[Units Sold]],DiscountTableAnswer[],2) -> 0.55 | G105: =ROUND((1-RevenueTableAnswer[[#This Row],[Discount on Total Revenue]])*RevenueTableAnswer[[#This Row],[Total Revenue]],2) -> 1755.68
A106: 2017-11-02 | B106: V Rang | C106: 170 | D106: 14.95 | E106: 2541.5 | F106: =VLOOKUP(RevenueTableAnswer[[#This Row],[Units Sold]],DiscountTableAnswer[],2) -> 0.55 | G106: =ROUND((1-RevenueTableAnswer[[#This Row],[Discount on Total Revenue]])*RevenueTableAnswer[[#This Row],[Total Revenue]],2) -> 1143.68
A107: 2017-11-08 | B107: Yanaki | C107: 31 | D107: 21.95 | E107: 680.45 | F107: =VLOOKUP(RevenueTableAnswer[[#This Row],[Units Sold]],DiscountTableAnswer[],2) -> 0.25 | G107: =ROUND((1-RevenueTableAnswer[[#This Row],[Discount on Total Revenue]])*RevenueTableAnswer[[#This Row],[Total Revenue]],2) -> 510.34
A108: 2017-11-02 | B108: Quad | C108: 7 | D108: 43.95 | E108: 307.65 | F108: =VLOOKUP(RevenueTableAnswer[[#This Row],[Units Sold]],DiscountTableAnswer[],2) -> 0 | G108: =ROUND((1-RevenueTableAnswer[[#This Row],[Discount on Total Revenue]])*RevenueTableAnswer[[#This Row],[Total Revenue]],2) -> 307.65
A109: 2017-11-07 | B109: Quad | C109: 175 | D109: 43.95 | E109: 7691.25 | F109: =VLOOKUP(RevenueTableAnswer[[#This Row],[Units Sold]],DiscountTableAnswer[],2) -> 0.55 | G109: =ROUND((1-RevenueTableAnswer[[#This Row],[Discount on Total Revenue]])*RevenueTableAnswer[[#This Row],[Total Revenue]],2) -> 3461.06
A110: 2017-11-08 | B110: Yanaki | C110: 107 | D110: 21.95 | E110: 2348.65 | F110: =VLOOKUP(RevenueTableAnswer[[#This Row],[Units Sold]],DiscountTableAnswer[],2) -> 0.4375 | G110: =ROUND((1-RevenueTableAnswer[[#This Row],[Discount on Total Revenue]])*RevenueTableAnswer[[#This Row],[Total Revenue]],2) -> 1321.12
A111: 2017-11-07 | B111: V Rang | C111: 123 | D111: 14.95 | E111: 1838.85 | F111: =VLOOKUP(RevenueTableAnswer[[#This Row],[Units Sold]],DiscountTableAnswer[],2) -> 0.4375 | G111: =ROUND((1-RevenueTableAnswer[[#This Row],[Discount on Total Revenue]])*RevenueTableAnswer[[#This Row],[Total Revenue]],2) -> 1034.35
A112: 2017-11-06 | B112: V Rang | C112: 21 | D112: 14.95 | E112: 313.95 | F112: =VLOOKUP(RevenueTableAnswer[[#This Row],[Units Sold]],DiscountTableAnswer[],2) -> 0.25 | G112: =ROUND((1-RevenueTableAnswer[[#This Row],[Discount on Total Revenue]])*RevenueTableAnswer[[#This Row],[Total Revenue]],2) -> 235.46
A113: 2017-11-01 | B113: Yanaki | C113: 8 | D113: 21.95 | E113: 175.6 | F113: =VLOOKUP(RevenueTableAnswer[[#This Row],[Units Sold]],DiscountTableAnswer[],2) -> 0 | G113: =ROUND((1-RevenueTableAnswer[[#This Row],[Discount on Total Revenue]])*RevenueTableAnswer[[#This Row],[Total Revenue]],2) -> 175.6
A114: 2017-11-03 | B114: Sunset | C114: 115 | D114: 22.95 | E114: 2639.25 | F114: =VLOOKUP(RevenueTableAnswer[[#This Row],[Units Sold]],DiscountTableAnswer[],2) -> 0.4375 | G114: =ROUND((1-RevenueTableAnswer[[#This Row],[Discount on Total Revenue]])*RevenueTableAnswer[[#This Row],[Total Revenue]],2) -> 1484.58
A115: 2017-11-04 | B115: V Rang | C115: 50 | D115: 14.95 | E115: 747.5 | F115: =VLOOKUP(RevenueTableAnswer[[#This Row],[Units Sold]],DiscountTableAnswer[],2) -> 0.375 | G115: =ROUND((1-RevenueTableAnswer[[#This Row],[Discount on Total Revenue]])*RevenueTableAnswer[[#This Row],[Total Revenue]],2) -> 467.19
A116: 2017-11-08 | B116: V Rang | C116: 121 | D116: 14.95 | E116: 1808.95 | F116: =VLOOKUP(RevenueTableAnswer[[#This Row],[Units Sold]],DiscountTableAnswer[],2) -> 0.4375 | G116: =ROUND((1-RevenueTableAnswer[[#This Row],[Discount on Total Revenue]])*RevenueTableAnswer[[#This Row],[Total Revenue]],2) -> 1017.53
A117: 2017-11-02 | B117: V Rang | C117: 35 | D117: 14.95 | E117: 523.25 | F117: =VLOOKUP(RevenueTableAnswer[[#This Row],[Units Sold]],DiscountTableAnswer[],2) -> 0.25 | G117: =ROUND((1-RevenueTableAnswer[[#This Row],[Discount on Total Revenue]])*RevenueTableAnswer[[#This Row],[Total Revenue]],2) -> 392.44
A118: 2017-11-05 | B118: Sunset | C118: 106 | D118: 22.95 | E118: 2432.7 | F118: =VLOOKUP(RevenueTableAnswer[[#This Row],[Units Sold]],DiscountTableAnswer[],2) -> 0.4375 | G118: =ROUND((1-RevenueTableAnswer[[#This Row],[Discount on Total Revenue]])*RevenueTableAnswer[[#This Row],[Total Revenue]],2) -> 1368.39
A119: 2017-11-02 | B119: V Rang | C119: 125 | D119: 14.95 | E119: 1868.75 | F119: =VLOOKUP(RevenueTableAnswer[[#This Row],[Units Sold]],DiscountTableAnswer[],2) -> 0.4375 | G119: =ROUND((1-RevenueTableAnswer[[#This Row],[Discount on Total Revenue]])*RevenueTableAnswer[[#This Row],[Total Revenue]],2) -> 1051.17
A120: 2017-11-01 | B120: V Rang | C120: 182 | D120: 14.95 | E120: 2720.9 | F120: =VLOOKUP(RevenueTableAnswer[[#This Row],[Units Sold]],DiscountTableAnswer[],2) -> 0.55 | G120: =ROUND((1-RevenueTableAnswer[[#This Row],[Discount on Total Revenue]])*RevenueTableAnswer[[#This Row],[Total Revenue]],2) -> 1224.41
A121: 2017-11-07 | B121: Quad | C121: 98 | D121: 43.95 | E121: 4307.1 | F121: =VLOOKUP(RevenueTableAnswer[[#This Row],[Units Sold]],DiscountTableAnswer[],2) -> 0.4375 | G121: =ROUND((1-RevenueTableAnswer[[#This Row],[Discount on Total Revenue]])*RevenueTableAnswer[[#This Row],[Total Revenue]],2) -> 2422.74
A122: 2017-11-03 | B122: V Rang | C122: 80 | D122: 14.95 | E122: 1196 | F122: =VLOOKUP(RevenueTableAnswer[[#This Row],[Units Sold]],DiscountTableAnswer[],2) -> 0.375 | G122: =ROUND((1-RevenueTableAnswer[[#This Row],[Discount on Total Revenue]])*RevenueTableAnswer[[#This Row],[Total Revenue]],2) -> 747.5
A123: 2017-11-05 | B123: Yanaki | C123: 18 | D123: 21.95 | E123: 395.1 | F123: =VLOOKUP(RevenueTableAnswer[[#This Row],[Units Sold]],DiscountTableAnswer[],2) -> 0.25 | G123: =ROUND((1-RevenueTableAnswer[[#This Row],[Discount on Total Revenue]])*RevenueTableAnswer[[#This Row],[Total Revenue]],2) -> 296.33
A124: 2017-11-04 | B124: V Rang | C124: 80 | D124: 14.95 | E124: 1196 | F124: =VLOOKUP(RevenueTableAnswer[[#This Row],[Units Sold]],DiscountTableAnswer[],2) -> 0.375 | G124: =ROUND((1-RevenueTableAnswer[[#This Row],[Discount on Total Revenue]])*RevenueTableAnswer[[#This Row],[Total Revenue]],2) -> 747.5
A125: 2017-11-02 | B125: Sunset | C125: 52 | D125: 22.95 | E125: 1193.4 | F125: =VLOOKUP(RevenueTableAnswer[[#This Row],[Units Sold]],DiscountTableAnswer[],2) -> 0.375 | G125: =ROUND((1-RevenueTableAnswer[[#This Row],[Discount on Total Revenue]])*RevenueTableAnswer[[#This Row],[Total Revenue]],2) -> 745.88
A126: 2017-11-03 | B126: Quad | C126: 52 | D126: 43.95 | E126: 2285.4 | F126: =VLOOKUP(RevenueTableAnswer[[#This Row],[Units Sold]],DiscountTableAnswer[],2) -> 0.375 | G126: =ROUND((1-RevenueTableAnswer[[#This Row],[Discount on Total Revenue]])*RevenueTableAnswer[[#This Row],[Total Revenue]],2) -> 1428.38
A127: 2017-11-06 | B127: Sunset | C127: 119 | D127: 22.95 | E127: 2731.05 | F127: =VLOOKUP(RevenueTableAnswer[[#This Row],[Units Sold]],DiscountTableAnswer[],2) -> 0.4375 | G127: =ROUND((1-RevenueTableAnswer[[#This Row],[Discount on Total Revenue]])*RevenueTableAnswer[[#This Row],[Total Revenue]],2) -> 1536.22
A128: 2017-11-08 | B128: V Rang | C128: 129 | D128: 14.95 | E128: 1928.55 | F128: =VLOOKUP(RevenueTableAnswer[[#This Row],[Units Sold]],DiscountTableAnswer[],2) -> 0.4375 | G128: =ROUND((1-RevenueTableAnswer[[#This Row],[Discount on Total Revenue]])*RevenueTableAnswer[[#This Row],[Total Revenue]],2) -> 1084.81
A129: 2017-11-08 | B129: V Rang | C129: 141 | D129: 14.95 | E129: 2107.95 | F129: =VLOOKUP(RevenueTableAnswer[[#This Row],[Units Sold]],DiscountTableAnswer[],2) -> 0.4375 | G129: =ROUND((1-RevenueTableAnswer[[#This Row],[Discount on Total Revenue]])*RevenueTableAnswer[[#This Row],[Total Revenue]],2) -> 1185.72
A130: 2017-11-08 | B130: Quad | C130: 95 | D130: 43.95 | E130: 4175.25 | F130: =VLOOKUP(RevenueTableAnswer[[#This Row],[Units Sold]],DiscountTableAnswer[],2) -> 0.375 | G130: =ROUND((1-RevenueTableAnswer[[#This Row],[Discount on Total Revenue]])*RevenueTableAnswer[[#This Row],[Total Revenue]],2) -> 2609.53
A131: 2017-11-02 | B131: Sunset | C131: 112 | D131: 22.95 | E131: 2570.4 | F131: =VLOOKUP(RevenueTableAnswer[[#This Row],[Units Sold]],DiscountTableAnswer[],2) -> 0.4375 | G131: =ROUND((1-RevenueTableAnswer[[#This Row],[Discount on Total Revenue]])*RevenueTableAnswer[[#This Row],[Total Revenue]],2) -> 1445.85
A132: 2017-11-04 | B132: Quad | C132: 40 | D132: 43.95 | E132: 1758 | F132: =VLOOKUP(RevenueTableAnswer[[#This Row],[Units Sold]],DiscountTableAnswer[],2) -> 0.25 | G132: =ROUND((1-RevenueTableAnswer[[#This Row],[Discount on Total Revenue]])*RevenueTableAnswer[[#This Row],[Total Revenue]],2) -> 1318.5
A133: 2017-11-05 | B133: Quad | C133: 160 | D133: 43.95 | E133: 7032 | F133: =VLOOKUP(RevenueTableAnswer[[#This Row],[Units Sold]],DiscountTableAnswer[],2) -> 0.5 | G133: =ROUND((1-RevenueTableAnswer[[#This Row],[Discount on Total Revenue]])*RevenueTableAnswer[[#This Row],[Total Revenue]],2) -> 3516
A134: 2017-11-04 | B134: V Rang | C134: 81 | D134: 14.95 | E134: 1210.95 | F134: =VLOOKUP(RevenueTableAnswer[[#This Row],[Units Sold]],DiscountTableAnswer[],2) -> 0.375 | G134: =ROUND((1-RevenueTableAnswer[[#This Row],[Discount on Total Revenue]])*RevenueTableAnswer[[#This Row],[Total Revenue]],2) -> 756.84
A135: 2017-11-05 | B135: Quad | C135: 157 | D135: 43.95 | E135: 6900.15 | F135: =VLOOKUP(RevenueTableAnswer[[#This Row],[Units Sold]],DiscountTableAnswer[],2) -> 0.5 | G135: =ROUND((1-RevenueTableAnswer[[#This Row],[Discount on Total Revenue]])*RevenueTableAnswer[[#This Row],[Total Revenue]],2) -> 3450.08
A136: 2017-11-07 | B136: Sunset | C136: 12 | D136: 22.95 | E136: 275.4 | F136: =VLOOKUP(RevenueTableAnswer[[#This Row],[Units Sold]],DiscountTableAnswer[],2) -> 0.25 | G136: =ROUND((1-RevenueTableAnswer[[#This Row],[Discount on Total Revenue]])*RevenueTableAnswer[[#This Row],[Total Revenue]],2) -> 206.55
A137: 2017-11-01 | B137: V Rang | C137: 117 | D137: 14.95 | E137: 1749.15 | F137: =VLOOKUP(RevenueTableAnswer[[#This Row],[Units Sold]],DiscountTableAnswer[],2) -> 0.4375 | G137: =ROUND((1-RevenueTableAnswer[[#This Row],[Discount on Total Revenue]])*RevenueTableAnswer[[#This Row],[Total Revenue]],2) -> 983.9
A138: 2017-11-04 | B138: Quad | C138: 118 | D138: 43.95 | E138: 5186.1 | F138: =VLOOKUP(RevenueTableAnswer[[#This Row],[Units Sold]],DiscountTableAnswer[],2) -> 0.4375 | G138: =ROUND((1-RevenueTableAnswer[[#This Row],[Discount on Total Revenue]])*RevenueTableAnswer[[#This Row],[Total Revenue]],2) -> 2917.18
A139: 2017-11-03 | B139: Sunset | C139: 6 | D139: 22.95 | E139: 137.7 | F139: =VLOOKUP(RevenueTableAnswer[[#This Row],[Units Sold]],DiscountTableAnswer[],2) -> 0 | G139: =ROUND((1-RevenueTableAnswer[[#This Row],[Discount on Total Revenue]])*RevenueTableAnswer[[#This Row],[Total Revenue]],2) -> 137.7
A140: 2017-11-04 | B140: V Rang | C140: 107 | D140: 14.95 | E140: 1599.65 | F140: =VLOOKUP(RevenueTableAnswer[[#This Row],[Units Sold]],DiscountTableAnswer[],2) -> 0.4375 | G140: =ROUND((1-RevenueTableAnswer[[#This Row],[Discount on Total Revenue]])*RevenueTableAnswer[[#This Row],[Total Revenue]],2) -> 899.8
A141: 2017-11-02 | B141: Yanaki | C141: 15 | D141: 21.95 | E141: 329.25 | F141: =VLOOKUP(RevenueTableAnswer[[#This Row],[Units Sold]],DiscountTableAnswer[],2) -> 0.25 | G141: =ROUND((1-RevenueTableAnswer[[#This Row],[Discount on Total Revenue]])*RevenueTableAnswer[[#This Row],[Total Revenue]],2) -> 246.94
A142: 2017-11-02 | B142: Yanaki | C142: 7 | D142: 21.95 | E142: 153.65 | F142: =VLOOKUP(RevenueTableAnswer[[#This Row],[Units Sold]],DiscountTableAnswer[],2) -> 0 | G142: =ROUND((1-RevenueTableAnswer[[#This Row],[Discount on Total Revenue]])*RevenueTableAnswer[[#This Row],[Total Revenue]],2) -> 153.65
A143: 2017-11-07 | B143: Sunset | C143: 178 | D143: 22.95 | E143: 4085.1 | F143: =VLOOKUP(RevenueTableAnswer[[#This Row],[Units Sold]],DiscountTableAnswer[],2) -> 0.55 | G143: =ROUND((1-RevenueTableAnswer[[#This Row],[Discount on Total Revenue]])*RevenueTableAnswer[[#This Row],[Total Revenue]],2) -> 1838.3
A144: 2017-11-03 | B144: V Rang | C144: 159 | D144: 14.95 | E144: 2377.05 | F144: =VLOOKUP(RevenueTableAnswer[[#This Row],[Units Sold]],DiscountTableAnswer[],2) -> 0.5 | G144: =ROUND((1-RevenueTableAnswer[[#This Row],[Discount on Total Revenue]])*RevenueTableAnswer[[#This Row],[Total Revenue]],2) -> 1188.53
A145: 2017-11-03 | B145: Yanaki | C145: 48 | D145: 21.95 | E145: 1053.6 | F145: =VLOOKUP(RevenueTableAnswer[[#This Row],[Units Sold]],DiscountTableAnswer[],2) -> 0.375 | G145: =ROUND((1-RevenueTableAnswer[[#This Row],[Discount on Total Revenue]])*RevenueTableAnswer[[#This Row],[Total Revenue]],2) -> 658.5
A146: 2017-11-04 | B146: Quad | C146: 12 | D146: 43.95 | E146: 527.4 | F146: =VLOOKUP(RevenueTableAnswer[[#This Row],[Units Sold]],DiscountTableAnswer[],2) -> 0.25 | G146: =ROUND((1-RevenueTableAnswer[[#This Row],[Discount on Total Revenue]])*RevenueTableAnswer[[#This Row],[Total Revenue]],2) -> 395.55
A147: 2017-11-02 | B147: Quad | C147: 163 | D147: 43.95 | E147: 7163.85 | F147: =VLOOKUP(RevenueTableAnswer[[#This Row],[Units Sold]],DiscountTableAnswer[],2) -> 0.5 | G147: =ROUND((1-RevenueTableAnswer[[#This Row],[Discount on Total Revenue]])*RevenueTableAnswer[[#This Row],[Total Revenue]],2) -> 3581.93
A148: 2017-11-02 | B148: Yanaki | C148: 133 | D148: 21.95 | E148: 2919.35 | F148: =VLOOKUP(RevenueTableAnswer[[#This Row],[Units Sold]],DiscountTableAnswer[],2) -> 0.4375 | G148: =ROUND((1-RevenueTableAnswer[[#This Row],[Discount on Total Revenue]])*RevenueTableAnswer[[#This Row],[Total Revenue]],2) -> 1642.13
A149: 2017-11-03 | B149: V Rang | C149: 63 | D149: 14.95 | E149: 941.85 | F149: =VLOOKUP(RevenueTableAnswer[[#This Row],[Units Sold]],DiscountTableAnswer[],2) -> 0.375 | G149: =ROUND((1-RevenueTableAnswer[[#This Row],[Discount on Total Revenue]])*RevenueTableAnswer[[#This Row],[Total Revenue]],2) -> 588.66
A150: 2017-11-01 | B150: Quad | C150: 95 | D150: 43.95 | E150: 4175.25 | F150: =VLOOKUP(RevenueTableAnswer[[#This Row],[Units Sold]],DiscountTableAnswer[],2) -> 0.375 | G150: =ROUND((1-RevenueTableAnswer[[#This Row],[Discount on Total Revenue]])*RevenueTableAnswer[[#This Row],[Total Revenue]],2) -> 2609.53
A151: 2017-11-03 | B151: V Rang | C151: 51 | D151: 14.95 | E151: 762.45 | F151: =VLOOKUP(RevenueTableAnswer[[#This Row],[Units Sold]],DiscountTableAnswer[],2) -> 0.375 | G151: =ROUND((1-RevenueTableAnswer[[#This Row],[Discount on Total Revenue]])*RevenueTableAnswer[[#This Row],[Total Revenue]],2) -> 476.53
A152: 2017-11-06 | B152: Quad | C152: 75 | D152: 43.95 | E152: 3296.25 | F152: =VLOOKUP(RevenueTableAnswer[[#This Row],[Units Sold]],DiscountTableAnswer[],2) -> 0.375 | G152: =ROUND((1-RevenueTableAnswer[[#This Row],[Discount on Total Revenue]])*RevenueTableAnswer[[#This Row],[Total Revenue]],2) -> 2060.16
A153: 2017-11-04 | B153: V Rang | C153: 174 | D153: 14.95 | E153: 2601.3 | F153: =VLOOKUP(RevenueTableAnswer[[#This Row],[Units Sold]],DiscountTableAnswer[],2) -> 0.55 | G153: =ROUND((1-RevenueTableAnswer[[#This Row],[Discount on Total Revenue]])*RevenueTableAnswer[[#This Row],[Total Revenue]],2) -> 1170.59
A154: 2017-11-01 | B154: V Rang | C154: 150 | D154: 14.95 | E154: 2242.5 | F154: =VLOOKUP(RevenueTableAnswer[[#This Row],[Units Sold]],DiscountTableAnswer[],2) -> 0.5 | G154: =ROUND((1-RevenueTableAnswer[[#This Row],[Discount on Total Revenue]])*RevenueTableAnswer[[#This Row],[Total Revenue]],2) -> 1121.25
A155: 2017-11-04 | B155: V Rang | C155: 4 | D155: 14.95 | E155: 59.8 | F155: =VLOOKUP(RevenueTableAnswer[[#This Row],[Units Sold]],DiscountTableAnswer[],2) -> 0 | G155: =ROUND((1-RevenueTableAnswer[[#This Row],[Discount on Total Revenue]])*RevenueTableAnswer[[#This Row],[Total Revenue]],2) -> 59.8
A156: 2017-11-01 | B156: Quad | C156: 87 | D156: 43.95 | E156: 3823.65 | F156: =VLOOKUP(RevenueTableAnswer[[#This Row],[Units Sold]],DiscountTableAnswer[],2) -> 0.375 | G156: =ROUND((1-RevenueTableAnswer[[#This Row],[Discount on Total Revenue]])*RevenueTableAnswer[[#This Row],[Total Revenue]],2) -> 2389.78
A157: 2017-11-01 | B157: V Rang | C157: 105 | D157: 14.95 | E157: 1569.75 | F157: =VLOOKUP(RevenueTableAnswer[[#This Row],[Units Sold]],DiscountTableAnswer[],2) -> 0.4375 | G157: =ROUND((1-RevenueTableAnswer[[#This Row],[Discount on Total Revenue]])*RevenueTableAnswer[[#This Row],[Total Revenue]],2) -> 882.98
A158: 2017-11-06 | B158: V Rang | C158: 129 | D158: 14.95 | E158: 1928.55 | F158: =VLOOKUP(RevenueTableAnswer[[#This Row],[Units Sold]],DiscountTableAnswer[],2) -> 0.4375 | G158: =ROUND((1-RevenueTableAnswer[[#This Row],[Discount on Total Revenue]])*RevenueTableAnswer[[#This Row],[Total Revenue]],2) -> 1084.81
A159: 2017-11-08 | B159: V Rang | C159: 9 | D159: 14.95 | E159: 134.55 | F159: =VLOOKUP(RevenueTableAnswer[[#This Row],[Units Sold]],DiscountTableAnswer[],2) -> 0 | G159: =ROUND((1-RevenueTableAnswer[[#This Row],[Discount on Total Revenue]])*RevenueTableAnswer[[#This Row],[Total Revenue]],2) -> 134.55
A160: 2017-11-05 | B160: V Rang | C160: 90 | D160: 14.95 | E160: 1345.5 | F160: =VLOOKUP(RevenueTableAnswer[[#This Row],[Units Sold]],DiscountTableAnswer[],2) -> 0.375 | G160: =ROUND((1-RevenueTableAnswer[[#This Row],[Discount on Total Revenue]])*RevenueTableAnswer[[#This Row],[Total Revenue]],2) -> 840.94
A161: 2017-11-02 | B161: Yanaki | C161: 14 | D161: 21.95 | E161: 307.3 | F161: =VLOOKUP(RevenueTableAnswer[[#This Row],[Units Sold]],DiscountTableAnswer[],2) -> 0.25 | G161: =ROUND((1-RevenueTableAnswer[[#This Row],[Discount on Total Revenue]])*RevenueTableAnswer[[#This Row],[Total Revenue]],2) -> 230.48
A162: 2017-11-02 | B162: Yanaki | C162: 134 | D162: 21.95 | E162: 2941.3 | F162: =VLOOKUP(RevenueTableAnswer[[#This Row],[Units Sold]],DiscountTableAnswer[],2) -> 0.4375 | G162: =ROUND((1-RevenueTableAnswer[[#This Row],[Discount on Total Revenue]])*RevenueTableAnswer[[#This Row],[Total Revenue]],2) -> 1654.48
A163: 2017-11-08 | B163: Sunset | C163: 102 | D163: 22.95 | E163: 2340.9 | F163: =VLOOKUP(RevenueTableAnswer[[#This Row],[Units Sold]],DiscountTableAnswer[],2) -> 0.4375 | G163: =ROUND((1-RevenueTableAnswer[[#This Row],[Discount on Total Revenue]])*RevenueTableAnswer[[#This Row],[Total Revenue]],2) -> 1316.76
A164: 2017-11-03 | B164: Quad | C164: 46 | D164: 43.95 | E164: 2021.7 | F164: =VLOOKUP(RevenueTableAnswer[[#This Row],[Units Sold]],DiscountTableAnswer[],2) -> 0.25 | G164: =ROUND((1-RevenueTableAnswer[[#This Row],[Discount on Total Revenue]])*RevenueTableAnswer[[#This Row],[Total Revenue]],2) -> 1516.28
A165: 2017-11-07 | B165: Quad | C165: 182 | D165: 43.95 | E165: 7998.9 | F165: =VLOOKUP(RevenueTableAnswer[[#This Row],[Units Sold]],DiscountTableAnswer[],2) -> 0.55 | G165: =ROUND((1-RevenueTableAnswer[[#This Row],[Discount on Total Revenue]])*RevenueTableAnswer[[#This Row],[Total Revenue]],2) -> 3599.51
A166: 2017-11-02 | B166: Quad | C166: 190 | D166: 43.95 | E166: 8350.5 | F166: =VLOOKUP(RevenueTableAnswer[[#This Row],[Units Sold]],DiscountTableAnswer[],2) -> 0.55 | G166: =ROUND((1-RevenueTableAnswer[[#This Row],[Discount on Total Revenue]])*RevenueTableAnswer[[#This Row],[Total Revenue]],2) -> 3757.73
A167: 2017-11-06 | B167: Sunset | C167: 13 | D167: 22.95 | E167: 298.35 | F167: =VLOOKUP(RevenueTableAnswer[[#This Row],[Units Sold]],DiscountTableAnswer[],2) -> 0.25 | G167: =ROUND((1-RevenueTableAnswer[[#This Row],[Discount on Total Revenue]])*RevenueTableAnswer[[#This Row],[Total Revenue]],2) -> 223.76
A168: 2017-11-06 | B168: Yanaki | C168: 132 | D168: 21.95 | E168: 2897.4 | F168: =VLOOKUP(RevenueTableAnswer[[#This Row],[Units Sold]],DiscountTableAnswer[],2) -> 0.4375 | G168: =ROUND((1-RevenueTableAnswer[[#This Row],[Discount on Total Revenue]])*RevenueTableAnswer[[#This Row],[Total Revenue]],2) -> 1629.79
A169: 2017-11-08 | B169: Yanaki | C169: 52 | D169: 21.95 | E169: 1141.4 | F169: =VLOOKUP(RevenueTableAnswer[[#This Row],[Units Sold]],DiscountTableAnswer[],2) -> 0.375 | G169: =ROUND((1-RevenueTableAnswer[[#This Row],[Discount on Total Revenue]])*RevenueTableAnswer[[#This Row],[Total Revenue]],2) -> 713.38
A170: 2017-11-01 | B170: V Rang | C170: 105 | D170: 14.95 | E170: 1569.75 | F170: =VLOOKUP(RevenueTableAnswer[[#This Row],[Units Sold]],DiscountTableAnswer[],2) -> 0.4375 | G170: =ROUND((1-RevenueTableAnswer[[#This Row],[Discount on Total Revenue]])*RevenueTableAnswer[[#This Row],[Total Revenue]],2) -> 882.98
A171: 2017-11-02 | B171: Sunset | C171: 142 | D171: 22.95 | E171: 3258.9 | F171: =VLOOKUP(RevenueTableAnswer[[#This Row],[Units Sold]],DiscountTableAnswer[],2) -> 0.4375 | G171: =ROUND((1-RevenueTableAnswer[[#This Row],[Discount on Total Revenue]])*RevenueTableAnswer[[#This Row],[Total Revenue]],2) -> 1833.13
A172: 2017-11-08 | B172: Sunset | C172: 132 | D172: 22.95 | E172: 3029.4 | F172: =VLOOKUP(RevenueTableAnswer[[#This Row],[Units Sold]],DiscountTableAnswer[],2) -> 0.4375 | G172: =ROUND((1-RevenueTableAnswer[[#This Row],[Discount on Total Revenue]])*RevenueTableAnswer[[#This Row],[Total Revenue]],2) -> 1704.04
A173: 2017-11-04 | B173: V Rang | C173: 116 | D173: 14.95 | E173: 1734.2 | F173: =VLOOKUP(RevenueTableAnswer[[#This Row],[Units Sold]],DiscountTableAnswer[],2) -> 0.4375 | G173: =ROUND((1-RevenueTableAnswer[[#This Row],[Discount on Total Revenue]])*RevenueTableAnswer[[#This Row],[Total Revenue]],2) -> 975.49
A174: 2017-11-08 | B174: V Rang | C174: 89 | D174: 14.95 | E174: 1330.55 | F174: =VLOOKUP(RevenueTableAnswer[[#This Row],[Units Sold]],DiscountTableAnswer[],2) -> 0.375 | G174: =ROUND((1-RevenueTableAnswer[[#This Row],[Discount on Total Revenue]])*RevenueTableAnswer[[#This Row],[Total Revenue]],2) -> 831.59
A175: 2017-11-03 | B175: Quad | C175: 156 | D175: 43.95 | E175: 6856.2 | F175: =VLOOKUP(RevenueTableAnswer[[#This Row],[Units Sold]],DiscountTableAnswer[],2) -> 0.5 | G175: =ROUND((1-RevenueTableAnswer[[#This Row],[Discount on Total Revenue]])*RevenueTableAnswer[[#This Row],[Total Revenue]],2) -> 3428.1
A176: 2017-11-06 | B176: Quad | C176: 136 | D176: 43.95 | E176: 5977.2 | F176: =VLOOKUP(RevenueTableAnswer[[#This Row],[Units Sold]],DiscountTableAnswer[],2) -> 0.4375 | G176: =ROUND((1-RevenueTableAnswer[[#This Row],[Discount on Total Revenue]])*RevenueTableAnswer[[#This Row],[Total Revenue]],2) -> 3362.18
A177: 2017-11-04 | B177: Yanaki | C177: 77 | D177: 21.95 | E177: 1690.15 | F177: =VLOOKUP(RevenueTableAnswer[[#This Row],[Units Sold]],DiscountTableAnswer[],2) -> 0.375 | G177: =ROUND((1-RevenueTableAnswer[[#This Row],[Discount on Total Revenue]])*RevenueTableAnswer[[#This Row],[Total Revenue]],2) -> 1056.34
A178: 2017-11-05 | B178: Sunset | C178: 97 | D178: 22.95 | E178: 2226.15 | F178: =VLOOKUP(RevenueTableAnswer[[#This Row],[Units Sold]],DiscountTableAnswer[],2) -> 0.4375 | G178: =ROUND((1-RevenueTableAnswer[[#This Row],[Discount on Total Revenue]])*RevenueTableAnswer[[#This Row],[Total Revenue]],2) -> 1252.21
A179: 2017-11-08 | B179: Yanaki | C179: 121 | D179: 21.95 | E179: 2655.95 | F179: =VLOOKUP(RevenueTableAnswer[[#This Row],[Units Sold]],DiscountTableAnswer[],2) -> 0.4375 | G179: =ROUND((1-RevenueTableAnswer[[#This Row],[Discount on Total Revenue]])*RevenueTableAnswer[[#This Row],[Total Revenue]],2) -> 1493.97
A180: 2017-11-02 | B180: Quad | C180: 3 | D180: 43.95 | E180: 131.85 | F180: =VLOOKUP(RevenueTableAnswer[[#This Row],[Units Sold]],DiscountTableAnswer[],2) -> 0 | G180: =ROUND((1-RevenueTableAnswer[[#This Row],[Discount on Total Revenue]])*RevenueTableAnswer[[#This Row],[Total Revenue]],2) -> 131.85
A181: 2017-11-04 | B181: Sunset | C181: 56 | D181: 22.95 | E181: 1285.2 | F181: =VLOOKUP(RevenueTableAnswer[[#This Row],[Units Sold]],DiscountTableAnswer[],2) -> 0.375 | G181: =ROUND((1-RevenueTableAnswer[[#This Row],[Discount on Total Revenue]])*RevenueTableAnswer[[#This Row],[Total Revenue]],2) -> 803.25
A182: 2017-11-04 | B182: Quad | C182: 177 | D182: 43.95 | E182: 7779.15 | F182: =VLOOKUP(RevenueTableAnswer[[#This Row],[Units Sold]],DiscountTableAnswer[],2) -> 0.55 | G182: =ROUND((1-RevenueTableAnswer[[#This Row],[Discount on Total Revenue]])*RevenueTableAnswer[[#This Row],[Total Revenue]],2) -> 3500.62
A183: 2017-11-04 | B183: Quad | C183: 140 | D183: 43.95 | E183: 6153 | F183: =VLOOKUP(RevenueTableAnswer[[#This Row],[Units Sold]],DiscountTableAnswer[],2) -> 0.4375 | G183: =ROUND((1-RevenueTableAnswer[[#This Row],[Discount on Total Revenue]])*RevenueTableAnswer[[#This Row],[Total Revenue]],2) -> 3461.06
A184: 2017-11-08 | B184: Yanaki | C184: 173 | D184: 21.95 | E184: 3797.35 | F184: =VLOOKUP(RevenueTableAnswer[[#This Row],[Units Sold]],DiscountTableAnswer[],2) -> 0.55 | G184: =ROUND((1-RevenueTableAnswer[[#This Row],[Discount on Total Revenue]])*RevenueTableAnswer[[#This Row],[Total Revenue]],2) -> 1708.81
A185: 2017-11-06 | B185: Yanaki | C185: 27 | D185: 21.95 | E185: 592.65 | F185: =VLOOKUP(RevenueTableAnswer[[#This Row],[Units Sold]],DiscountTableAnswer[],2) -> 0.25 | G185: =ROUND((1-RevenueTableAnswer[[#This Row],[Discount on Total Revenue]])*RevenueTableAnswer[[#This Row],[Total Revenue]],2) -> 444.49
A186: 2017-11-04 | B186: Quad | C186: 87 | D186: 43.95 | E186: 3823.65 | F186: =VLOOKUP(RevenueTableAnswer[[#This Row],[Units Sold]],DiscountTableAnswer[],2) -> 0.375 | G186: =ROUND((1-RevenueTableAnswer[[#This Row],[Discount on Total Revenue]])*RevenueTableAnswer[[#This Row],[Total Revenue]],2) -> 2389.78
A187: 2017-11-04 | B187: Yanaki | C187: 20 | D187: 21.95 | E187: 439 | F187: =VLOOKUP(RevenueTableAnswer[[#This Row],[Units Sold]],DiscountTableAnswer[],2) -> 0.25 | G187: =ROUND((1-RevenueTableAnswer[[#This Row],[Discount on Total Revenue]])*RevenueTableAnswer[[#This Row],[Total Revenue]],2) -> 329.25
A188: 2017-11-04 | B188: Quad | C188: 191 | D188: 43.95 | E188: 8394.45 | F188: =VLOOKUP(RevenueTableAnswer[[#This Row],[Units Sold]],DiscountTableAnswer[],2) -> 0.55 | G188: =ROUND((1-RevenueTableAnswer[[#This Row],[Discount on Total Revenue]])*RevenueTableAnswer[[#This Row],[Total Revenue]],2) -> 3777.5
A189: 2017-11-01 | B189: Quad | C189: 70 | D189: 43.95 | E189: 3076.5 | F189: =VLOOKUP(RevenueTableAnswer[[#This Row],[Units Sold]],DiscountTableAnswer[],2) -> 0.375 | G189: =ROUND((1-RevenueTableAnswer[[#This Row],[Discount on Total Revenue]])*RevenueTableAnswer[[#This Row],[Total Revenue]],2) -> 1922.81
A190: 2017-11-04 | B190: V Rang | C190: 186 | D190: 14.95 | E190: 2780.7 | F190: =VLOOKUP(RevenueTableAnswer[[#This Row],[Units Sold]],DiscountTableAnswer[],2) -> 0.55 | G190: =ROUND((1-RevenueTableAnswer[[#This Row],[Discount on Total Revenue]])*RevenueTableAnswer[[#This Row],[Total Revenue]],2) -> 1251.32
A191: 2017-11-04 | B191: Yanaki | C191: 126 | D191: 21.95 | E191: 2765.7 | F191: =VLOOKUP(RevenueTableAnswer[[#This Row],[Units Sold]],DiscountTableAnswer[],2) -> 0.4375 | G191: =ROUND((1-RevenueTableAnswer[[#This Row],[Discount on Total Revenue]])*RevenueTableAnswer[[#This Row],[Total Revenue]],2) -> 1555.71
A192: 2017-11-01 | B192: V Rang | C192: 3 | D192: 14.95 | E192: 44.85 | F192: =VLOOKUP(RevenueTableAnswer[[#This Row],[Units Sold]],DiscountTableAnswer[],2) -> 0 | G192: =ROUND((1-RevenueTableAnswer[[#This Row],[Discount on Total Revenue]])*RevenueTableAnswer[[#This Row],[Total Revenue]],2) -> 44.85
A193: 2017-11-04 | B193: Yanaki | C193: 92 | D193: 21.95 | E193: 2019.4 | F193: =VLOOKUP(RevenueTableAnswer[[#This Row],[Units Sold]],DiscountTableAnswer[],2) -> 0.375 | G193: =ROUND((1-RevenueTableAnswer[[#This Row],[Discount on Total Revenue]])*RevenueTableAnswer[[#This Row],[Total Revenue]],2) -> 1262.13
A194: 2017-11-04 | B194: Sunset | C194: 3 | D194: 22.95 | E194: 68.85 | F194: =VLOOKUP(RevenueTableAnswer[[#This Row],[Units Sold]],DiscountTableAnswer[],2) -> 0 | G194: =ROUND((1-RevenueTableAnswer[[#This Row],[Discount on Total Revenue]])*RevenueTableAnswer[[#This Row],[Total Revenue]],2) -> 68.85
A195: 2017-11-05 | B195: Quad | C195: 82 | D195: 43.95 | E195: 3603.9 | F195: =VLOOKUP(RevenueTableAnswer[[#This Row],[Units Sold]],DiscountTableAnswer[],2) -> 0.375 | G195: =ROUND((1-RevenueTableAnswer[[#This Row],[Discount on Total Revenue]])*RevenueTableAnswer[[#This Row],[Total Revenue]],2) -> 2252.44
A196: 2017-11-01 | B196: Quad | C196: 99 | D196: 43.95 | E196: 4351.05 | F196: =VLOOKUP(RevenueTableAnswer[[#This Row],[Units Sold]],DiscountTableAnswer[],2) -> 0.4375 | G196: =ROUND((1-RevenueTableAnswer[[#This Row],[Discount on Total Revenue]])*RevenueTableAnswer[[#This Row],[Total Revenue]],2) -> 2447.47
A197: 2017-11-06 | B197: Yanaki | C197: 131 | D197: 21.95 | E197: 2875.45 | F197: =VLOOKUP(RevenueTableAnswer[[#This Row],[Units Sold]],DiscountTableAnswer[],2) -> 0.4375 | G197: =ROUND((1-RevenueTableAnswer[[#This Row],[Discount on Total Revenue]])*RevenueTableAnswer[[#This Row],[Total Revenue]],2) -> 1617.44
A198: 2017-11-01 | B198: Sunset | C198: 175 | D198: 22.95 | E198: 4016.25 | F198: =VLOOKUP(RevenueTableAnswer[[#This Row],[Units Sold]],DiscountTableAnswer[],2) -> 0.55 | G198: =ROUND((1-RevenueTableAnswer[[#This Row],[Discount on Total Revenue]])*RevenueTableAnswer[[#This Row],[Total Revenue]],2) -> 1807.31
A199: 2017-11-04 | B199: Quad | C199: 41 | D199: 43.95 | E199: 1801.95 | F199: =VLOOKUP(RevenueTableAnswer[[#This Row],[Units Sold]],DiscountTableAnswer[],2) -> 0.25 | G199: =ROUND((1-RevenueTableAnswer[[#This Row],[Discount on Total Revenue]])*RevenueTableAnswer[[#This Row],[Total Revenue]],2) -> 1351.46
A200: 2017-11-04 | B200: V Rang | C200: 14 | D200: 14.95 | E200: 209.3 | F200: =VLOOKUP(RevenueTableAnswer[[#This Row],[Units Sold]],DiscountTableAnswer[],2) -> 0.25 | G200: =ROUND((1-RevenueTableAnswer[[#This Row],[Discount on Total Revenue]])*RevenueTableAnswer[[#This Row],[Total Revenue]],2) -> 156.98
A201: 2017-11-06 | B201: Sunset | C201: 122 | D201: 22.95 | E201: 2799.9 | F201: =VLOOKUP(RevenueTableAnswer[[#This Row],[Units Sold]],DiscountTableAnswer[],2) -> 0.4375 | G201: =ROUND((1-RevenueTableAnswer[[#This Row],[Discount on Total Revenue]])*RevenueTableAnswer[[#This Row],[Total Revenue]],2) -> 1574.94
A202: 2017-11-02 | B202: Sunset | C202: 48 | D202: 22.95 | E202: 1101.6 | F202: =VLOOKUP(RevenueTableAnswer[[#This Row],[Units Sold]],DiscountTableAnswer[],2) -> 0.375 | G202: =ROUND((1-RevenueTableAnswer[[#This Row],[Discount on Total Revenue]])*RevenueTableAnswer[[#This Row],[Total Revenue]],2) -> 688.5
... 453 more rows

Sheet HW==>>

Sheet HW(1)
A1: Convert the below table to an Excel Table and name it "SalesRepSalesTable". The create a PivotTable as a new sheet that adds the sales for each Sales Rep.
A3: Date | B3: Region | C3: SalesRep | D3: Sales
A4: 2013-10-21 | B4: West | C4: Jermaine Sherman | D4: 519
A5: 2013-10-25 | B5: West | C5: Elias Ramsey | D5: 651
A6: 2013-10-26 | B6: West | C6: Barry Scott | D6: 618
A7: 2013-10-23 | B7: Northwest | C7: Alfred Fuller | D7: 335
A8: 2013-10-20 | B8: Northwest | C8: Alfred Fuller | D8: 640
A9: 2013-10-23 | B9: Southwest | C9: Kim Wolfe | D9: 586
A10: 2013-10-21 | B10: West | C10: Myron Daniel | D10: 301
A11: 2013-10-25 | B11: Southwest | C11: Elias Ramsey | D11: 359
A12: 2013-10-20 | B12: West | C12: Kim Wolfe | D12: 658
A13: 2013-10-21 | B13: Southwest | C13: Elias Ramsey | D13: 213
A14: 2013-10-25 | B14: Southwest | C14: Lynn Osborne | D14: 500
A15: 2013-10-22 | B15: Northwest | C15: Kim Wolfe | D15: 604
A16: 2013-10-23 | B16: West | C16: Alexis Gill | D16: 340
A17: 2013-10-21 | B17: Northwest | C17: Lynn Osborne | D17: 117
A18: 2013-10-25 | B18: Southwest | C18: Mildred Leonard | D18: 234
A19: 2013-10-20 | B19: West | C19: Mildred Leonard | D19: 225
A20: 2013-10-25 | B20: Southwest | C20: Velma Bennett | D20: 302
A21: 2013-10-24 | B21: Northwest | C21: Fred Mullins | D21: 223
A22: 2013-10-22 | B22: West | C22: Kim Wolfe | D22: 401
A23: 2013-10-24 | B23: West | C23: Barry Scott | D23: 405
A24: 2013-10-21 | B24: Northwest | C24: Myron Daniel | D24: 493
A25: 2013-10-21 | B25: Southwest | C25: Lynn Osborne | D25: 214
A26: 2013-10-22 | B26: Southwest | C26: Alfred Fuller | D26: 366
A27: 2013-10-22 | B27: Northwest | C27: Elias Ramsey | D27: 191
A28: 2013-10-25 | B28: West | C28: Mildred Leonard | D28: 628
A29: 2013-10-26 | B29: West | C29: Alfred Fuller | D29: 144
A30: 2013-10-26 | B30: Southwest | C30: Mildred Leonard | D30: 335
A31: 2013-10-22 | B31: Southwest | C31: Myron Daniel | D31: 571
A32: 2013-10-25 | B32: Southwest | C32: Alfred Fuller | D32: 136
A33: 2013-10-25 | B33: Northwest | C33: Lynn Osborne | D33: 201
A34: 2013-10-23 | B34: Northwest | C34: Brad Dawson | D34: 339
A35: 2013-10-25 | B35: Northwest | C35: Kim Wolfe | D35: 203
A36: 2013-10-21 | B36: West | C36: Alexis Gill | D36: 526
A37: 2013-10-25 | B37: West | C37: Myron Daniel | D37: 86
A38: 2013-10-24 | B38: Southwest | C38: Natasha Schneider | D38: 388
A39: 2013-10-25 | B39: Northwest | C39: Kathleen Marshall | D39: 119
A40: 2013-10-21 | B40: West | C40: Kathleen Marshall | D40: 296
A41: 2013-10-21 | B41: Northwest | C41: Barry Scott | D41: 295
A42: 2013-10-21 | B42: Northwest | C42: Brad Dawson | D42: 120
A43: 2013-10-21 | B43: West | C43: Elias Ramsey | D43: 647
A44: 2013-10-22 | B44: Northwest | C44: Wilbert Moreno | D44: 159
A45: 2013-10-23 | B45: Northwest | C45: Alexis Gill | D45: 217
A46: 2013-10-24 | B46: Southwest | C46: Kim Wolfe | D46: 362
A47: 2013-10-26 | B47: Southwest | C47: Velma Bennett | D47: 599
A48: 2013-10-25 | B48: West | C48: Jermaine Sherman | D48: 546
A49: 2013-10-25 | B49: Northwest | C49: Lynn Osborne | D49: 254
A50: 2013-10-20 | B50: West | C50: Elias Ramsey | D50: 101
A51: 2013-10-26 | B51: Southwest | C51: Lynn Osborne | D51: 150
A52: 2013-10-25 | B52: Southwest | C52: Myron Daniel | D52: 204
A53: 2013-10-24 | B53: Southwest | C53: Brad Dawson | D53: 106
A54: 2013-10-21 | B54: West | C54: Myron Daniel | D54: 333
A55: 2013-10-24 | B55: Northwest | C55: Myron Daniel | D55: 67
A56: 2013-10-20 | B56: Northwest | C56: Velma Bennett | D56: 51
A57: 2013-10-21 | B57: Southwest | C57: Lynn Osborne | D57: 279
A58: 2013-10-24 | B58: Southwest | C58: Tony Pierce | D58: 123
A59: 2013-10-21 | B59: West | C59: Alfred Fuller | D59: 519
A60: 2013-10-22 | B60: Northwest | C60: Mildred Leonard | D60: 501
A61: 2013-10-26 | B61: West | C61: Kathleen Marshall | D61: 235
A62: 2013-10-23 | B62: Southwest | C62: Barry Scott | D62: 35
A63: 2013-10-23 | B63: West | C63: Alfred Fuller | D63: 319
A64: 2013-10-24 | B64: Northwest | C64: Barry Scott | D64: 551
A65: 2013-10-26 | B65: Southwest | C65: Natasha Schneider | D65: 188
A66: 2013-10-25 | B66: West | C66: Kathleen Marshall | D66: 129
A67: 2013-10-20 | B67: West | C67: Brad Dawson | D67: 339
A68: 2013-10-21 | B68: Southwest | C68: Kathleen Marshall | D68: 485
A69: 2013-10-20 | B69: West | C69: Mildred Leonard | D69: 29
A70: 2013-10-20 | B70: Southwest | C70: Kim Wolfe | D70: 135
A71: 2013-10-26 | B71: Southwest | C71: Jermaine Sherman | D71: 584
A72: 2013-10-23 | B72: Northwest | C72: Lynn Osborne | D72: 684
A73: 2013-10-23 | B73: West | C73: Alfred Fuller | D73: 528
A74: 2013-10-26 | B74: Southwest | C74: Lynn Osborne | D74: 675
A75: 2013-10-23 | B75: West | C75: Brad Dawson | D75: 119
A76: 2013-10-22 | B76: West | C76: Kim Wolfe | D76: 368
A77: 2013-10-24 | B77: Southwest | C77: Freda Gregory | D77: 524
A78: 2013-10-24 | B78: Southwest | C78: Lynn Osborne | D78: 329
A79: 2013-10-26 | B79: West | C79: Sean Hunter | D79: 146
A80: 2013-10-26 | B80: Northwest | C80: Alfred Fuller | D80: 350
A81: 2013-10-23 | B81: Southwest | C81: Natasha Schneider | D81: 387
A82: 2013-10-20 | B82: Southwest | C82: Faith Malone | D82: 244
A83: 2013-10-23 | B83: Southwest | C83: Kathleen Marshall | D83: 388
A84: 2013-10-20 | B84: Southwest | C84: Natasha Schneider | D84: 449
A85: 2013-10-22 | B85: West | C85: Natasha Schneider | D85: 477
A86: 2013-10-23 | B86: Southwest | C86: Sheila Smith | D86: 457
A87: 2013-10-26 | B87: Southwest | C87: Barry Scott | D87: 105
A88: 2013-10-22 | B88: West | C88: Sean Hunter | D88: 458
A89: 2013-10-26 | B89: Northwest | C89: Elias Ramsey | D89: 110
A90: 2013-10-21 | B90: West | C90: Natasha Schneider | D90: 32
A91: 2013-10-24 | B91: West | C91: Cecil Austin | D91: 681
A92: 2013-10-23 | B92: Northwest | C92: Barry Scott | D92: 320
A93: 2013-10-25 | B93: Northwest | C93: Freda Gregory | D93: 601
A94: 2013-10-25 | B94: Southwest | C94: Mildred Leonard | D94: 101
A95: 2013-10-23 | B95: Northwest | C95: Sheila Smith | D95: 172
A96: 2013-10-20 | B96: West | C96: Brad Dawson | D96: 197
A97: 2013-10-22 | B97: West | C97: Alfred Fuller | D97: 346
A98: 2013-10-26 | B98: West | C98: John Lucas | D98: 318
A99: 2013-10-21 | B99: West | C99: John Lucas | D99: 245
A100: 2013-10-25 | B100: Southwest | C100: Kathleen Marshall | D100: 498
A101: 2013-10-26 | B101: Southwest | C101: Lynn Osborne | D101: 272
A102: 2013-10-21 | B102: Southwest | C102: Kathleen Marshall | D102: 424
A103: 2013-10-26 | B103: Northwest | C103: Lynn Osborne | D103: 122
A104: 2013-10-23 | B104: Southwest | C104: Lynn Osborne | D104: 39
A105: 2013-10-21 | B105: Southwest | C105: Jermaine Sherman | D105: 400
A106: 2013-10-26 | B106: West | C106: Alfred Fuller | D106: 416
A107: 2013-10-20 | B107: Southwest | C107: Velma Bennett | D107: 397
A108: 2013-10-25 | B108: Northwest | C108: Myron Daniel | D108: 671
A109: 2013-10-25 | B109: Southwest | C109: Alfred Fuller | D109: 148
A110: 2013-10-21 | B110: Northwest | C110: Fred Mullins | D110: 115
A111: 2013-10-25 | B111: Northwest | C111: Aaron Adkins | D111: 639
A112: 2013-10-24 | B112: Southwest | C112: Kathleen Marshall | D112: 659
A113: 2013-10-22 | B113: West | C113: Barry Scott | D113: 36
A114: 2013-10-21 | B114: Northwest | C114: Fred Mullins | D114: 102
A115: 2013-10-22 | B115: West | C115: Mildred Leonard | D115: 413
A116: 2013-10-25 | B116: West | C116: Natasha Schneider | D116: 166
A117: 2013-10-22 | B117: West | C117: Kim Wolfe | D117: 97
A118: 2013-10-26 | B118: West | C118: Sean Hunter | D118: 127
A119: 2013-10-20 | B119: Northwest | C119: Janet Murphy | D119: 60
A120: 2013-10-22 | B120: Southwest | C120: Mildred Leonard | D120: 496
A121: 2013-10-23 | B121: Northwest | C121: Sean Hunter | D121: 204
A122: 2013-10-26 | B122: Northwest | C122: Alfred Fuller | D122: 489
A123: 2013-10-20 | B123: West | C123: Faith Malone | D123: 266
A124: 2013-10-20 | B124: Northwest | C124: Kathleen Marshall | D124: 364
A125: 2013-10-20 | B125: Northwest | C125: Barry Scott | D125: 579
A126: 2013-10-21 | B126: West | C126: Faith Malone | D126: 587
A127: 2013-10-26 | B127: West | C127: Janet Murphy | D127: 543
A128: 2013-10-22 | B128: Northwest | C128: Mildred Leonard | D128: 644
A129: 2013-10-20 | B129: West | C129: Alfred Fuller | D129: 564
A130: 2013-10-22 | B130: Southwest | C130: Faith Malone | D130: 149
A131: 2013-10-23 | B131: Southwest | C131: Barry Scott | D131: 201
A132: 2013-10-25 | B132: West | C132: Janet Murphy | D132: 51
A133: 2013-10-23 | B133: West | C133: Myron Daniel | D133: 195
A134: 2013-10-26 | B134: Northwest | C134: Kim Wolfe | D134: 660
A135: 2013-10-21 | B135: Northwest | C135: Myron Daniel | D135: 523
A136: 2013-10-23 | B136: West | C136: Kathleen Marshall | D136: 649
A137: 2013-10-25 | B137: Southwest | C137: Elias Ramsey | D137: 409
A138: 2013-10-20 | B138: Northwest | C138: Velma Bennett | D138: 556
A139: 2013-10-22 | B139: Northwest | C139: Kim Wolfe | D139: 565
A140: 2013-10-20 | B140: Southwest | C140: Elias Ramsey | D140: 357
A141: 2013-10-25 | B141: West | C141: Alexis Gill | D141: 219
A142: 2013-10-25 | B142: Northwest | C142: Freda Gregory | D142: 327
A143: 2013-10-20 | B143: Southwest | C143: Velma Bennett | D143: 666
A144: 2013-10-20 | B144: Northwest | C144: Freda Gregory | D144: 290
A145: 2013-10-24 | B145: Northwest | C145: Elias Ramsey | D145: 64
A146: 2013-10-24 | B146: West | C146: Natasha Schneider | D146: 373
A147: 2013-10-26 | B147: Northwest | C147: Brad Dawson | D147: 249
A148: 2013-10-20 | B148: Northwest | C148: Kurt Hill | D148: 237
A149: 2013-10-22 | B149: West | C149: Natasha Schneider | D149: 138
A150: 2013-10-26 | B150: West | C150: Faith Malone | D150: 324
A151: 2013-10-22 | B151: Southwest | C151: Kathleen Marshall | D151: 633
A152: 2013-10-26 | B152: Southwest | C152: Lynn Osborne | D152: 240
A153: 2013-10-20 | B153: Southwest | C153: Brad Dawson | D153: 615
A154: 2013-10-22 | B154: Southwest | C154: Myron Daniel | D154: 180
A155: 2013-10-25 | B155: West | C155: Tony Pierce | D155: 415
A156: 2013-10-22 | B156: West | C156: Fred Mullins | D156: 305
A157: 2013-10-25 | B157: Northwest | C157: Kathleen Marshall | D157: 657
A158: 2013-10-23 | B158: West | C158: Kathleen Marshall | D158: 474
A159: 2013-10-22 | B159: West | C159: Natasha Schneider | D159: 611
A160: 2013-10-21 | B160: West | C160: Kurt Hill | D160: 682
A161: 2013-10-24 | B161: Northwest | C161: Fred Mullins | D161: 398
A162: 2013-10-23 | B162: Northwest | C162: Natasha Schneider | D162: 74
A163: 2013-10-24 | B163: West | C163: Lynn Osborne | D163: 243
A164: 2013-10-25 | B164: West | C164: Barry Scott | D164: 151
A165: 2013-10-25 | B165: Northwest | C165: Kathleen Marshall | D165: 174
A166: 2013-10-24 | B166: Northwest | C166: Freda Gregory | D166: 304
A167: 2013-10-20 | B167: West | C167: Wilbert Moreno | D167: 457
A168: 2013-10-20 | B168: Southwest | C168: Alfred Fuller | D168: 315
A169: 2013-10-23 | B169: Northwest | C169: Kim Wolfe | D169: 295
A170: 2013-10-22 | B170: Northwest | C170: Mildred Leonard | D170: 534
A171: 2013-10-23 | B171: West | C171: Jermaine Sherman | D171: 598
A172: 2013-10-24 | B172: Southwest | C172: Lynn Osborne | D172: 14
A173: 2013-10-22 | B173: Southwest | C173: Kathleen Marshall | D173: 26
A174: 2013-10-23 | B174: West | C174: Aaron Adkins | D174: 108
A175: 2013-10-22 | B175: West | C175: Janet Murphy | D175: 114
A176: 2013-10-26 | B176: Northwest | C176: Sheila Smith | D176: 684
A177: 2013-10-25 | B177: West | C177: Kurt Hill | D177: 258
A178: 2013-10-21 | B178: Northwest | C178: John Lucas | D178: 439
A179: 2013-10-26 | B179: Northwest | C179: Alfred Fuller | D179: 583
A180: 2013-10-25 | B180: West | C180: Lynn Osborne | D180: 664
A181: 2013-10-24 | B181: West | C181: Elias Ramsey | D181: 339
A182: 2013-10-24 | B182: Northwest | C182: Freda Gregory | D182: 164
A183: 2013-10-22 | B183: Southwest | C183: Elias Ramsey | D183: 671
A184: 2013-10-23 | B184: Southwest | C184: Mildred Leonard | D184: 241
A185: 2013-10-24 | B185: West | C185: Mildred Leonard | D185: 257
A186: 2013-10-23 | B186: Northwest | C186: Kurt Hill | D186: 264
A187: 2013-10-26 | B187: West | C187: Mildred Leonard | D187: 471
A188: 2013-10-21 | B188: Northwest | C188: Tony Pierce | D188: 40
A189: 2013-10-22 | B189: West | C189: Faith Malone | D189: 594
A190: 2013-10-21 | B190: West | C190: Kim Wolfe | D190: 605
A191: 2013-10-24 | B191: West | C191: Fred Mullins | D191: 409
A192: 2013-10-21 | B192: Northwest | C192: Tony Pierce | D192: 250
A193: 2013-10-22 | B193: Southwest | C193: Tony Pierce | D193: 481
A194: 2013-10-25 | B194: West | C194: Sean Hunter | D194: 529
A195: 2013-10-24 | B195: Southwest | C195: Wilbert Moreno | D195: 56
A196: 2013-10-23 | B196: West | C196: Alfred Fuller | D196: 82
A197: 2013-10-26 | B197: West | C197: Lynn Osborne | D197: 575
A198: 2013-10-22 | B198: West | C198: Kathleen Marshall | D198: 665
A199: 2013-10-25 | B199: West | C199: Kathleen Marshall | D199: 490
A200: 2013-10-23 | B200: Southwest | C200: Mildred Leonard | D200: 630
A201: 2013-10-25 | B201: Southwest | C201: Elias Ramsey | D201: 352
... 384 more rows

Sheet HW(1an)
A1: Convert the below table to an Excel Table and name it "SalesRepSalesTable". The create a PivotTable as a new sheet that adds the sales for each Sales Rep.
A3: Date | B3: Region | C3: SalesRep | D3: Sales | F3: SalesRep | G3: Sum of Sales
A4: 2013-10-21 | B4: West | C4: Jermaine Sherman | D4: 519 | F4: Aaron Adkins | G4: 4047
A5: 2013-10-25 | B5: West | C5: Elias Ramsey | D5: 651 | F5: Alexis Gill | G5: 4860
A6: 2013-10-26 | B6: West | C6: Barry Scott | D6: 618 | F6: Alfred Fuller | G6: 14779
A7: 2013-10-23 | B7: Northwest | C7: Alfred Fuller | D7: 335 | F7: Barry Scott | G7: 13915
A8: 2013-10-20 | B8: Northwest | C8: Alfred Fuller | D8: 640 | F8: Brad Dawson | G8: 4368
A9: 2013-10-23 | B9: Southwest | C9: Kim Wolfe | D9: 586 | F9: Cecil Austin | G9: 2939
A10: 2013-10-21 | B10: West | C10: Myron Daniel | D10: 301 | F10: Elias Ramsey | G10: 15181
A11: 2013-10-25 | B11: Southwest | C11: Elias Ramsey | D11: 359 | F11: Faith Malone | G11: 4662
A12: 2013-10-20 | B12: West | C12: Kim Wolfe | D12: 658 | F12: Fred Mullins | G12: 2485
A13: 2013-10-21 | B13: Southwest | C13: Elias Ramsey | D13: 213 | F13: Freda Gregory | G13: 6436
A14: 2013-10-25 | B14: Southwest | C14: Lynn Osborne | D14: 500 | F14: Janet Murphy | G14: 3204
A15: 2013-10-22 | B15: Northwest | C15: Kim Wolfe | D15: 604 | F15: Jermaine Sherman | G15: 6027
A16: 2013-10-23 | B16: West | C16: Alexis Gill | D16: 340 | F16: John Lucas | G16: 2287
A17: 2013-10-21 | B17: Northwest | C17: Lynn Osborne | D17: 117 | F17: Kathleen Marshall | G17: 16838
A18: 2013-10-25 | B18: Southwest | C18: Mildred Leonard | D18: 234 | F18: Kim Wolfe | G18: 15449
A19: 2013-10-20 | B19: West | C19: Mildred Leonard | D19: 225 | F19: Kurt Hill | G19: 4284
A20: 2013-10-25 | B20: Southwest | C20: Velma Bennett | D20: 302 | F20: Lynn Osborne | G20: 17520
A21: 2013-10-24 | B21: Northwest | C21: Fred Mullins | D21: 223 | F21: Mildred Leonard | G21: 15973
A22: 2013-10-22 | B22: West | C22: Kim Wolfe | D22: 401 | F22: Myron Daniel | G22: 14079
A23: 2013-10-24 | B23: West | C23: Barry Scott | D23: 405 | F23: Natasha Schneider | G23: 12691
A24: 2013-10-21 | B24: Northwest | C24: Myron Daniel | D24: 493 | F24: Sean Hunter | G24: 5527
A25: 2013-10-21 | B25: Southwest | C25: Lynn Osborne | D25: 214 | F25: Sheila Smith | G25: 1941
A26: 2013-10-22 | B26: Southwest | C26: Alfred Fuller | D26: 366 | F26: Tony Pierce | G26: 6024
A27: 2013-10-22 | B27: Northwest | C27: Elias Ramsey | D27: 191 | F27: Velma Bennett | G27: 4485
A28: 2013-10-25 | B28: West | C28: Mildred Leonard | D28: 628 | F28: Wilbert Moreno | G28: 3017
A29: 2013-10-26 | B29: West | C29: Alfred Fuller | D29: 144 | F29: Grand Total | G29: 203018
A30: 2013-10-26 | B30: Southwest | C30: Mildred Leonard | D30: 335
A31: 2013-10-22 | B31: Southwest | C31: Myron Daniel | D31: 571
A32: 2013-10-25 | B32: Southwest | C32: Alfred Fuller | D32: 136
A33: 2013-10-25 | B33: Northwest | C33: Lynn Osborne | D33: 201
A34: 2013-10-23 | B34: Northwest | C34: Brad Dawson | D34: 339
A35: 2013-10-25 | B35: Northwest | C35: Kim Wolfe | D35: 203
A36: 2013-10-21 | B36: West | C36: Alexis Gill | D36: 526
A37: 2013-10-25 | B37: West | C37: Myron Daniel | D37: 86
A38: 2013-10-24 | B38: Southwest | C38: Natasha Schneider | D38: 388
A39: 2013-10-25 | B39: Northwest | C39: Kathleen Marshall | D39: 119
A40: 2013-10-21 | B40: West | C40: Kathleen Marshall | D40: 296
A41: 2013-10-21 | B41: Northwest | C41: Barry Scott | D41: 295
A42: 2013-10-21 | B42: Northwest | C42: Brad Dawson | D42: 120
A43: 2013-10-21 | B43: West | C43: Elias Ramsey | D43: 647
A44: 2013-10-22 | B44: Northwest | C44: Wilbert Moreno | D44: 159
A45: 2013-10-23 | B45: Northwest | C45: Alexis Gill | D45: 217
A46: 2013-10-24 | B46: Southwest | C46: Kim Wolfe | D46: 362
A47: 2013-10-26 | B47: Southwest | C47: Velma Bennett | D47: 599
A48: 2013-10-25 | B48: West | C48: Jermaine Sherman | D48: 546
A49: 2013-10-25 | B49: Northwest | C49: Lynn Osborne | D49: 254
A50: 2013-10-20 | B50: West | C50: Elias Ramsey | D50: 101
A51: 2013-10-26 | B51: Southwest | C51: Lynn Osborne | D51: 150
A52: 2013-10-25 | B52: Southwest | C52: Myron Daniel | D52: 204
A53: 2013-10-24 | B53: Southwest | C53: Brad Dawson | D53: 106
A54: 2013-10-21 | B54: West | C54: Myron Daniel | D54: 333
A55: 2013-10-24 | B55: Northwest | C55: Myron Daniel | D55: 67
A56: 2013-10-20 | B56: Northwest | C56: Velma Bennett | D56: 51
A57: 2013-10-21 | B57: Southwest | C57: Lynn Osborne | D57: 279
A58: 2013-10-24 | B58: Southwest | C58: Tony Pierce | D58: 123
A59: 2013-10-21 | B59: West | C59: Alfred Fuller | D59: 519
A60: 2013-10-22 | B60: Northwest | C60: Mildred Leonard | D60: 501
A61: 2013-10-26 | B61: West | C61: Kathleen Marshall | D61: 235
A62: 2013-10-23 | B62: Southwest | C62: Barry Scott | D62: 35
A63: 2013-10-23 | B63: West | C63: Alfred Fuller | D63: 319
A64: 2013-10-24 | B64: Northwest | C64: Barry Scott | D64: 551
A65: 2013-10-26 | B65: Southwest | C65: Natasha Schneider | D65: 188
A66: 2013-10-25 | B66: West | C66: Kathleen Marshall | D66: 129
A67: 2013-10-20 | B67: West | C67: Brad Dawson | D67: 339
A68: 2013-10-21 | B68: Southwest | C68: Kathleen Marshall | D68: 485
A69: 2013-10-20 | B69: West | C69: Mildred Leonard | D69: 29
A70: 2013-10-20 | B70: Southwest | C70: Kim Wolfe | D70: 135
A71: 2013-10-26 | B71: Southwest | C71: Jermaine Sherman | D71: 584
A72: 2013-10-23 | B72: Northwest | C72: Lynn Osborne | D72: 684
A73: 2013-10-23 | B73: West | C73: Alfred Fuller | D73: 528
A74: 2013-10-26 | B74: Southwest | C74: Lynn Osborne | D74: 675
A75: 2013-10-23 | B75: West | C75: Brad Dawson | D75: 119
A76: 2013-10-22 | B76: West | C76: Kim Wolfe | D76: 368
A77: 2013-10-24 | B77: Southwest | C77: Freda Gregory | D77: 524
A78: 2013-10-24 | B78: Southwest | C78: Lynn Osborne | D78: 329
A79: 2013-10-26 | B79: West | C79: Sean Hunter | D79: 146
A80: 2013-10-26 | B80: Northwest | C80: Alfred Fuller | D80: 350
A81: 2013-10-23 | B81: Southwest | C81: Natasha Schneider | D81: 387
A82: 2013-10-20 | B82: Southwest | C82: Faith Malone | D82: 244
A83: 2013-10-23 | B83: Southwest | C83: Kathleen Marshall | D83: 388
A84: 2013-10-20 | B84: Southwest | C84: Natasha Schneider | D84: 449
A85: 2013-10-22 | B85: West | C85: Natasha Schneider | D85: 477
A86: 2013-10-23 | B86: Southwest | C86: Sheila Smith | D86: 457
A87: 2013-10-26 | B87: Southwest | C87: Barry Scott | D87: 105
A88: 2013-10-22 | B88: West | C88: Sean Hunter | D88: 458
A89: 2013-10-26 | B89: Northwest | C89: Elias Ramsey | D89: 110
A90: 2013-10-21 | B90: West | C90: Natasha Schneider | D90: 32
A91: 2013-10-24 | B91: West | C91: Cecil Austin | D91: 681
A92: 2013-10-23 | B92: Northwest | C92: Barry Scott | D92: 320
A93: 2013-10-25 | B93: Northwest | C93: Freda Gregory | D93: 601
A94: 2013-10-25 | B94: Southwest | C94: Mildred Leonard | D94: 101
A95: 2013-10-23 | B95: Northwest | C95: Sheila Smith | D95: 172
A96: 2013-10-20 | B96: West | C96: Brad Dawson | D96: 197
A97: 2013-10-22 | B97: West | C97: Alfred Fuller | D97: 346
A98: 2013-10-26 | B98: West | C98: John Lucas | D98: 318
A99: 2013-10-21 | B99: West | C99: John Lucas | D99: 245
A100: 2013-10-25 | B100: Southwest | C100: Kathleen Marshall | D100: 498
A101: 2013-10-26 | B101: Southwest | C101: Lynn Osborne | D101: 272
A102: 2013-10-21 | B102: Southwest | C102: Kathleen Marshall | D102: 424
A103: 2013-10-26 | B103: Northwest | C103: Lynn Osborne | D103: 122
A104: 2013-10-23 | B104: Southwest | C104: Lynn Osborne | D104: 39
A105: 2013-10-21 | B105: Southwest | C105: Jermaine Sherman | D105: 400
A106: 2013-10-26 | B106: West | C106: Alfred Fuller | D106: 416
A107: 2013-10-20 | B107: Southwest | C107: Velma Bennett | D107: 397
A108: 2013-10-25 | B108: Northwest | C108: Myron Daniel | D108: 671
A109: 2013-10-25 | B109: Southwest | C109: Alfred Fuller | D109: 148
A110: 2013-10-21 | B110: Northwest | C110: Fred Mullins | D110: 115
A111: 2013-10-25 | B111: Northwest | C111: Aaron Adkins | D111: 639
A112: 2013-10-24 | B112: Southwest | C112: Kathleen Marshall | D112: 659
A113: 2013-10-22 | B113: West | C113: Barry Scott | D113: 36
A114: 2013-10-21 | B114: Northwest | C114: Fred Mullins | D114: 102
A115: 2013-10-22 | B115: West | C115: Mildred Leonard | D115: 413
A116: 2013-10-25 | B116: West | C116: Natasha Schneider | D116: 166
A117: 2013-10-22 | B117: West | C117: Kim Wolfe | D117: 97
A118: 2013-10-26 | B118: West | C118: Sean Hunter | D118: 127
A119: 2013-10-20 | B119: Northwest | C119: Janet Murphy | D119: 60
A120: 2013-10-22 | B120: Southwest | C120: Mildred Leonard | D120: 496
A121: 2013-10-23 | B121: Northwest | C121: Sean Hunter | D121: 204
A122: 2013-10-26 | B122: Northwest | C122: Alfred Fuller | D122: 489
A123: 2013-10-20 | B123: West | C123: Faith Malone | D123: 266
A124: 2013-10-20 | B124: Northwest | C124: Kathleen Marshall | D124: 364
A125: 2013-10-20 | B125: Northwest | C125: Barry Scott | D125: 579
A126: 2013-10-21 | B126: West | C126: Faith Malone | D126: 587
A127: 2013-10-26 | B127: West | C127: Janet Murphy | D127: 543
A128: 2013-10-22 | B128: Northwest | C128: Mildred Leonard | D128: 644
A129: 2013-10-20 | B129: West | C129: Alfred Fuller | D129: 564
A130: 2013-10-22 | B130: Southwest | C130: Faith Malone | D130: 149
A131: 2013-10-23 | B131: Southwest | C131: Barry Scott | D131: 201
A132: 2013-10-25 | B132: West | C132: Janet Murphy | D132: 51
A133: 2013-10-23 | B133: West | C133: Myron Daniel | D133: 195
A134: 2013-10-26 | B134: Northwest | C134: Kim Wolfe | D134: 660
A135: 2013-10-21 | B135: Northwest | C135: Myron Daniel | D135: 523
A136: 2013-10-23 | B136: West | C136: Kathleen Marshall | D136: 649
A137: 2013-10-25 | B137: Southwest | C137: Elias Ramsey | D137: 409
A138: 2013-10-20 | B138: Northwest | C138: Velma Bennett | D138: 556
A139: 2013-10-22 | B139: Northwest | C139: Kim Wolfe | D139: 565
A140: 2013-10-20 | B140: Southwest | C140: Elias Ramsey | D140: 357
A141: 2013-10-25 | B141: West | C141: Alexis Gill | D141: 219
A142: 2013-10-25 | B142: Northwest | C142: Freda Gregory | D142: 327
A143: 2013-10-20 | B143: Southwest | C143: Velma Bennett | D143: 666
A144: 2013-10-20 | B144: Northwest | C144: Freda Gregory | D144: 290
A145: 2013-10-24 | B145: Northwest | C145: Elias Ramsey | D145: 64
A146: 2013-10-24 | B146: West | C146: Natasha Schneider | D146: 373
A147: 2013-10-26 | B147: Northwest | C147: Brad Dawson | D147: 249
A148: 2013-10-20 | B148: Northwest | C148: Kurt Hill | D148: 237
A149: 2013-10-22 | B149: West | C149: Natasha Schneider | D149: 138
A150: 2013-10-26 | B150: West | C150: Faith Malone | D150: 324
A151: 2013-10-22 | B151: Southwest | C151: Kathleen Marshall | D151: 633
A152: 2013-10-26 | B152: Southwest | C152: Lynn Osborne | D152: 240
A153: 2013-10-20 | B153: Southwest | C153: Brad Dawson | D153: 615
A154: 2013-10-22 | B154: Southwest | C154: Myron Daniel | D154: 180
A155: 2013-10-25 | B155: West | C155: Tony Pierce | D155: 415
A156: 2013-10-22 | B156: West | C156: Fred Mullins | D156: 305
A157: 2013-10-25 | B157: Northwest | C157: Kathleen Marshall | D157: 657
A158: 2013-10-23 | B158: West | C158: Kathleen Marshall | D158: 474
A159: 2013-10-22 | B159: West | C159: Natasha Schneider | D159: 611
A160: 2013-10-21 | B160: West | C160: Kurt Hill | D160: 682
A161: 2013-10-24 | B161: Northwest | C161: Fred Mullins | D161: 398
A162: 2013-10-23 | B162: Northwest | C162: Natasha Schneider | D162: 74
A163: 2013-10-24 | B163: West | C163: Lynn Osborne | D163: 243
A164: 2013-10-25 | B164: West | C164: Barry Scott | D164: 151
A165: 2013-10-25 | B165: Northwest | C165: Kathleen Marshall | D165: 174
A166: 2013-10-24 | B166: Northwest | C166: Freda Gregory | D166: 304
A167: 2013-10-20 | B167: West | C167: Wilbert Moreno | D167: 457
A168: 2013-10-20 | B168: Southwest | C168: Alfred Fuller | D168: 315
A169: 2013-10-23 | B169: Northwest | C169: Kim Wolfe | D169: 295
A170: 2013-10-22 | B170: Northwest | C170: Mildred Leonard | D170: 534
A171: 2013-10-23 | B171: West | C171: Jermaine Sherman | D171: 598
A172: 2013-10-24 | B172: Southwest | C172: Lynn Osborne | D172: 14
A173: 2013-10-22 | B173: Southwest | C173: Kathleen Marshall | D173: 26
A174: 2013-10-23 | B174: West | C174: Aaron Adkins | D174: 108
A175: 2013-10-22 | B175: West | C175: Janet Murphy | D175: 114
A176: 2013-10-26 | B176: Northwest | C176: Sheila Smith | D176: 684
A177: 2013-10-25 | B177: West | C177: Kurt Hill | D177: 258
A178: 2013-10-21 | B178: Northwest | C178: John Lucas | D178: 439
A179: 2013-10-26 | B179: Northwest | C179: Alfred Fuller | D179: 583
A180: 2013-10-25 | B180: West | C180: Lynn Osborne | D180: 664
A181: 2013-10-24 | B181: West | C181: Elias Ramsey | D181: 339
A182: 2013-10-24 | B182: Northwest | C182: Freda Gregory | D182: 164
A183: 2013-10-22 | B183: Southwest | C183: Elias Ramsey | D183: 671
A184: 2013-10-23 | B184: Southwest | C184: Mildred Leonard | D184: 241
A185: 2013-10-24 | B185: West | C185: Mildred Leonard | D185: 257
A186: 2013-10-23 | B186: Northwest | C186: Kurt Hill | D186: 264
A187: 2013-10-26 | B187: West | C187: Mildred Leonard | D187: 471
A188: 2013-10-21 | B188: Northwest | C188: Tony Pierce | D188: 40
A189: 2013-10-22 | B189: West | C189: Faith Malone | D189: 594
A190: 2013-10-21 | B190: West | C190: Kim Wolfe | D190: 605
A191: 2013-10-24 | B191: West | C191: Fred Mullins | D191: 409
A192: 2013-10-21 | B192: Northwest | C192: Tony Pierce | D192: 250
A193: 2013-10-22 | B193: Southwest | C193: Tony Pierce | D193: 481
A194: 2013-10-25 | B194: West | C194: Sean Hunter | D194: 529
A195: 2013-10-24 | B195: Southwest | C195: Wilbert Moreno | D195: 56
A196: 2013-10-23 | B196: West | C196: Alfred Fuller | D196: 82
A197: 2013-10-26 | B197: West | C197: Lynn Osborne | D197: 575
A198: 2013-10-22 | B198: West | C198: Kathleen Marshall | D198: 665
A199: 2013-10-25 | B199: West | C199: Kathleen Marshall | D199: 490
A200: 2013-10-23 | B200: Southwest | C200: Mildred Leonard | D200: 630
A201: 2013-10-25 | B201: Southwest | C201: Elias Ramsey | D201: 352
... 384 more rows

Sheet HW(2)
A1: Convert the Proper Data Set for classes and grades below to an Excel Table.
A2: Give the Excel Table a smart name.
A3: In cell D9, use the built-in AVERAGE function to calculate the GPA.
A4: Then make a column chart that shows the class name on the horizontal axis and column heights as grades.
A5: Finally, add a few records to see if the dynamic range aspect of the Excel Table feature is working.
A8: Class | B8: Grade | D8: GPA (Average)
A9: Busn 101 | B9: 2.8 | E9: <<== use AVERAGE function here.
A10: Busn 135 | B10: 2.7
A11: Busn 125 | B11: 3.7
A12: Busn 125 | B12: 4
A13: ENGL 101 | B13: 3.1

Sheet HW(2an)
A1: Convert the Proper Data Set for classes and grades below to an Excel Table.
A2: Give the Excel Table a smart name.
A3: In cell D9, use the built-in AVERAGE function to calculate the GPA.
A4: Then make a column chart that shows the class name on the horizontal axis and column heights as grades.
A5: Finally, add a few records to see if the dynamic range aspect of the Excel Table feature is working.
A8: Class | B8: Grade | D8: GPA (Average)
A9: Busn 135 | B9: 2.7 | D9: =AVERAGE(GradeTableAnswer[Grade]) -> 3.442857143 | E9: <<== use AVERAGE function here.
A10: Busn 101 | B10: 2.8
A11: ENGL 101 | B11: 3.1
A12: Busn 125 | B12: 3.7
A13: Busn 214 | B13: 3.8
A14: Busn 125 | B14: 4
A15: Busn 218 | B15: 4
